Workbook

Sheet Simulador (hidden)
C2: SIMULADOR DE CUOTAS
C5: Importe Solicitado | H5: =+Simulador_Cliente!C9 -> 50000 | N5: Fecha Desembolso | S5: =+Simulador_Cliente!C10 -> 2022-02-08
C6: Saldo de Capital | H6: =H5 -> 50000 | N6: Fecha Final de Gracia | S6: =DATE(YEAR(S5+H14),MONTH(S5 + H14),DAY(S5 +H14)) -> 2022-03-10
C7: Saldo de Interes | H7: 0 | N7: Fecha de la 1° cuota | S7: =DATE(YEAR(EDATE(S6,1)),MONTH(EDATE(S6,1)),DAY(EDATE(S6,1))) -> 2022-04-10
C8: Tasa Anual (TEA) | H8: =+Simulador_Cliente!C12 -> 20 | N8: Fecha final de vencimiento | S8: =DATE(YEAR(EDATE(S6,H13)),MONTH(EDATE(S6,H13)),DAY(EDATE(S6,H13))) -> 2025-03-10
C9: Tasa de Seguro de Desgravámen | H9: =+Cronograma_Referencial!H12 -> 0.00083 | N9: Base | S9: 360
C10: Seguro Multiriesgo | H10: =IF(J10="Sí",($H$5*$I$10),0) -> 35 | I10: 0.0007 | J10: =+Simulador_Cliente!C15 -> Sí | N10: Frecuencia pago en días | S10: 30
C11: Valor garantía | H11: =+Simulador_Cliente!C17 -> 0 | I11: 0.000292 | J11: =+I11*H11 -> 0 | K11: =+Simulador_Cliente!C16 -> No | N11: Tasa Equivalente | S11: =ROUND((((H8/100+1)^(1/(S9/S10))-1)*S9/S10)*100,6) -> 18.371365 | W11: tea conv. A tem luego nominal anual
N12: Días entre cuotas | S12: =(S8-S6)/H13 -> 30.44444444 | W12: dias promedio entre cuotas
C13: Plazo y Nro. Cuotas | H13: =+Simulador_Cliente!C11 -> 36 | I13: =IF(H16+ H17>0,VLOOKUP(H13,#REF!,2,FALSE),H13) -> 36 | N13: Factor Aplicado | S13: =($S$11/100)/($S$9/$S$12) -> 0.01553627781 | W13: tem convertida de manera nominal a los dias entre cuotas
C14: Días de Gracia | H14: =+Simulador_Cliente!C13 -> 30 | N14: Factor Aplicado para la cuota | S14: =1/((1-((1+$S$13)^(-1*$H$13)))/$S$13) -> 0.03647604199 | W14: Factor de cuota (ok)
C15: (+/- 30 días antes de la fecha 1° cuota) | N15: Interes de Gracia | S15: =IF(H14>0,ROUND(H6*(((1+H8/100)^(ABS(H14)/S9))-1),4),ROUND(H6*(((1+H8/100)^(ABS(H14)/S9))-1),4) * -1) -> 765.4735 | W15: Ok
C16: Mes de No Pago 1 | H16: 0 | N16: Saldo Interes +/- Interes Gracia | S16: =IF(H7 + S15>0,H7+ S15,0) -> 765.4735
C17: Mes de No Pago 2 | H17: 0
C18: Mes Cuota Doble 1
C19: Mes Cuota Doble 2
O22: Suavización | Q22: Ultimo saldo de Principal | S22: =VLOOKUP(I13,$F$31:$X$43,14,FALSE) -> 
G23: Valor de cuota por dias de gracia | L23: =$S$16/($H$13*(1/((1+0)^($S$10/$S$9)))) -> 21.26315278 | M23: REDONDEAR(SI(O(H16+ H17> 0;H18 + H19>0);S16/BUSCARV(H13;Calculos!$A$3:$G$389;7;FALSO);S16*$S$14);2) | Q23: Numero de Dias | S23: =S8-S6 -> 1096
G24: Valor de cuota por capital | L24: =ROUND(IF(OR(H16 + H17 > 0,H18 + H19>0), ROUNDDOWN(H6/VLOOKUP(H13,Calculos!$A$3:$G$1048576,7,0),2),H6*$S$14),2) -> 1823.8 | M24: REDONDEAR(SI(O(H16 + H17 > 0;H18 + H19>0); REDONDEAR.MENOS(H6/BUSCARV(H13;Calculos!$A$3:$G$1048576;7;0);2);H6*$O$14);2) | O24: 1670.38 | Q24: Valor de Cuota Nivelada | S24: =ROUND(+S22/ROUND(1*(((1+H8/100)^(S23/S9))-1),4),2) -> 
G25: Seguro de Desgravamen (FPF) | L25: =$H$5*$H$9 -> 41.5 | Q25: Factor Ajuste | S25: =S24*S14 ->  | X25: Se copia el valor de la celda P26 solo en la primera corrida, siempre que sea mayor a cero
G26: Seguro Multiriesgo | L26: =$H$10 -> 35 | Q26: Exceso de Int + Gracia | S26: =SUM(Y32:Y43) -> 0 | W26: =ROUND(IF(H16+ H17> 0,ROUNDUP($S$26/VLOOKUP(H13,#REF!,7,FALSE),2),$S$26*$S$14),2) -> 0 | X26: 0
G28: Cuota | L28: =L23+L24+L25+L26 -> 1921.563153 | Q28: Digite Factor de Ajuste Anterior mas El Actual
L30: =SUM(L32:L982) -> 1012230.65 | M30: 50000 | N30: 15751.8 | O30: 765.4735 | P30: 16517.2735 | Q30: 66517.2735 | R30: 0 | S30: 1535.5 | T30: 1295 | V30: 0 | W30: 69347.7735 | AA30: =SUM(AA32:AA982) -> 49819.9414
A31: ="$J$"&MATCH(1,B:B,0) -> $J$32 | C31: Fecha Vcto. | D31: Marca | E31: Nro. Cuota (De acuerdo a Plazo) | F31: Nro. Cuota | G31: Periodo Base | H31: Tasa | I31: Nro. Dias | J31: Factor | K31: Factor acumulado | L31: Principal | M31: Capital | N31: Interes | O31: Interes de Gracia | P31: Interes Total | Q31: Valor Cuota | R31: Comision Envio Informacion | S31: Seguro Desgravamen | T31: Seguro Multiriesgo | U31: Importe de Gracia Multiriesgo | V31: Seguro Todo Riesgo | W31: Cuota | X31: Saldo Principal | Y31: Exceso | Z31: TEM | AA31: VNP | AC31: Imp.Seguro Desgravamen periodo de gracia | AD31: Imp. de Gracia todo Riesgo
A32: 1 | B32: =IF(A32="","",IF(A32<=$H$22,0,1)) -> 1 | C32: =IF(OR(MONTH(EDATE($S$6,F32))=$H$16,MONTH(EDATE($S$6,F32))=$H$17),IF(ABS($H$17-$H$16)=1,EDATE($S$6,F32+2),EDATE($S$6,F32+1)),EDATE($S$6,F32)) -> 2022-04-10 | D32: =IF(B32="","",IF(OR(MONTH(C32)=$H$18,MONTH(C32)=$H$19),"D","")) ->  | E32: =IF(OR(MONTH(S7)=H16, MONTH(S7)=H17),IF(ABS(H17-H16)=1,3,2),1) -> 1 | F32: =1 -> 1 | G32: =$S$9 -> 360 | H32: =$H$8 -> 20 | I32: =C32-S6 -> 31 | J32: =+(I32+$H$14)/30 -> 2.033333333 | K32: =+SUM($J$32:J32) -> 2.033333333 | L32: =H6 -> 50000 | M32: =IF((IF(ISERROR(MATCH(MONTH(B32),$H$18:$H$19,0))=FALSE,$L$24 + $S$28,0) + $L$24+$S$28+$X$26)-N32<0,0.01,IF(ISERROR(MATCH(MONTH(B32),$H$18:$H$19,0))=FALSE,$L$24 + $S$28,0)+ ($L$24+$S$28+$X$26)-N32)-AC32-U32-AD32 -> 956.11 | N32: =IF($L$24+$S$28 + $X$26<ROUND(ROUND(L32*(((1+(H32/100))^(I32/G32))-1),4),2),$L$24+$S$28 + $X$26-0.01,IF(ROUND(ROUND(L32*(((1+(H32/100))^(I32/G32))-1),4),2)+ $X$26>$L$24,$L$24+ $X$26+-0.01,ROUND(ROUND(L32*(((1+(H32/100))^(I32/G32))-1),4),2)+$X$26)) -> 791.19 | O32: =IF(ISERROR(MATCH(MONTH(C32),$H$18:$H$19,0))=FALSE,$L$23,0) +$L$23 -> 21.26315278 | P32: =N32+O32 -> 812.4531528 | Q32: =M32+N32 + O32+IF(A32=$H$13,X32,0) -> 1768.563153 | S32: =$L$25+AC32 -> 83 | T32: =IF($J$10="Sí",$L$26+U32,0) -> 70 | U32: =ROUNDDOWN(0.07%*$H$5/30*$H$14,2) -> 35 | V32: =IF($K$11="Sí",J11+AD32,0) -> 0 | W32: =Q32+R32+S32+T32+V32 -> 1921.563153 | X32: =ROUND(L32-M32,2) -> 49043.89 | Y32: =IF(ROUND(ROUND(L32*(((1+(H32/100))^(I32/G32))-1),4),2) - $L$24<0,0,ROUND(ROUND(L32*(((1+(H32/100))^(I32/G32))-1),4),2) - $L$24) -> 0 | Z32: =(1+H32/100)^(1/12)-1 -> 0.0153094705 | AA32: =+Q32/((1+Z32)^K32) -> 1714.761603 | AC32: =ROUND($H$9*$H$5/30*$H$14,2) -> 41.5 | AD32: =ROUNDDOWN($I$11*$H$11/30*$H$14,2) -> 0
A33: =IF(A32>=$H$13,"",A32+1) -> 2 | B33: =IF(A33="","",IF(A33<=$H$22,0,1)) -> 1 | C33: =IF(B33="","",IF(OR(MONTH(EDATE($S$6,F33))=$H$16,MONTH(EDATE($S$6,F33))=$H$17),IF(ABS($H$17-$H$16)=1,EDATE($S$6,F33+2),EDATE($S$6,F33+1)),EDATE($S$6,F33))) -> 2022-05-10 | D33: =IF(B33="","",IF(OR(MONTH(C33)=$H$18,MONTH(C33)=$H$19),"D","")) ->  | E33: =IF(B33="","",IF(OR(MONTH(DATE(YEAR(C32) + 1/12,MONTH(C32)+1,DAY(C32)))=$H$16,MONTH(DATE(YEAR(C32) + 1/12,MONTH(C32)+1,DAY(C32)))=$H$17),IF(ABS($H$17-$H$16)=1,E32+1,E32 + 2),E32 + 1)) -> 2 | F33: =IF(B33="","",F32+1) -> 2 | G33: =IF(B33="","",$S$9) -> 360 | H33: =IF(B33="","",$H$8) -> 20 | I33: =IF(B33="","",C33-C32) -> 30 | J33: =IF(B33="","",(I33)/30) -> 1 | K33: =IF(B33="","",SUM($J$32:J33)) -> 3.033333333 | L33: =IF(B33="","",X32) -> 49043.89 | M33: =IF(A33=$H$13,X32,IF(B33="","",IF((IF(ISERROR(MATCH(MONTH(C33),$H$18:$H$19,0))=FALSE,$L$24 + $S$28,0) + $L$24+$S$28+$X$26)-IF(AND(D33="D",Z33=0),$X$26*2,$X$26)-N33<0,0.01,IF(ISERROR(MATCH(MONTH(C33),$H$18:$H$19,0))=FALSE,$L$24 + $S$28,0)+ ($L$24+$S$28-IF(AND(D33="D",Z33=0),$X$26*2,$X$26))-N33)-AC33)) -> 1072.96 | N33: =IF(B33="","",IF($L$24+$S$28 + $X$26<ROUND(ROUND(L33*(((1+(H33/100))^(I33/G33))-1),4),2),$L$24+$S$28 + $X$26-0.01,IF(ROUND(ROUND(L33*(((1+(H33/100))^(I33/G33))-1),4),2)+ $X$26>$L$24,$L$24+ $X$26+-0.01,ROUND(ROUND(L33*(((1+(H33/100))^(I33/G33))-1),4),2)+$X$26))) -> 750.84 | O33: =IF(B33="","",IF(ISERROR(MATCH(MONTH(C33),$H$18:$H$19,0))=FALSE,$L$23,0) +$L$23) -> 21.26315278 | P33: =IF(B33="","",N33+O33) -> 772.1031528 | Q33: =IF(B33="","",M33+N33 + O33+IF(A33=$H$13,X33,0)) -> 1845.063153 | S33: =IF(B33="","",$L$25+AC33) -> 41.5 | T33: =IF(B33="","",IF($J$10="sí",$L$26+U33,0)) -> 35 | V33: =IF(B33="","",IF($K$11="Sí",$J$11+AD33,0)) -> 0 | W33: =IF(B33="","",Q33+R33+S33+T33+V33) -> 1921.563153 | X33: =IF(B33="","",ROUND(L33-M33,2)) -> 47970.93 | Y33: =IF(B33="","",IF(ROUND(ROUND(L33*(((1+(H33/100))^(I33/G33))-1),4),2) - $L$24<0,0,ROUND(ROUND(L33*(((1+(H33/100))^(I33/G33))-1),4),2) - $L$24)) -> 0 | Z33: =IF(B33="","",(1+H33/100)^(1/12)-1) -> 0.0153094705 | AA33: =IF(B33="","",Q33/((1+Z33)^K33)) -> 1761.959722
A34: =IF(A33>=$H$13,"",A33+1) -> 3 | B34: 1 | C34: 2022-06-10 | D34: =IF(B34="","",IF(OR(MONTH(C34)=$H$18,MONTH(C34)=$H$19),"D","")) ->  | E34: 3 | F34: 3 | G34: 360 | H34: 20 | I34: 31 | J34: 1.033333333 | K34: =IF(B34="","",SUM($J$32:J34)) -> 4.066666667 | L34: 47970.93 | M34: =IF(A34=$H$13,X33,IF(B34="","",IF((IF(ISERROR(MATCH(MONTH(C34),$H$18:$H$19,0))=FALSE,$L$24 + $S$28,0) + $L$24+$S$28+$X$26)-IF(AND(D34="D",Z34=0),$X$26*2,$X$26)-N34<0,0.01,IF(ISERROR(MATCH(MONTH(C34),$H$18:$H$19,0))=FALSE,$L$24 + $S$28,0)+ ($L$24+$S$28-IF(AND(D34="D",Z34=0),$X$26*2,$X$26))-N34)-AC34)) -> 1064.72 | N34: 759.08 | O34: 21.26315278 | P34: 780.3431528 | Q34: =IF(B34="","",M34+N34 + O34+IF(A34=$H$13,X34,0)) -> 1845.063153 | S34: 41.5 | T34: =IF(B34="","",IF($J$10="sí",$L$26+U34,0)) -> 35 | V34: =IF(B34="","",IF($K$11="Sí",$J$11+AD34,0)) -> 0 | W34: =IF(B34="","",Q34+R34+S34+T34+V34) -> 1921.563153 | X34: 46906.21 | Y34: 0 | Z34: =IF(B34="","",(1+H34/100)^(1/12)-1) -> 0.0153094705 | AA34: 1734.513128
A35: 4 | B35: 1 | C35: 2022-07-10 | E35: 4 | F35: 4 | G35: 360 | H35: 20 | I35: 30 | J35: 1 | K35: =IF(B35="","",SUM($J$32:J35)) -> 5.066666667 | L35: 46906.21 | M35: 1105.69 | N35: 718.11 | O35: 21.26315278 | P35: 739.3731528 | Q35: 1845.063153 | S35: 41.5 | T35: 35 | V35: 0 | W35: 1921.563153 | X35: 45800.52 | Y35: 0 | Z35: 0.0153094705 | AA35: 1708.359056
A36: 5 | B36: 1 | C36: 2022-08-10 | E36: 5 | F36: 5 | G36: 360 | H36: 20 | I36: 31 | J36: 1.033333333 | K36: =IF(B36="","",SUM($J$32:J36)) -> 6.1 | L36: 45800.52 | M36: 1099.06 | N36: 724.74 | O36: 21.26315278 | P36: 746.0031528 | Q36: 1845.063153 | S36: 41.5 | T36: 35 | V36: 0 | W36: 1921.563153 | X36: 44701.46 | Y36: 0 | Z36: 0.0153094705 | AA36: 1681.747416
A37: 6 | B37: 1 | C37: 2022-09-10 | E37: 6 | F37: 6 | G37: =IF(B37="","",$S$9) -> 360 | H37: 20 | I37: 31 | J37: 1.033333333 | K37: =IF(B37="","",SUM($J$32:J37)) -> 7.133333333 | L37: 44701.46 | M37: 1116.45 | N37: 707.35 | O37: 21.26315278 | P37: 728.6131528 | Q37: 1845.063153 | S37: 41.5 | T37: 35 | V37: 0 | W37: 1921.563153 | X37: 43585.01 | Y37: 0 | Z37: 0.0153094705 | AA37: 1655.550314
A38: 7 | B38: 1 | C38: 2022-10-10 | E38: 7 | F38: 7 | G38: 360 | H38: 20 | I38: 30 | J38: 1 | K38: =IF(B38="","",SUM($J$32:J38)) -> 8.133333333 | L38: 43585.01 | M38: 1156.54 | N38: 667.26 | O38: 21.26315278 | P38: 688.5231528 | Q38: 1845.063153 | S38: 41.5 | T38: 35 | V38: 0 | W38: 1921.563153 | X38: 42428.47 | Y38: 0 | Z38: 0.0153094705 | AA38: 1630.586892
A39: 8 | B39: 1 | C39: 2022-11-10 | E39: 8 | F39: 8 | G39: 360 | H39: 20 | I39: 31 | J39: 1.033333333 | K39: =IF(B39="","",SUM($J$32:J39)) -> 9.166666667 | L39: 42428.47 | M39: 1152.42 | N39: 671.38 | O39: 21.26315278 | P39: 692.6431528 | Q39: 1845.063153 | S39: 41.5 | T39: 35 | V39: 0 | W39: 1921.563153 | X39: 41276.05 | Y39: 0 | Z39: 0.0153094705 | AA39: 1605.186733
A40: 9 | B40: 1 | C40: 2022-12-10 | E40: 9 | F40: 9 | G40: 360 | H40: 20 | I40: 30 | J40: 1 | K40: =IF(B40="","",SUM($J$32:J40)) -> 10.16666667 | L40: 41276.05 | M40: 1191.89 | N40: 631.91 | O40: 21.26315278 | P40: 653.1731528 | Q40: 1845.063153 | S40: 41.5 | T40: 35 | V40: 0 | W40: 1921.563153 | X40: 40084.16 | Y40: 0 | Z40: 0.0153094705 | AA40: 1580.982725
A41: 10 | B41: 1 | C41: 2023-01-10 | D41: =IF(B41="","",IF(OR(MONTH(C41)=$H$18,MONTH(C41)=$H$19),"D","")) ->  | E41: 10 | F41: 10 | G41: 360 | H41: 20 | I41: 31 | J41: 1.033333333 | K41: =IF(B41="","",SUM($J$32:J41)) -> 11.2 | L41: 40084.16 | M41: 1189.52 | N41: 634.28 | O41: 21.26315278 | P41: 655.5431528 | Q41: 1845.063153 | S41: 41.5 | T41: 35 | V41: 0 | W41: 1921.563153 | X41: 38894.64 | Y41: 0 | Z41: 0.0153094705 | AA41: 1556.355266
A42: 11 | B42: 1 | C42: 2023-02-10 | E42: 11 | F42: 11 | G42: 360 | H42: 20 | I42: 31 | J42: 1.033333333 | K42: =IF(B42="","",SUM($J$32:J42)) -> 12.23333333 | L42: 38894.64 | M42: 1208.34 | N42: 615.46 | O42: 21.26315278 | P42: 636.7231528 | Q42: 1845.063153 | S42: 41.5 | T42: 35 | V42: 0 | W42: 1921.563153 | X42: 37686.3 | Y42: 0 | Z42: 0.0153094705 | AA42: 1532.111436
A43: 12 | B43: 1 | C43: 2023-03-10 | E43: 12 | F43: 12 | G43: 360 | H43: 20 | I43: 28 | J43: 0.9333333333 | K43: =IF(B43="","",SUM($J$32:J43)) -> 13.16666667 | L43: 37686.3 | M43: 1285.58 | N43: 538.22 | O43: 21.26315278 | P43: 559.4831528 | Q43: 1845.063153 | S43: 41.5 | T43: 35 | V43: 0 | W43: 1921.563153 | X43: 36400.72 | Y43: 0 | Z43: 0.0153094705 | AA43: 1510.538549
A44: 13 | B44: 1 | C44: 2023-04-10 | E44: 13 | F44: 13 | G44: 360 | H44: 20 | I44: 31 | J44: 1.033333333 | K44: =IF(B44="","",SUM($J$32:J44)) -> 14.2 | L44: 36400.72 | M44: 1247.8 | N44: 576 | O44: 21.26315278 | P44: 597.2631528 | Q44: 1845.063153 | S44: 41.5 | T44: 35 | V44: 0 | W44: 1921.563153 | X44: 35152.92 | Y44: 0 | Z44: 0.0153094705 | AA44: 1487.008421
A45: 14 | B45: 1 | C45: 2023-05-10 | E45: 14 | F45: 14 | G45: 360 | H45: 20 | I45: 30 | J45: 1 | K45: =IF(B45="","",SUM($J$32:J45)) -> 15.2 | L45: 35152.92 | M45: 1285.63 | N45: 538.17 | O45: 21.26315278 | P45: 559.4331528 | Q45: 1845.063153 | S45: 41.5 | T45: 35 | V45: 0 | W45: 1921.563153 | X45: 33867.29 | Y45: 0 | Z45: 0.0153094705 | AA45: 1464.586379
A46: 15 | B46: 1 | C46: 2023-06-10 | E46: 15 | F46: 15 | G46: 360 | H46: 20 | I46: 31 | J46: 1.033333333 | K46: =IF(B46="","",SUM($J$32:J46)) -> 16.23333333 | L46: 33867.29 | M46: 1287.89 | N46: 535.91 | O46: 21.26315278 | P46: 557.1731528 | Q46: 1845.063153 | S46: 41.5 | T46: 35 | V46: 0 | W46: 1921.563153 | X46: 32579.4 | Y46: 0 | Z46: 0.0153094705 | AA46: 1441.772062
A47: 16 | B47: 1 | C47: 2023-07-10 | E47: 16 | F47: 16 | G47: 360 | H47: 20 | I47: 30 | J47: 1 | K47: =IF(B47="","",SUM($J$32:J47)) -> 17.23333333 | L47: 32579.4 | M47: 1325.03 | N47: 498.77 | O47: 21.26315278 | P47: 520.0331528 | Q47: 1845.063153 | S47: 41.5 | T47: 35 | V47: 0 | W47: 1921.563153 | X47: 31254.37 | Y47: 0 | Z47: 0.0153094705 | AA47: 1420.032122
A48: 17 | B48: 1 | C48: 2023-08-10 | E48: 17 | F48: 17 | G48: 360 | H48: 20 | I48: 31 | J48: 1.033333333 | K48: =IF(B48="","",SUM($J$32:J48)) -> 18.26666667 | L48: 31254.37 | M48: 1329.24 | N48: 494.56 | O48: 21.26315278 | P48: 515.8231528 | Q48: 1845.063153 | S48: 41.5 | T48: 35 | V48: 0 | W48: 1921.563153 | X48: 29925.13 | Y48: 0 | Z48: 0.0153094705 | AA48: 1397.911841
A49: 18 | B49: 1 | C49: 2023-09-10 | E49: 18 | F49: 18 | G49: 360 | H49: 20 | I49: 31 | J49: 1.033333333 | K49: =IF(B49="","",SUM($J$32:J49)) -> 19.3 | L49: 29925.13 | M49: 1350.27 | N49: 473.53 | O49: 21.26315278 | P49: 494.7931528 | Q49: 1845.063153 | S49: 41.5 | T49: 35 | V49: 0 | W49: 1921.563153 | X49: 28574.86 | Y49: 0 | Z49: 0.0153094705 | AA49: 1376.136134
A50: 19 | B50: 1 | C50: 2023-10-10 | E50: 19 | F50: 19 | G50: 360 | H50: 20 | I50: 30 | J50: 1 | K50: =IF(B50="","",SUM($J$32:J50)) -> 20.3 | L50: 28574.86 | M50: 1386.33 | N50: 437.47 | O50: 21.26315278 | P50: 458.7331528 | Q50: 1845.063153 | S50: 41.5 | T50: 35 | V50: 0 | W50: 1921.563153 | X50: 27188.53 | Y50: 0 | Z50: 0.0153094705 | AA50: 1355.385893
A51: 20 | B51: 1 | C51: 2023-11-10 | E51: 20 | F51: 20 | G51: 360 | H51: 20 | I51: 31 | J51: 1.033333333 | K51: =IF(B51="","",SUM($J$32:J51)) -> 21.33333333 | L51: 27188.53 | M51: 1393.57 | N51: 430.23 | O51: 21.26315278 | P51: 451.4931528 | Q51: 1845.063153 | S51: 41.5 | T51: 35 | V51: 0 | W51: 1921.563153 | X51: 25794.96 | Y51: 0 | Z51: 0.0153094705 | AA51: 1334.272626
A52: 21 | B52: 1 | C52: 2023-12-10 | E52: 21 | F52: 21 | G52: 360 | H52: 20 | I52: 30 | J52: 1 | K52: =IF(B52="","",SUM($J$32:J52)) -> 22.33333333 | L52: 25794.96 | M52: 1428.89 | N52: 394.91 | O52: 21.26315278 | P52: 416.1731528 | Q52: 1845.063153 | S52: 41.5 | T52: 35 | V52: 0 | W52: 1921.563153 | X52: 24366.07 | Y52: 0 | Z52: 0.0153094705 | AA52: 1314.15363
A53: 22 | B53: 1 | C53: 2024-01-10 | E53: 22 | F53: 22 | G53: 360 | H53: 20 | I53: 31 | J53: 1.033333333 | K53: =IF(B53="","",SUM($J$32:J53)) -> 23.36666667 | L53: 24366.07 | M53: 1438.24 | N53: 385.56 | O53: 21.26315278 | P53: 406.8231528 | Q53: 1845.063153 | S53: 41.5 | T53: 35 | V53: 0 | W53: 1921.563153 | X53: 22927.83 | Y53: 0 | Z53: 0.0153094705 | AA53: 1293.68265
A54: 23 | B54: 1 | C54: 2024-02-10 | E54: 23 | F54: 23 | G54: 360 | H54: 20 | I54: 31 | J54: 1.033333333 | K54: =IF(B54="","",SUM($J$32:J54)) -> 24.4 | L54: 22927.83 | M54: 1460.99 | N54: 362.81 | O54: 21.26315278 | P54: 384.0731528 | Q54: 1845.063153 | S54: 41.5 | T54: 35 | V54: 0 | W54: 1921.563153 | X54: 21466.84 | Y54: 0 | Z54: 0.0153094705 | AA54: 1273.530554
A55: 24 | B55: 1 | C55: 2024-03-10 | E55: 24 | F55: 24 | G55: 360 | H55: 20 | I55: 29 | J55: 0.9666666667 | K55: =IF(B55="","",SUM($J$32:J55)) -> 25.36666667 | L55: 21466.84 | M55: 1506.19 | N55: 317.61 | O55: 21.26315278 | P55: 338.8731528 | Q55: 1845.063153 | S55: 41.5 | T55: 35 | V55: 0 | W55: 1921.563153 | X55: 19960.65 | Y55: 0 | Z55: 0.0153094705 | AA55: 1254.962878
A56: 25 | B56: 1 | C56: 2024-04-10 | E56: 25 | F56: 25 | G56: 360 | H56: 20 | I56: 31 | J56: 1.033333333 | K56: =IF(B56="","",SUM($J$32:J56)) -> 26.4 | L56: 19960.65 | M56: 1507.95 | N56: 315.85 | O56: 21.26315278 | P56: 337.1131528 | Q56: 1845.063153 | S56: 41.5 | T56: 35 | V56: 0 | W56: 1921.563153 | X56: 18452.7 | Y56: 0 | Z56: 0.0153094705 | AA56: 1235.413931
A57: 26 | B57: 1 | C57: 2024-05-10 | E57: 26 | F57: 26 | G57: 360 | H57: 20 | I57: 30 | J57: 1 | K57: =IF(B57="","",SUM($J$32:J57)) -> 27.4 | L57: 18452.7 | M57: 1541.3 | N57: 282.5 | O57: 21.26315278 | P57: 303.7631528 | Q57: 1845.063153 | S57: 41.5 | T57: 35 | V57: 0 | W57: 1921.563153 | X57: 16911.4 | Y57: 0 | Z57: 0.0153094705 | AA57: 1216.785588
A58: 27 | B58: 1 | C58: 2024-06-10 | E58: 27 | F58: 27 | G58: 360 | H58: 20 | I58: 31 | J58: 1.033333333 | K58: =IF(B58="","",SUM($J$32:J58)) -> 28.43333333 | L58: 16911.4 | M58: 1556.2 | N58: 267.6 | O58: 21.26315278 | P58: 288.8631528 | Q58: 1845.063153 | S58: 41.5 | T58: 35 | V58: 0 | W58: 1921.563153 | X58: 15355.2 | Y58: 0 | Z58: 0.0153094705 | AA58: 1197.831341
A59: 28 | B59: 1 | C59: 2024-07-10 | E59: 28 | F59: 28 | G59: 360 | H59: 20 | I59: 30 | J59: 1 | K59: =IF(B59="","",SUM($J$32:J59)) -> 29.43333333 | L59: 15355.2 | M59: 1588.72 | N59: 235.08 | O59: 21.26315278 | P59: 256.3431528 | Q59: 1845.063153 | S59: 41.5 | T59: 35 | V59: 0 | W59: 1921.563153 | X59: 13766.48 | Y59: 0 | Z59: 0.0153094705 | AA59: 1179.769692
A60: 29 | B60: 1 | C60: 2024-08-10 | E60: 29 | F60: 29 | G60: 360 | H60: 20 | I60: 31 | J60: 1.033333333 | K60: =IF(B60="","",SUM($J$32:J60)) -> 30.46666667 | L60: 13766.48 | M60: 1605.96 | N60: 217.84 | O60: 21.26315278 | P60: 239.1031528 | Q60: 1845.063153 | S60: 41.5 | T60: 35 | V60: 0 | W60: 1921.563153 | X60: 12160.52 | Y60: 0 | Z60: 0.0153094705 | AA60: 1161.392053
A61: 30 | B61: 1 | C61: 2024-09-10 | E61: 30 | F61: 30 | G61: 360 | H61: 20 | I61: 31 | J61: 1.033333333 | K61: =IF(B61="","",SUM($J$32:J61)) -> 31.5 | L61: 12160.52 | M61: 1631.37 | N61: 192.43 | O61: 21.26315278 | P61: 213.6931528 | Q61: 1845.063153 | S61: 41.5 | T61: 35 | V61: 0 | W61: 1921.563153 | X61: 10529.15 | Y61: 0 | Z61: 0.0153094705 | AA61: 1143.300688
A62: 31 | B62: 1 | C62: 2024-10-10 | E62: 31 | F62: 31 | G62: 360 | H62: 20 | I62: 30 | J62: 1 | K62: =IF(B62="","",SUM($J$32:J62)) -> 32.5 | L62: 10529.15 | M62: 1662.6 | N62: 161.2 | O62: 21.26315278 | P62: 182.4631528 | Q62: 1845.063153 | S62: 41.5 | T62: 35 | V62: 0 | W62: 1921.563153 | X62: 8866.55 | Y62: 0 | Z62: 0.0153094705 | AA62: 1126.061286
A63: 32 | B63: 1 | C63: 2024-11-10 | E63: 32 | F63: 32 | G63: 360 | H63: 20 | I63: 31 | J63: 1.033333333 | K63: =IF(B63="","",SUM($J$32:J63)) -> 33.53333333 | L63: 8866.55 | M63: 1683.5 | N63: 140.3 | O63: 21.26315278 | P63: 161.5631528 | Q63: 1845.063153 | S63: 41.5 | T63: 35 | V63: 0 | W63: 1921.563153 | X63: 7183.05 | Y63: 0 | Z63: 0.0153094705 | AA63: 1108.52028
A64: 33 | B64: 1 | C64: 2024-12-10 | E64: 33 | F64: 33 | G64: 360 | H64: 20 | I64: 30 | J64: 1 | K64: =IF(B64="","",SUM($J$32:J64)) -> 34.53333333 | L64: 7183.05 | M64: 1713.83 | N64: 109.97 | O64: 21.26315278 | P64: 131.2331528 | Q64: 1845.063153 | S64: 41.5 | T64: 35 | V64: 0 | W64: 1921.563153 | X64: 5469.22 | Y64: 0 | Z64: 0.0153094705 | AA64: 1091.805318
A65: 34 | B65: 1 | C65: 2025-01-10 | E65: 34 | F65: 34 | G65: 360 | H65: 20 | I65: 31 | J65: 1.033333333 | K65: =IF(B65="","",SUM($J$32:J65)) -> 35.56666667 | L65: 5469.22 | M65: 1737.26 | N65: 86.54 | O65: 21.26315278 | P65: 107.8031528 | Q65: 1845.063153 | S65: 41.5 | T65: 35 | V65: 0 | W65: 1921.563153 | X65: 3731.96 | Y65: 0 | Z65: 0.0153094705 | AA65: 1074.797928
A66: 35 | B66: 1 | C66: 2025-02-10 | E66: 35 | F66: 35 | G66: 360 | H66: 20 | I66: 31 | J66: 1.033333333 | K66: =IF(B66="","",SUM($J$32:J66)) -> 36.6 | L66: 3731.96 | M66: 1764.75 | N66: 59.05 | O66: 21.26315278 | P66: 80.31315278 | Q66: 1845.063153 | S66: 41.5 | T66: 35 | V66: 0 | W66: 1921.563153 | X66: 1967.21 | Y66: 0 | Z66: 0.0153094705 | AA66: 1058.055466
A67: 36 | B67: 1 | C67: 2025-03-10 | E67: 36 | F67: 36 | G67: 360 | H67: 20 | I67: 28 | J67: 0.9333333333 | K67: =IF(B67="","",SUM($J$32:J67)) -> 37.53333333 | L67: 1967.21 | M67: 1967.21 | N67: 28.09 | O67: 21.26315278 | P67: 49.35315278 | Q67: 2016.563153 | S67: 41.5 | T67: 35 | V67: 0 | W67: 2093.063153 | X67: 0 | Y67: 0 | Z67: 0.0153094705 | AA67: 1140.119794
K68: =IF(B68="","",SUM($J$32:J68)) -> 
K69: =IF(B69="","",SUM($J$32:J69)) -> 
K70: =IF(B70="","",SUM($J$32:J70)) -> 
K71: =IF(B71="","",SUM($J$32:J71)) -> 
K72: =IF(B72="","",SUM($J$32:J72)) -> 
K73: =IF(B73="","",SUM($J$32:J73)) -> 
K74: =IF(B74="","",SUM($J$32:J74)) -> 
K75: =IF(B75="","",SUM($J$32:J75)) -> 
K76: =IF(B76="","",SUM($J$32:J76)) -> 
K77: =IF(B77="","",SUM($J$32:J77)) -> 
K78: =IF(B78="","",SUM($J$32:J78)) -> 
K79: =IF(B79="","",SUM($J$32:J79)) -> 
K80: =IF(B80="","",SUM($J$32:J80)) -> 
K81: =IF(B81="","",SUM($J$32:J81)) -> 
K82: =IF(B82="","",SUM($J$32:J82)) -> 
K83: =IF(B83="","",SUM($J$32:J83)) -> 
K84: =IF(B84="","",SUM($J$32:J84)) -> 
K85: =IF(B85="","",SUM($J$32:J85)) -> 
K86: =IF(B86="","",SUM($J$32:J86)) -> 
K87: =IF(B87="","",SUM($J$32:J87)) -> 
K88: =IF(B88="","",SUM($J$32:J88)) -> 
K89: =IF(B89="","",SUM($J$32:J89)) -> 
K90: =IF(B90="","",SUM($J$32:J90)) -> 
C91: =IF(B91="","",IF(OR(MONTH(EDATE($S$6,F91))=$H$16,MONTH(EDATE($S$6,F91))=$H$17),IF(ABS($H$17-$H$16)=1,EDATE($S$6,F91+2),EDATE($S$6,F91+1)),EDATE($S$6,F91))) ->  | E91: =IF(B91="","",IF(OR(MONTH(DATE(YEAR(C90) + 1/12,MONTH(C90)+1,DAY(C90)))=$H$16,MONTH(DATE(YEAR(C90) + 1/12,MONTH(C90)+1,DAY(C90)))=$H$17),IF(ABS($H$17-$H$16)=1,E90+1,E90 + 2),E90 + 1)) ->  | F91: =IF(B91="","",F90+1) ->  | G91: =IF(B91="","",$S$9) ->  | H91: =IF(B91="","",$H$8) ->  | I91: =IF(B91="","",C91-C90) ->  | J91: =IF(B91="","",(I91)/30) ->  | K91: =IF(B91="","",SUM($J$32:J91)) ->  | L91: =IF(B91="","",X90) ->  | N91: =IF(B91="","",IF($L$24+$S$28 + $X$26<ROUND(ROUND(L91*(((1+(H91/100))^(I91/G91))-1),4),2),$L$24+$S$28 + $X$26-0.01,IF(ROUND(ROUND(L91*(((1+(H91/100))^(I91/G91))-1),4),2)+ $X$26>$L$24,$L$24+ $X$26+-0.01,ROUND(ROUND(L91*(((1+(H91/100))^(I91/G91))-1),4),2)+$X$26))) ->  | O91: =IF(B91="","",IF(ISERROR(MATCH(MONTH(C91),$H$18:$H$19,0))=FALSE,$L$23,0) +$L$23) ->  | P91: =IF(B91="","",N91+O91) ->  | S91: =IF(B91="","",$L$25+AC91) ->  | X91: =IF(B91="","",ROUND(L91-M91,2)) ->  | Y91: =IF(B91="","",IF(ROUND(ROUND(L91*(((1+(H91/100))^(I91/G91))-1),4),2) - $L$24<0,0,ROUND(ROUND(L91*(((1+(H91/100))^(I91/G91))-1),4),2) - $L$24)) ->  | Z91: =IF(B91="","",(1+H91/100)^(1/12)-1) ->  | AA91: =IF(B91="","",Q91/((1+Z91)^K91)) -> 
A92: =IF(A91>=$H$13,"",A91+1) ->  | C92: =IF(B92="","",IF(OR(MONTH(EDATE($S$6,F92))=$H$16,MONTH(EDATE($S$6,F92))=$H$17),IF(ABS($H$17-$H$16)=1,EDATE($S$6,F92+2),EDATE($S$6,F92+1)),EDATE($S$6,F92))) ->  | E92: =IF(B92="","",IF(OR(MONTH(DATE(YEAR(C91) + 1/12,MONTH(C91)+1,DAY(C91)))=$H$16,MONTH(DATE(YEAR(C91) + 1/12,MONTH(C91)+1,DAY(C91)))=$H$17),IF(ABS($H$17-$H$16)=1,E91+1,E91 + 2),E91 + 1)) ->  | F92: =IF(B92="","",F91+1) ->  | G92: =IF(B92="","",$S$9) ->  | H92: =IF(B92="","",$H$8) ->  | I92: =IF(B92="","",C92-C91) ->  | J92: =IF(B92="","",(I92)/30) ->  | K92: =IF(B92="","",SUM($J$32:J92)) ->  | L92: =IF(B92="","",X91) ->  | N92: =IF(B92="","",IF($L$24+$S$28 + $X$26<ROUND(ROUND(L92*(((1+(H92/100))^(I92/G92))-1),4),2),$L$24+$S$28 + $X$26-0.01,IF(ROUND(ROUND(L92*(((1+(H92/100))^(I92/G92))-1),4),2)+ $X$26>$L$24,$L$24+ $X$26+-0.01,ROUND(ROUND(L92*(((1+(H92/100))^(I92/G92))-1),4),2)+$X$26))) ->  | O92: =IF(B92="","",IF(ISERROR(MATCH(MONTH(C92),$H$18:$H$19,0))=FALSE,$L$23,0) +$L$23) ->  | P92: =IF(B92="","",N92+O92) ->  | S92: =IF(B92="","",$L$25+AC92) ->  | X92: =IF(B92="","",ROUND(L92-M92,2)) ->  | Y92: =IF(B92="","",IF(ROUND(ROUND(L92*(((1+(H92/100))^(I92/G92))-1),4),2) - $L$24<0,0,ROUND(ROUND(L92*(((1+(H92/100))^(I92/G92))-1),4),2) - $L$24)) ->  | Z92: =IF(B92="","",(1+H92/100)^(1/12)-1) ->  | AA92: =IF(B92="","",Q92/((1+Z92)^K92)) -> 
K93: =IF(B93="","",SUM($J$32:J93)) -> 
K94: =IF(B94="","",SUM($J$32:J94)) -> 
K95: =IF(B95="","",SUM($J$32:J95)) -> 
D96: =IF(B96="","",IF(OR(MONTH(C96)=$H$18,MONTH(C96)=$H$19),"D","")) ->  | K96: =IF(B96="","",SUM($J$32:J96)) -> 
B97: =IF(A97="","",IF(A97<=$H$22,0,1)) ->  | K97: =IF(B97="","",SUM($J$32:J97)) -> 
K98: =IF(B98="","",SUM($J$32:J98)) ->  | M98: =IF(A98=$H$13,X97,IF(B98="","",IF((IF(ISERROR(MATCH(MONTH(C98),$H$18:$H$19,0))=FALSE,$L$24 + $S$28,0) + $L$24+$S$28+$X$26)-IF(AND(D98="D",Z98=0),$X$26*2,$X$26)-N98<0,0.01,IF(ISERROR(MATCH(MONTH(C98),$H$18:$H$19,0))=FALSE,$L$24 + $S$28,0)+ ($L$24+$S$28-IF(AND(D98="D",Z98=0),$X$26*2,$X$26))-N98)-AC98)) ->  | Q98: =IF(B98="","",M98+N98 + O98+IF(A98=$H$13,X98,0)) ->  | T98: =IF(B98="","",IF($J$10="sí",$L$26+U98,0)) ->  | V98: =IF(B98="","",IF($K$11="Sí",$J$11+AD98,0)) ->  | W98: =IF(B98="","",Q98+R98+S98+T98+V98) -> 
K99: =IF(B99="","",SUM($J$32:J99)) -> 
K100: =IF(B100="","",SUM($J$32:J100)) -> 
K101: =IF(B101="","",SUM($J$32:J101)) -> 
K102: =IF(B102="","",SUM($J$32:J102)) -> 
K103: =IF(B103="","",SUM($J$32:J103)) -> 
K104: =IF(B104="","",SUM($J$32:J104)) -> 
K105: =IF(B105="","",SUM($J$32:J105)) -> 
K106: =IF(B106="","",SUM($J$32:J106)) -> 
K107: =IF(B107="","",SUM($J$32:J107)) -> 
K108: =IF(B108="","",SUM($J$32:J108)) -> 
K109: =IF(B109="","",SUM($J$32:J109)) -> 
K110: =IF(B110="","",SUM($J$32:J110)) -> 
K111: =IF(B111="","",SUM($J$32:J111)) -> 
K112: =IF(B112="","",SUM($J$32:J112)) -> 
K113: =IF(B113="","",SUM($J$32:J113)) -> 
K114: =IF(B114="","",SUM($J$32:J114)) -> 
K115: =IF(B115="","",SUM($J$32:J115)) -> 
K116: =IF(B116="","",SUM($J$32:J116)) -> 
K117: =IF(B117="","",SUM($J$32:J117)) -> 
K118: =IF(B118="","",SUM($J$32:J118)) -> 
K119: =IF(B119="","",SUM($J$32:J119)) -> 
K120: =IF(B120="","",SUM($J$32:J120)) -> 
K121: =IF(B121="","",SUM($J$32:J121)) -> 
K122: =IF(B122="","",SUM($J$32:J122)) -> 
K123: =IF(B123="","",SUM($J$32:J123)) -> 
K124: =IF(B124="","",SUM($J$32:J124)) -> 
K125: =IF(B125="","",SUM($J$32:J125)) -> 
K126: =IF(B126="","",SUM($J$32:J126)) -> 
K127: =IF(B127="","",SUM($J$32:J127)) -> 
K128: =IF(B128="","",SUM($J$32:J128)) -> 
K129: =IF(B129="","",SUM($J$32:J129)) -> 
K130: =IF(B130="","",SUM($J$32:J130)) -> 
K131: =IF(B131="","",SUM($J$32:J131)) -> 
K132: =IF(B132="","",SUM($J$32:J132)) -> 
K133: =IF(B133="","",SUM($J$32:J133)) -> 
K134: =IF(B134="","",SUM($J$32:J134)) -> 
K135: =IF(B135="","",SUM($J$32:J135)) -> 
K136: =IF(B136="","",SUM($J$32:J136)) -> 
K137: =IF(B137="","",SUM($J$32:J137)) -> 
K138: =IF(B138="","",SUM($J$32:J138)) -> 
K139: =IF(B139="","",SUM($J$32:J139)) -> 
K140: =IF(B140="","",SUM($J$32:J140)) -> 
K141: =IF(B141="","",SUM($J$32:J141)) -> 
K142: =IF(B142="","",SUM($J$32:J142)) -> 
K143: =IF(B143="","",SUM($J$32:J143)) -> 
K144: =IF(B144="","",SUM($J$32:J144)) -> 
K145: =IF(B145="","",SUM($J$32:J145)) -> 
K146: =IF(B146="","",SUM($J$32:J146)) -> 
K147: =IF(B147="","",SUM($J$32:J147)) -> 
K148: =IF(B148="","",SUM($J$32:J148)) -> 
K149: =IF(B149="","",SUM($J$32:J149)) -> 
K150: =IF(B150="","",SUM($J$32:J150)) -> 
K151: =IF(B151="","",SUM($J$32:J151)) -> 
K152: =IF(B152="","",SUM($J$32:J152)) -> 
K153: =IF(B153="","",SUM($J$32:J153)) -> 
K154: =IF(B154="","",SUM($J$32:J154)) -> 
K155: =IF(B155="","",SUM($J$32:J155)) -> 
A156: =IF(A155>=$H$13,"",A155+1) ->  | C156: =IF(B156="","",IF(OR(MONTH(EDATE($S$6,F156))=$H$16,MONTH(EDATE($S$6,F156))=$H$17),IF(ABS($H$17-$H$16)=1,EDATE($S$6,F156+2),EDATE($S$6,F156+1)),EDATE($S$6,F156))) ->  | E156: =IF(B156="","",IF(OR(MONTH(DATE(YEAR(C155) + 1/12,MONTH(C155)+1,DAY(C155)))=$H$16,MONTH(DATE(YEAR(C155) + 1/12,MONTH(C155)+1,DAY(C155)))=$H$17),IF(ABS($H$17-$H$16)=1,E155+1,E155 + 2),E155 + 1)) ->  | F156: =IF(B156="","",F155+1) ->  | G156: =IF(B156="","",$S$9) ->  | H156: =IF(B156="","",$H$8) ->  | I156: =IF(B156="","",C156-C155) ->  | J156: =IF(B156="","",(I156)/30) ->  | K156: =IF(B156="","",SUM($J$32:J156)) ->  | L156: =IF(B156="","",X155) ->  | N156: =IF(B156="","",IF($L$24+$S$28 + $X$26<ROUND(ROUND(L156*(((1+(H156/100))^(I156/G156))-1),4),2),$L$24+$S$28 + $X$26-0.01,IF(ROUND(ROUND(L156*(((1+(H156/100))^(I156/G156))-1),4),2)+ $X$26>$L$24,$L$24+ $X$26+-0.01,ROUND(ROUND(L156*(((1+(H156/100))^(I156/G156))-1),4),2)+$X$26))) ->  | O156: =IF(B156="","",IF(ISERROR(MATCH(MONTH(C156),$H$18:$H$19,0))=FALSE,$L$23,0) +$L$23) ->  | P156: =IF(B156="","",N156+O156) ->  | S156: =IF(B156="","",$L$25+AC156) ->  | X156: =IF(B156="","",ROUND(L156-M156,2)) ->  | Y156: =IF(B156="","",IF(ROUND(ROUND(L156*(((1+(H156/100))^(I156/G156))-1),4),2) - $L$24<0,0,ROUND(ROUND(L156*(((1+(H156/100))^(I156/G156))-1),4),2) - $L$24)) ->  | Z156: =IF(B156="","",(1+H156/100)^(1/12)-1) ->  | AA156: =IF(B156="","",Q156/((1+Z156)^K156)) -> 
K157: =IF(B157="","",SUM($J$32:J157)) -> 
K158: =IF(B158="","",SUM($J$32:J158)) -> 
K159: =IF(B159="","",SUM($J$32:J159)) -> 
D160: =IF(B160="","",IF(OR(MONTH(C160)=$H$18,MONTH(C160)=$H$19),"D","")) ->  | K160: =IF(B160="","",SUM($J$32:J160)) -> 
B161: =IF(A161="","",IF(A161<=$H$22,0,1)) ->  | K161: =IF(B161="","",SUM($J$32:J161)) -> 
K162: =IF(B162="","",SUM($J$32:J162)) ->  | M162: =IF(A162=$H$13,X161,IF(B162="","",IF((IF(ISERROR(MATCH(MONTH(C162),$H$18:$H$19,0))=FALSE,$L$24 + $S$28,0) + $L$24+$S$28+$X$26)-IF(AND(D162="D",Z162=0),$X$26*2,$X$26)-N162<0,0.01,IF(ISERROR(MATCH(MONTH(C162),$H$18:$H$19,0))=FALSE,$L$24 + $S$28,0)+ ($L$24+$S$28-IF(AND(D162="D",Z162=0),$X$26*2,$X$26))-N162)-AC162)) ->  | Q162: =IF(B162="","",M162+N162 + O162+IF(A162=$H$13,X162,0)) ->  | T162: =IF(B162="","",IF($J$10="sí",$L$26+U162,0)) ->  | V162: =IF(B162="","",IF($K$11="Sí",$J$11+AD162,0)) ->  | W162: =IF(B162="","",Q162+R162+S162+T162+V162) -> 
K163: =IF(B163="","",SUM($J$32:J163)) -> 
K164: =IF(B164="","",SUM($J$32:J164)) -> 
K165: =IF(B165="","",SUM($J$32:J165)) -> 
K166: =IF(B166="","",SUM($J$32:J166)) -> 
K167: =IF(B167="","",SUM($J$32:J167)) -> 
K168: =IF(B168="","",SUM($J$32:J168)) -> 
K169: =IF(B169="","",SUM($J$32:J169)) -> 
K170: =IF(B170="","",SUM($J$32:J170)) -> 
K171: =IF(B171="","",SUM($J$32:J171)) -> 
K172: =IF(B172="","",SUM($J$32:J172)) -> 
K173: =IF(B173="","",SUM($J$32:J173)) -> 
K174: =IF(B174="","",SUM($J$32:J174)) -> 
K175: =IF(B175="","",SUM($J$32:J175)) -> 
K176: =IF(B176="","",SUM($J$32:J176)) -> 
K177: =IF(B177="","",SUM($J$32:J177)) -> 
K178: =IF(B178="","",SUM($J$32:J178)) -> 
K179: =IF(B179="","",SUM($J$32:J179)) -> 
K180: =IF(B180="","",SUM($J$32:J180)) -> 
K181: =IF(B181="","",SUM($J$32:J181)) -> 
K182: =IF(B182="","",SUM($J$32:J182)) -> 
K183: =IF(B183="","",SUM($J$32:J183)) -> 
K184: =IF(B184="","",SUM($J$32:J184)) -> 
K185: =IF(B185="","",SUM($J$32:J185)) -> 
K186: =IF(B186="","",SUM($J$32:J186)) -> 
K187: =IF(B187="","",SUM($J$32:J187)) -> 
K188: =IF(B188="","",SUM($J$32:J188)) -> 
K189: =IF(B189="","",SUM($J$32:J189)) -> 
K190: =IF(B190="","",SUM($J$32:J190)) -> 
K191: =IF(B191="","",SUM($J$32:J191)) -> 
K192: =IF(B192="","",SUM($J$32:J192)) -> 
K193: =IF(B193="","",SUM($J$32:J193)) -> 
K194: =IF(B194="","",SUM($J$32:J194)) -> 
K195: =IF(B195="","",SUM($J$32:J195)) -> 
K196: =IF(B196="","",SUM($J$32:J196)) -> 
K197: =IF(B197="","",SUM($J$32:J197)) -> 
K198: =IF(B198="","",SUM($J$32:J198)) -> 
K199: =IF(B199="","",SUM($J$32:J199)) -> 
K200: =IF(B200="","",SUM($J$32:J200)) -> 
K201: =IF(B201="","",SUM($J$32:J201)) -> 
K202: =IF(B202="","",SUM($J$32:J202)) -> 
K203: =IF(B203="","",SUM($J$32:J203)) -> 
K204: =IF(B204="","",SUM($J$32:J204)) -> 
K205: =IF(B205="","",SUM($J$32:J205)) -> 
K206: =IF(B206="","",SUM($J$32:J206)) -> 
K207: =IF(B207="","",SUM($J$32:J207)) -> 
... 793 more rows

Sheet Calculos (hidden)
A1: Factores utilizados en Meses de No Pago para cálculo del valor cuota
A3: N° de Cuota | B3: Equivalente | C3: Fecha | D3: Mes | E3: Marca Cuota No Pago | F3: Factor (10) | G3: Acumulado
A4: 1 | B4: =IF(E4<>"C",IF(ISERROR(1+B3)=TRUE,1,1+B3),IF(ISNUMBER(B3),B3,1)) -> 1 | C4: =+Simulador!S7 -> 2022-04-10 | D4: =MONTH(C4) -> 4 | E4: =IF(ISERROR(MATCH(D4,Simulador!$H$16:$H$17,0))=FALSE,"C",IF(ISERROR(MATCH(D4,Simulador!$H$18:$H$19,0))=FALSE,"D","")) ->  | F4: =IF(E4="C",0,IF(E4 ="D",ROUND(1/((1+Simulador!$S$13)^A4),9) * 2,ROUND(1/((1+Simulador!$S$13)^A4),9))) -> 0.984701405 | G4: =ROUND(F4,9) -> 0.984701405
A5: =A4+1 -> 2 | B5: =IF(E5<>"C",IF(ISERROR(1+B4)=TRUE,1,1+B4),IF(ISNUMBER(B4),B4,1)) -> 2 | C5: =DATE(YEAR(C4) + 1/12,MONTH(C4)+1,DAY(C4)) -> 2022-05-10 | D5: 5 | E5: =IF(ISERROR(MATCH(D5,Simulador!$H$16:$H$17,0))=FALSE,"C",IF(ISERROR(MATCH(D5,Simulador!$H$18:$H$19,0))=FALSE,"D","")) ->  | F5: =IF(E5="C",0,IF(E5 ="D",ROUND(1/((1+Simulador!$S$13)^A5),9) * 2,ROUND(1/((1+Simulador!$S$13)^A5),9))) -> 0.969636858 | G5: =G4+ROUND(F5,9) -> 1.954338263
A6: 3 | B6: 3 | C6: 2022-06-10 | D6: 6 | E6: =IF(ISERROR(MATCH(D6,Simulador!$H$16:$H$17,0))=FALSE,"C",IF(ISERROR(MATCH(D6,Simulador!$H$18:$H$19,0))=FALSE,"D","")) ->  | F6: =IF(E6="C",0,IF(E6 ="D",ROUND(1/((1+Simulador!$S$13)^A6),9) * 2,ROUND(1/((1+Simulador!$S$13)^A6),9))) -> 0.954802777 | G6: =G5+ROUND(F6,9) -> 2.90914104
A7: 4 | B7: 4 | C7: 2022-07-10 | D7: 7 | E7: =IF(ISERROR(MATCH(D7,Simulador!$H$16:$H$17,0))=FALSE,"C",IF(ISERROR(MATCH(D7,Simulador!$H$18:$H$19,0))=FALSE,"D","")) ->  | F7: =IF(E7="C",0,IF(E7 ="D",ROUND(1/((1+Simulador!$S$13)^A7),9) * 2,ROUND(1/((1+Simulador!$S$13)^A7),9))) -> 0.940195636 | G7: 3.849336676
A8: 5 | B8: 5 | C8: 2022-08-10 | D8: 8 | E8: =IF(ISERROR(MATCH(D8,Simulador!$H$16:$H$17,0))=FALSE,"C",IF(ISERROR(MATCH(D8,Simulador!$H$18:$H$19,0))=FALSE,"D","")) ->  | F8: =IF(E8="C",0,IF(E8 ="D",ROUND(1/((1+Simulador!$S$13)^A8),9) * 2,ROUND(1/((1+Simulador!$S$13)^A8),9))) -> 0.925811964 | G8: 4.77514864
A9: 6 | B9: 6 | C9: 2022-09-10 | D9: 9 | E9: =IF(ISERROR(MATCH(D9,Simulador!$H$16:$H$17,0))=FALSE,"C",IF(ISERROR(MATCH(D9,Simulador!$H$18:$H$19,0))=FALSE,"D","")) ->  | F9: =IF(E9="C",0,IF(E9 ="D",ROUND(1/((1+Simulador!$S$13)^A9),9) * 2,ROUND(1/((1+Simulador!$S$13)^A9),9))) -> 0.911648342 | G9: 5.686796982
A10: 7 | B10: 7 | C10: 2022-10-10 | D10: 10 | E10: =IF(ISERROR(MATCH(D10,Simulador!$H$16:$H$17,0))=FALSE,"C",IF(ISERROR(MATCH(D10,Simulador!$H$18:$H$19,0))=FALSE,"D","")) ->  | F10: =IF(E10="C",0,IF(E10 ="D",ROUND(1/((1+Simulador!$S$13)^A10),9) * 2,ROUND(1/((1+Simulador!$S$13)^A10),9))) -> 0.897701404 | G10: 6.584498386
A11: 8 | B11: 8 | C11: 2022-11-10 | D11: 11 | E11: =IF(ISERROR(MATCH(D11,Simulador!$H$16:$H$17,0))=FALSE,"C",IF(ISERROR(MATCH(D11,Simulador!$H$18:$H$19,0))=FALSE,"D","")) ->  | F11: =IF(E11="C",0,IF(E11 ="D",ROUND(1/((1+Simulador!$S$13)^A11),9) * 2,ROUND(1/((1+Simulador!$S$13)^A11),9))) -> 0.883967834 | G11: 7.46846622
A12: 9 | B12: 9 | C12: 2022-12-10 | D12: 12 | E12: =IF(ISERROR(MATCH(D12,Simulador!$H$16:$H$17,0))=FALSE,"C",IF(ISERROR(MATCH(D12,Simulador!$H$18:$H$19,0))=FALSE,"D","")) ->  | F12: =IF(E12="C",0,IF(E12 ="D",ROUND(1/((1+Simulador!$S$13)^A12),9) * 2,ROUND(1/((1+Simulador!$S$13)^A12),9))) -> 0.870444368 | G12: 8.338910588
A13: 10 | B13: 10 | C13: 2023-01-10 | D13: 1 | E13: =IF(ISERROR(MATCH(D13,Simulador!$H$16:$H$17,0))=FALSE,"C",IF(ISERROR(MATCH(D13,Simulador!$H$18:$H$19,0))=FALSE,"D","")) ->  | F13: =IF(E13="C",0,IF(E13 ="D",ROUND(1/((1+Simulador!$S$13)^A13),9) * 2,ROUND(1/((1+Simulador!$S$13)^A13),9))) -> 0.857127793 | G13: 9.196038381
A14: 11 | B14: 11 | C14: 2023-02-10 | D14: 2 | E14: =IF(ISERROR(MATCH(D14,Simulador!$H$16:$H$17,0))=FALSE,"C",IF(ISERROR(MATCH(D14,Simulador!$H$18:$H$19,0))=FALSE,"D","")) ->  | F14: =IF(E14="C",0,IF(E14 ="D",ROUND(1/((1+Simulador!$S$13)^A14),9) * 2,ROUND(1/((1+Simulador!$S$13)^A14),9))) -> 0.844014942 | G14: 10.04005332
A15: 12 | B15: 12 | C15: 2023-03-10 | D15: 3 | E15: =IF(ISERROR(MATCH(D15,Simulador!$H$16:$H$17,0))=FALSE,"C",IF(ISERROR(MATCH(D15,Simulador!$H$18:$H$19,0))=FALSE,"D","")) ->  | F15: =IF(E15="C",0,IF(E15 ="D",ROUND(1/((1+Simulador!$S$13)^A15),9) * 2,ROUND(1/((1+Simulador!$S$13)^A15),9))) -> 0.8311027 | G15: 10.87115602
A16: 13 | B16: 13 | C16: 2023-04-10 | D16: 4 | E16: =IF(ISERROR(MATCH(D16,Simulador!$H$16:$H$17,0))=FALSE,"C",IF(ISERROR(MATCH(D16,Simulador!$H$18:$H$19,0))=FALSE,"D","")) ->  | F16: =IF(E16="C",0,IF(E16 ="D",ROUND(1/((1+Simulador!$S$13)^A16),9) * 2,ROUND(1/((1+Simulador!$S$13)^A16),9))) -> 0.818387997 | G16: 11.68954402
A17: 14 | B17: 14 | C17: 2023-05-10 | D17: 5 | E17: =IF(ISERROR(MATCH(D17,Simulador!$H$16:$H$17,0))=FALSE,"C",IF(ISERROR(MATCH(D17,Simulador!$H$18:$H$19,0))=FALSE,"D","")) ->  | F17: =IF(E17="C",0,IF(E17 ="D",ROUND(1/((1+Simulador!$S$13)^A17),9) * 2,ROUND(1/((1+Simulador!$S$13)^A17),9))) -> 0.80586781 | G17: 12.49541183
A18: 15 | B18: 15 | C18: 2023-06-10 | D18: 6 | E18: =IF(ISERROR(MATCH(D18,Simulador!$H$16:$H$17,0))=FALSE,"C",IF(ISERROR(MATCH(D18,Simulador!$H$18:$H$19,0))=FALSE,"D","")) ->  | F18: =IF(E18="C",0,IF(E18 ="D",ROUND(1/((1+Simulador!$S$13)^A18),9) * 2,ROUND(1/((1+Simulador!$S$13)^A18),9))) -> 0.793539166 | G18: 13.288951
A19: 16 | B19: 16 | C19: 2023-07-10 | D19: 7 | E19: =IF(ISERROR(MATCH(D19,Simulador!$H$16:$H$17,0))=FALSE,"C",IF(ISERROR(MATCH(D19,Simulador!$H$18:$H$19,0))=FALSE,"D","")) ->  | F19: =IF(E19="C",0,IF(E19 ="D",ROUND(1/((1+Simulador!$S$13)^A19),9) * 2,ROUND(1/((1+Simulador!$S$13)^A19),9))) -> 0.781399132 | G19: 14.07035013
A20: 17 | B20: 17 | C20: 2023-08-10 | D20: 8 | E20: =IF(ISERROR(MATCH(D20,Simulador!$H$16:$H$17,0))=FALSE,"C",IF(ISERROR(MATCH(D20,Simulador!$H$18:$H$19,0))=FALSE,"D","")) ->  | F20: =IF(E20="C",0,IF(E20 ="D",ROUND(1/((1+Simulador!$S$13)^A20),9) * 2,ROUND(1/((1+Simulador!$S$13)^A20),9))) -> 0.769444823 | G20: 14.83979495
A21: 18 | B21: 18 | C21: 2023-09-10 | D21: 9 | E21: =IF(ISERROR(MATCH(D21,Simulador!$H$16:$H$17,0))=FALSE,"C",IF(ISERROR(MATCH(D21,Simulador!$H$18:$H$19,0))=FALSE,"D","")) ->  | F21: =IF(E21="C",0,IF(E21 ="D",ROUND(1/((1+Simulador!$S$13)^A21),9) * 2,ROUND(1/((1+Simulador!$S$13)^A21),9))) -> 0.757673399 | G21: 15.59746835
A22: 19 | B22: 19 | C22: 2023-10-10 | D22: 10 | E22: =IF(ISERROR(MATCH(D22,Simulador!$H$16:$H$17,0))=FALSE,"C",IF(ISERROR(MATCH(D22,Simulador!$H$18:$H$19,0))=FALSE,"D","")) ->  | F22: =IF(E22="C",0,IF(E22 ="D",ROUND(1/((1+Simulador!$S$13)^A22),9) * 2,ROUND(1/((1+Simulador!$S$13)^A22),9))) -> 0.74608206 | G22: 16.34355041
A23: 20 | B23: 20 | C23: 2023-11-10 | D23: 11 | E23: =IF(ISERROR(MATCH(D23,Simulador!$H$16:$H$17,0))=FALSE,"C",IF(ISERROR(MATCH(D23,Simulador!$H$18:$H$19,0))=FALSE,"D","")) ->  | F23: =IF(E23="C",0,IF(E23 ="D",ROUND(1/((1+Simulador!$S$13)^A23),9) * 2,ROUND(1/((1+Simulador!$S$13)^A23),9))) -> 0.734668053 | G23: 17.07821846
A24: 21 | B24: 21 | C24: 2023-12-10 | D24: 12 | E24: =IF(ISERROR(MATCH(D24,Simulador!$H$16:$H$17,0))=FALSE,"C",IF(ISERROR(MATCH(D24,Simulador!$H$18:$H$19,0))=FALSE,"D","")) ->  | F24: =IF(E24="C",0,IF(E24 ="D",ROUND(1/((1+Simulador!$S$13)^A24),9) * 2,ROUND(1/((1+Simulador!$S$13)^A24),9))) -> 0.723428665 | G24: 17.80164713
A25: 22 | B25: 22 | C25: 2024-01-10 | D25: 1 | E25: =IF(ISERROR(MATCH(D25,Simulador!$H$16:$H$17,0))=FALSE,"C",IF(ISERROR(MATCH(D25,Simulador!$H$18:$H$19,0))=FALSE,"D","")) ->  | F25: =IF(E25="C",0,IF(E25 ="D",ROUND(1/((1+Simulador!$S$13)^A25),9) * 2,ROUND(1/((1+Simulador!$S$13)^A25),9))) -> 0.712361223 | G25: 18.51400835
A26: 23 | B26: 23 | C26: 2024-02-10 | D26: 2 | E26: =IF(ISERROR(MATCH(D26,Simulador!$H$16:$H$17,0))=FALSE,"C",IF(ISERROR(MATCH(D26,Simulador!$H$18:$H$19,0))=FALSE,"D","")) ->  | F26: =IF(E26="C",0,IF(E26 ="D",ROUND(1/((1+Simulador!$S$13)^A26),9) * 2,ROUND(1/((1+Simulador!$S$13)^A26),9))) -> 0.701463097 | G26: 19.21547145
A27: 24 | B27: 24 | C27: 2024-03-10 | D27: 3 | E27: =IF(ISERROR(MATCH(D27,Simulador!$H$16:$H$17,0))=FALSE,"C",IF(ISERROR(MATCH(D27,Simulador!$H$18:$H$19,0))=FALSE,"D","")) ->  | F27: =IF(E27="C",0,IF(E27 ="D",ROUND(1/((1+Simulador!$S$13)^A27),9) * 2,ROUND(1/((1+Simulador!$S$13)^A27),9))) -> 0.690731698 | G27: 19.90620315
A28: 25 | B28: 25 | C28: 2024-04-10 | D28: 4 | E28: =IF(ISERROR(MATCH(D28,Simulador!$H$16:$H$17,0))=FALSE,"C",IF(ISERROR(MATCH(D28,Simulador!$H$18:$H$19,0))=FALSE,"D","")) ->  | F28: =IF(E28="C",0,IF(E28 ="D",ROUND(1/((1+Simulador!$S$13)^A28),9) * 2,ROUND(1/((1+Simulador!$S$13)^A28),9))) -> 0.680164474 | G28: 20.58636762
A29: 26 | B29: 26 | C29: 2024-05-10 | D29: 5 | E29: =IF(ISERROR(MATCH(D29,Simulador!$H$16:$H$17,0))=FALSE,"C",IF(ISERROR(MATCH(D29,Simulador!$H$18:$H$19,0))=FALSE,"D","")) ->  | F29: =IF(E29="C",0,IF(E29 ="D",ROUND(1/((1+Simulador!$S$13)^A29),9) * 2,ROUND(1/((1+Simulador!$S$13)^A29),9))) -> 0.669758913 | G29: 21.25612653
A30: 27 | B30: 27 | C30: 2024-06-10 | D30: 6 | E30: =IF(ISERROR(MATCH(D30,Simulador!$H$16:$H$17,0))=FALSE,"C",IF(ISERROR(MATCH(D30,Simulador!$H$18:$H$19,0))=FALSE,"D","")) ->  | F30: =IF(E30="C",0,IF(E30 ="D",ROUND(1/((1+Simulador!$S$13)^A30),9) * 2,ROUND(1/((1+Simulador!$S$13)^A30),9))) -> 0.659512543 | G30: 21.91563908
A31: 28 | B31: 28 | C31: 2024-07-10 | D31: 7 | E31: =IF(ISERROR(MATCH(D31,Simulador!$H$16:$H$17,0))=FALSE,"C",IF(ISERROR(MATCH(D31,Simulador!$H$18:$H$19,0))=FALSE,"D","")) ->  | F31: =IF(E31="C",0,IF(E31 ="D",ROUND(1/((1+Simulador!$S$13)^A31),9) * 2,ROUND(1/((1+Simulador!$S$13)^A31),9))) -> 0.649422928 | G31: 22.565062
A32: 29 | B32: 29 | C32: 2024-08-10 | D32: 8 | E32: =IF(ISERROR(MATCH(D32,Simulador!$H$16:$H$17,0))=FALSE,"C",IF(ISERROR(MATCH(D32,Simulador!$H$18:$H$19,0))=FALSE,"D","")) ->  | F32: =IF(E32="C",0,IF(E32 ="D",ROUND(1/((1+Simulador!$S$13)^A32),9) * 2,ROUND(1/((1+Simulador!$S$13)^A32),9))) -> 0.63948767 | G32: 23.20454967
A33: 30 | B33: 30 | C33: 2024-09-10 | D33: 9 | E33: =IF(ISERROR(MATCH(D33,Simulador!$H$16:$H$17,0))=FALSE,"C",IF(ISERROR(MATCH(D33,Simulador!$H$18:$H$19,0))=FALSE,"D","")) ->  | F33: =IF(E33="C",0,IF(E33 ="D",ROUND(1/((1+Simulador!$S$13)^A33),9) * 2,ROUND(1/((1+Simulador!$S$13)^A33),9))) -> 0.629704407 | G33: 23.83425408
A34: 31 | B34: 31 | C34: 2024-10-10 | D34: 10 | E34: =IF(ISERROR(MATCH(D34,Simulador!$H$16:$H$17,0))=FALSE,"C",IF(ISERROR(MATCH(D34,Simulador!$H$18:$H$19,0))=FALSE,"D","")) ->  | F34: =IF(E34="C",0,IF(E34 ="D",ROUND(1/((1+Simulador!$S$13)^A34),9) * 2,ROUND(1/((1+Simulador!$S$13)^A34),9))) -> 0.620070815 | G34: 24.4543249
A35: 32 | B35: 32 | C35: 2024-11-10 | D35: 11 | E35: =IF(ISERROR(MATCH(D35,Simulador!$H$16:$H$17,0))=FALSE,"C",IF(ISERROR(MATCH(D35,Simulador!$H$18:$H$19,0))=FALSE,"D","")) ->  | F35: =IF(E35="C",0,IF(E35 ="D",ROUND(1/((1+Simulador!$S$13)^A35),9) * 2,ROUND(1/((1+Simulador!$S$13)^A35),9))) -> 0.610584603 | G35: 25.0649095
A36: 33 | B36: 33 | C36: 2024-12-10 | D36: 12 | E36: =IF(ISERROR(MATCH(D36,Simulador!$H$16:$H$17,0))=FALSE,"C",IF(ISERROR(MATCH(D36,Simulador!$H$18:$H$19,0))=FALSE,"D","")) ->  | F36: =IF(E36="C",0,IF(E36 ="D",ROUND(1/((1+Simulador!$S$13)^A36),9) * 2,ROUND(1/((1+Simulador!$S$13)^A36),9))) -> 0.601243516 | G36: 25.66615302
A37: 34 | B37: 34 | C37: 2025-01-10 | D37: 1 | E37: =IF(ISERROR(MATCH(D37,Simulador!$H$16:$H$17,0))=FALSE,"C",IF(ISERROR(MATCH(D37,Simulador!$H$18:$H$19,0))=FALSE,"D","")) ->  | F37: =IF(E37="C",0,IF(E37 ="D",ROUND(1/((1+Simulador!$S$13)^A37),9) * 2,ROUND(1/((1+Simulador!$S$13)^A37),9))) -> 0.592045336 | G37: 26.25819835
A38: 35 | B38: 35 | C38: 2025-02-10 | D38: 2 | E38: =IF(ISERROR(MATCH(D38,Simulador!$H$16:$H$17,0))=FALSE,"C",IF(ISERROR(MATCH(D38,Simulador!$H$18:$H$19,0))=FALSE,"D","")) ->  | F38: =IF(E38="C",0,IF(E38 ="D",ROUND(1/((1+Simulador!$S$13)^A38),9) * 2,ROUND(1/((1+Simulador!$S$13)^A38),9))) -> 0.582987874 | G38: 26.84118623
A39: 36 | B39: 36 | C39: 2025-03-10 | D39: 3 | E39: =IF(ISERROR(MATCH(D39,Simulador!$H$16:$H$17,0))=FALSE,"C",IF(ISERROR(MATCH(D39,Simulador!$H$18:$H$19,0))=FALSE,"D","")) ->  | F39: =IF(E39="C",0,IF(E39 ="D",ROUND(1/((1+Simulador!$S$13)^A39),9) * 2,ROUND(1/((1+Simulador!$S$13)^A39),9))) -> 0.574068979 | G39: 27.4152552
A40: 37 | B40: 37 | C40: 2025-04-10 | D40: 4 | E40: =IF(ISERROR(MATCH(D40,Simulador!$H$16:$H$17,0))=FALSE,"C",IF(ISERROR(MATCH(D40,Simulador!$H$18:$H$19,0))=FALSE,"D","")) ->  | F40: =IF(E40="C",0,IF(E40 ="D",ROUND(1/((1+Simulador!$S$13)^A40),9) * 2,ROUND(1/((1+Simulador!$S$13)^A40),9))) -> 0.56528653 | G40: 27.98054173
A41: 38 | B41: 38 | C41: 2025-05-10 | D41: 5 | E41: =IF(ISERROR(MATCH(D41,Simulador!$H$16:$H$17,0))=FALSE,"C",IF(ISERROR(MATCH(D41,Simulador!$H$18:$H$19,0))=FALSE,"D","")) ->  | F41: =IF(E41="C",0,IF(E41 ="D",ROUND(1/((1+Simulador!$S$13)^A41),9) * 2,ROUND(1/((1+Simulador!$S$13)^A41),9))) -> 0.556638441 | G41: 28.53718018
A42: 39 | B42: 39 | C42: 2025-06-10 | D42: 6 | E42: =IF(ISERROR(MATCH(D42,Simulador!$H$16:$H$17,0))=FALSE,"C",IF(ISERROR(MATCH(D42,Simulador!$H$18:$H$19,0))=FALSE,"D","")) ->  | F42: =IF(E42="C",0,IF(E42 ="D",ROUND(1/((1+Simulador!$S$13)^A42),9) * 2,ROUND(1/((1+Simulador!$S$13)^A42),9))) -> 0.548122655 | G42: 29.08530283
A43: 40 | B43: 40 | C43: 2025-07-10 | D43: 7 | E43: =IF(ISERROR(MATCH(D43,Simulador!$H$16:$H$17,0))=FALSE,"C",IF(ISERROR(MATCH(D43,Simulador!$H$18:$H$19,0))=FALSE,"D","")) ->  | F43: =IF(E43="C",0,IF(E43 ="D",ROUND(1/((1+Simulador!$S$13)^A43),9) * 2,ROUND(1/((1+Simulador!$S$13)^A43),9))) -> 0.539737149 | G43: 29.62503998
A44: 41 | B44: 41 | C44: 2025-08-10 | D44: 8 | E44: =IF(ISERROR(MATCH(D44,Simulador!$H$16:$H$17,0))=FALSE,"C",IF(ISERROR(MATCH(D44,Simulador!$H$18:$H$19,0))=FALSE,"D","")) ->  | F44: =IF(E44="C",0,IF(E44 ="D",ROUND(1/((1+Simulador!$S$13)^A44),9) * 2,ROUND(1/((1+Simulador!$S$13)^A44),9))) -> 0.531479929 | G44: 30.15651991
A45: 42 | B45: 42 | C45: 2025-09-10 | D45: 9 | E45: =IF(ISERROR(MATCH(D45,Simulador!$H$16:$H$17,0))=FALSE,"C",IF(ISERROR(MATCH(D45,Simulador!$H$18:$H$19,0))=FALSE,"D","")) ->  | F45: =IF(E45="C",0,IF(E45 ="D",ROUND(1/((1+Simulador!$S$13)^A45),9) * 2,ROUND(1/((1+Simulador!$S$13)^A45),9))) -> 0.523349033 | G45: 30.67986894
A46: 43 | B46: 43 | C46: 2025-10-10 | D46: 10 | E46: =IF(ISERROR(MATCH(D46,Simulador!$H$16:$H$17,0))=FALSE,"C",IF(ISERROR(MATCH(D46,Simulador!$H$18:$H$19,0))=FALSE,"D","")) ->  | F46: =IF(E46="C",0,IF(E46 ="D",ROUND(1/((1+Simulador!$S$13)^A46),9) * 2,ROUND(1/((1+Simulador!$S$13)^A46),9))) -> 0.515342528 | G46: 31.19521147
A47: 44 | B47: 44 | C47: 2025-11-10 | D47: 11 | E47: =IF(ISERROR(MATCH(D47,Simulador!$H$16:$H$17,0))=FALSE,"C",IF(ISERROR(MATCH(D47,Simulador!$H$18:$H$19,0))=FALSE,"D","")) ->  | F47: =IF(E47="C",0,IF(E47 ="D",ROUND(1/((1+Simulador!$S$13)^A47),9) * 2,ROUND(1/((1+Simulador!$S$13)^A47),9))) -> 0.507458512 | G47: 31.70266998
A48: 45 | B48: 45 | C48: 2025-12-10 | D48: 12 | E48: =IF(ISERROR(MATCH(D48,Simulador!$H$16:$H$17,0))=FALSE,"C",IF(ISERROR(MATCH(D48,Simulador!$H$18:$H$19,0))=FALSE,"D","")) ->  | F48: =IF(E48="C",0,IF(E48 ="D",ROUND(1/((1+Simulador!$S$13)^A48),9) * 2,ROUND(1/((1+Simulador!$S$13)^A48),9))) -> 0.49969511 | G48: 32.20236509
A49: 46 | B49: 46 | C49: 2026-01-10 | D49: 1 | E49: =IF(ISERROR(MATCH(D49,Simulador!$H$16:$H$17,0))=FALSE,"C",IF(ISERROR(MATCH(D49,Simulador!$H$18:$H$19,0))=FALSE,"D","")) ->  | F49: =IF(E49="C",0,IF(E49 ="D",ROUND(1/((1+Simulador!$S$13)^A49),9) * 2,ROUND(1/((1+Simulador!$S$13)^A49),9))) -> 0.492050477 | G49: 32.69441557
A50: 47 | B50: 47 | C50: 2026-02-10 | D50: 2 | E50: =IF(ISERROR(MATCH(D50,Simulador!$H$16:$H$17,0))=FALSE,"C",IF(ISERROR(MATCH(D50,Simulador!$H$18:$H$19,0))=FALSE,"D","")) ->  | F50: =IF(E50="C",0,IF(E50 ="D",ROUND(1/((1+Simulador!$S$13)^A50),9) * 2,ROUND(1/((1+Simulador!$S$13)^A50),9))) -> 0.484522796 | G50: 33.17893836
A51: 48 | B51: 48 | C51: 2026-03-10 | D51: 3 | E51: =IF(ISERROR(MATCH(D51,Simulador!$H$16:$H$17,0))=FALSE,"C",IF(ISERROR(MATCH(D51,Simulador!$H$18:$H$19,0))=FALSE,"D","")) ->  | F51: =IF(E51="C",0,IF(E51 ="D",ROUND(1/((1+Simulador!$S$13)^A51),9) * 2,ROUND(1/((1+Simulador!$S$13)^A51),9))) -> 0.477110278 | G51: 33.65604864
A52: 49 | B52: 49 | C52: 2026-04-10 | D52: 4 | E52: =IF(ISERROR(MATCH(D52,Simulador!$H$16:$H$17,0))=FALSE,"C",IF(ISERROR(MATCH(D52,Simulador!$H$18:$H$19,0))=FALSE,"D","")) ->  | F52: =IF(E52="C",0,IF(E52 ="D",ROUND(1/((1+Simulador!$S$13)^A52),9) * 2,ROUND(1/((1+Simulador!$S$13)^A52),9))) -> 0.469811162 | G52: 34.1258598
A53: 50 | B53: 50 | C53: 2026-05-10 | D53: 5 | E53: =IF(ISERROR(MATCH(D53,Simulador!$H$16:$H$17,0))=FALSE,"C",IF(ISERROR(MATCH(D53,Simulador!$H$18:$H$19,0))=FALSE,"D","")) ->  | F53: =IF(E53="C",0,IF(E53 ="D",ROUND(1/((1+Simulador!$S$13)^A53),9) * 2,ROUND(1/((1+Simulador!$S$13)^A53),9))) -> 0.462623711 | G53: 34.58848352
A54: 51 | B54: 51 | C54: 2026-06-10 | D54: 6 | E54: =IF(ISERROR(MATCH(D54,Simulador!$H$16:$H$17,0))=FALSE,"C",IF(ISERROR(MATCH(D54,Simulador!$H$18:$H$19,0))=FALSE,"D","")) ->  | F54: =IF(E54="C",0,IF(E54 ="D",ROUND(1/((1+Simulador!$S$13)^A54),9) * 2,ROUND(1/((1+Simulador!$S$13)^A54),9))) -> 0.455546219 | G54: 35.04402973
A55: 52 | B55: 52 | C55: 2026-07-10 | D55: 7 | E55: =IF(ISERROR(MATCH(D55,Simulador!$H$16:$H$17,0))=FALSE,"C",IF(ISERROR(MATCH(D55,Simulador!$H$18:$H$19,0))=FALSE,"D","")) ->  | F55: =IF(E55="C",0,IF(E55 ="D",ROUND(1/((1+Simulador!$S$13)^A55),9) * 2,ROUND(1/((1+Simulador!$S$13)^A55),9))) -> 0.448577002 | G55: 35.49260674
A56: 53 | B56: 53 | C56: 2026-08-10 | D56: 8 | E56: =IF(ISERROR(MATCH(D56,Simulador!$H$16:$H$17,0))=FALSE,"C",IF(ISERROR(MATCH(D56,Simulador!$H$18:$H$19,0))=FALSE,"D","")) ->  | F56: =IF(E56="C",0,IF(E56 ="D",ROUND(1/((1+Simulador!$S$13)^A56),9) * 2,ROUND(1/((1+Simulador!$S$13)^A56),9))) -> 0.441714404 | G56: 35.93432114
A57: 54 | B57: 54 | C57: 2026-09-10 | D57: 9 | E57: =IF(ISERROR(MATCH(D57,Simulador!$H$16:$H$17,0))=FALSE,"C",IF(ISERROR(MATCH(D57,Simulador!$H$18:$H$19,0))=FALSE,"D","")) ->  | F57: =IF(E57="C",0,IF(E57 ="D",ROUND(1/((1+Simulador!$S$13)^A57),9) * 2,ROUND(1/((1+Simulador!$S$13)^A57),9))) -> 0.434956794 | G57: 36.36927793
A58: 55 | B58: 55 | C58: 2026-10-10 | D58: 10 | E58: =IF(ISERROR(MATCH(D58,Simulador!$H$16:$H$17,0))=FALSE,"C",IF(ISERROR(MATCH(D58,Simulador!$H$18:$H$19,0))=FALSE,"D","")) ->  | F58: =IF(E58="C",0,IF(E58 ="D",ROUND(1/((1+Simulador!$S$13)^A58),9) * 2,ROUND(1/((1+Simulador!$S$13)^A58),9))) -> 0.428302567 | G58: 36.7975805
A59: 56 | B59: 56 | C59: 2026-11-10 | D59: 11 | E59: =IF(ISERROR(MATCH(D59,Simulador!$H$16:$H$17,0))=FALSE,"C",IF(ISERROR(MATCH(D59,Simulador!$H$18:$H$19,0))=FALSE,"D","")) ->  | F59: =IF(E59="C",0,IF(E59 ="D",ROUND(1/((1+Simulador!$S$13)^A59),9) * 2,ROUND(1/((1+Simulador!$S$13)^A59),9))) -> 0.421750139 | G59: 37.21933064
A60: 57 | B60: 57 | C60: 2026-12-10 | D60: 12 | E60: =IF(ISERROR(MATCH(D60,Simulador!$H$16:$H$17,0))=FALSE,"C",IF(ISERROR(MATCH(D60,Simulador!$H$18:$H$19,0))=FALSE,"D","")) ->  | F60: =IF(E60="C",0,IF(E60 ="D",ROUND(1/((1+Simulador!$S$13)^A60),9) * 2,ROUND(1/((1+Simulador!$S$13)^A60),9))) -> 0.415297955 | G60: 37.6346286
A61: 58 | B61: 58 | C61: 2027-01-10 | D61: 1 | E61: =IF(ISERROR(MATCH(D61,Simulador!$H$16:$H$17,0))=FALSE,"C",IF(ISERROR(MATCH(D61,Simulador!$H$18:$H$19,0))=FALSE,"D","")) ->  | F61: =IF(E61="C",0,IF(E61 ="D",ROUND(1/((1+Simulador!$S$13)^A61),9) * 2,ROUND(1/((1+Simulador!$S$13)^A61),9))) -> 0.40894448 | G61: 38.04357308
A62: 59 | B62: 59 | C62: 2027-02-10 | D62: 2 | E62: =IF(ISERROR(MATCH(D62,Simulador!$H$16:$H$17,0))=FALSE,"C",IF(ISERROR(MATCH(D62,Simulador!$H$18:$H$19,0))=FALSE,"D","")) ->  | F62: =IF(E62="C",0,IF(E62 ="D",ROUND(1/((1+Simulador!$S$13)^A62),9) * 2,ROUND(1/((1+Simulador!$S$13)^A62),9))) -> 0.402688204 | G62: 38.44626128
A63: 60 | B63: 60 | C63: 2027-03-10 | D63: 3 | E63: =IF(ISERROR(MATCH(D63,Simulador!$H$16:$H$17,0))=FALSE,"C",IF(ISERROR(MATCH(D63,Simulador!$H$18:$H$19,0))=FALSE,"D","")) ->  | F63: =IF(E63="C",0,IF(E63 ="D",ROUND(1/((1+Simulador!$S$13)^A63),9) * 2,ROUND(1/((1+Simulador!$S$13)^A63),9))) -> 0.39652764 | G63: 38.84278892
A64: 61 | B64: 61 | C64: 2027-04-10 | D64: 4 | E64: =IF(ISERROR(MATCH(D64,Simulador!$H$16:$H$17,0))=FALSE,"C",IF(ISERROR(MATCH(D64,Simulador!$H$18:$H$19,0))=FALSE,"D","")) ->  | F64: =IF(E64="C",0,IF(E64 ="D",ROUND(1/((1+Simulador!$S$13)^A64),9) * 2,ROUND(1/((1+Simulador!$S$13)^A64),9))) -> 0.390461325 | G64: 39.23325024
A65: 62 | B65: 62 | C65: 2027-05-10 | D65: 5 | E65: =IF(ISERROR(MATCH(D65,Simulador!$H$16:$H$17,0))=FALSE,"C",IF(ISERROR(MATCH(D65,Simulador!$H$18:$H$19,0))=FALSE,"D","")) ->  | F65: =IF(E65="C",0,IF(E65 ="D",ROUND(1/((1+Simulador!$S$13)^A65),9) * 2,ROUND(1/((1+Simulador!$S$13)^A65),9))) -> 0.384487815 | G65: 39.61773806
A66: 63 | B66: 63 | C66: 2027-06-10 | D66: 6 | E66: =IF(ISERROR(MATCH(D66,Simulador!$H$16:$H$17,0))=FALSE,"C",IF(ISERROR(MATCH(D66,Simulador!$H$18:$H$19,0))=FALSE,"D","")) ->  | F66: =IF(E66="C",0,IF(E66 ="D",ROUND(1/((1+Simulador!$S$13)^A66),9) * 2,ROUND(1/((1+Simulador!$S$13)^A66),9))) -> 0.378605692 | G66: 39.99634375
A67: 64 | B67: 64 | C67: 2027-07-10 | D67: 7 | E67: =IF(ISERROR(MATCH(D67,Simulador!$H$16:$H$17,0))=FALSE,"C",IF(ISERROR(MATCH(D67,Simulador!$H$18:$H$19,0))=FALSE,"D","")) ->  | F67: =IF(E67="C",0,IF(E67 ="D",ROUND(1/((1+Simulador!$S$13)^A67),9) * 2,ROUND(1/((1+Simulador!$S$13)^A67),9))) -> 0.372813557 | G67: 40.36915731
A68: 65 | B68: 65 | C68: 2027-08-10 | D68: =MONTH(C68) -> 8 | E68: =IF(ISERROR(MATCH(D68,Simulador!$H$16:$H$17,0))=FALSE,"C",IF(ISERROR(MATCH(D68,Simulador!$H$18:$H$19,0))=FALSE,"D","")) ->  | F68: =IF(E68="C",0,IF(E68 ="D",ROUND(1/((1+Simulador!$S$13)^A68),9) * 2,ROUND(1/((1+Simulador!$S$13)^A68),9))) -> 0.367110034 | G68: 40.73626734
A69: =A68+1 -> 66 | B69: =IF(E69<>"C",IF(ISERROR(1+B68)=TRUE,1,1+B68),IF(ISNUMBER(B68),B68,1)) -> 66 | C69: =DATE(YEAR(C68) + 1/12,MONTH(C68)+1,DAY(C68)) -> 2027-09-10 | D69: 9 | E69: =IF(ISERROR(MATCH(D69,Simulador!$H$16:$H$17,0))=FALSE,"C",IF(ISERROR(MATCH(D69,Simulador!$H$18:$H$19,0))=FALSE,"D","")) ->  | F69: =IF(E69="C",0,IF(E69 ="D",ROUND(1/((1+Simulador!$S$13)^A69),9) * 2,ROUND(1/((1+Simulador!$S$13)^A69),9))) -> 0.361493766 | G69: 41.09776111
A70: 67 | B70: 67 | C70: 2027-10-10 | D70: 10 | E70: =IF(ISERROR(MATCH(D70,Simulador!$H$16:$H$17,0))=FALSE,"C",IF(ISERROR(MATCH(D70,Simulador!$H$18:$H$19,0))=FALSE,"D","")) ->  | F70: =IF(E70="C",0,IF(E70 ="D",ROUND(1/((1+Simulador!$S$13)^A70),9) * 2,ROUND(1/((1+Simulador!$S$13)^A70),9))) -> 0.35596342 | G70: =G69+ROUND(F70,9) -> 41.45372453
A71: 68 | B71: 68 | C71: 2027-11-10 | D71: 11 | E71: =IF(ISERROR(MATCH(D71,Simulador!$H$16:$H$17,0))=FALSE,"C",IF(ISERROR(MATCH(D71,Simulador!$H$18:$H$19,0))=FALSE,"D","")) ->  | F71: =IF(E71="C",0,IF(E71 ="D",ROUND(1/((1+Simulador!$S$13)^A71),9) * 2,ROUND(1/((1+Simulador!$S$13)^A71),9))) -> 0.350517679 | G71: 41.80424221
A72: 69 | B72: 69 | C72: 2027-12-10 | D72: 12 | E72: =IF(ISERROR(MATCH(D72,Simulador!$H$16:$H$17,0))=FALSE,"C",IF(ISERROR(MATCH(D72,Simulador!$H$18:$H$19,0))=FALSE,"D","")) ->  | F72: =IF(E72="C",0,IF(E72 ="D",ROUND(1/((1+Simulador!$S$13)^A72),9) * 2,ROUND(1/((1+Simulador!$S$13)^A72),9))) -> 0.345155252 | G72: 42.14939746
A73: 70 | B73: 70 | C73: 2028-01-10 | D73: 1 | E73: =IF(ISERROR(MATCH(D73,Simulador!$H$16:$H$17,0))=FALSE,"C",IF(ISERROR(MATCH(D73,Simulador!$H$18:$H$19,0))=FALSE,"D","")) ->  | F73: =IF(E73="C",0,IF(E73 ="D",ROUND(1/((1+Simulador!$S$13)^A73),9) * 2,ROUND(1/((1+Simulador!$S$13)^A73),9))) -> 0.339874861 | G73: 42.48927232
A74: 71 | B74: 71 | C74: 2028-02-10 | D74: 2 | E74: =IF(ISERROR(MATCH(D74,Simulador!$H$16:$H$17,0))=FALSE,"C",IF(ISERROR(MATCH(D74,Simulador!$H$18:$H$19,0))=FALSE,"D","")) ->  | F74: =IF(E74="C",0,IF(E74 ="D",ROUND(1/((1+Simulador!$S$13)^A74),9) * 2,ROUND(1/((1+Simulador!$S$13)^A74),9))) -> 0.334675254 | G74: 42.82394757
A75: 72 | B75: 72 | C75: 2028-03-10 | D75: 3 | E75: =IF(ISERROR(MATCH(D75,Simulador!$H$16:$H$17,0))=FALSE,"C",IF(ISERROR(MATCH(D75,Simulador!$H$18:$H$19,0))=FALSE,"D","")) ->  | F75: =IF(E75="C",0,IF(E75 ="D",ROUND(1/((1+Simulador!$S$13)^A75),9) * 2,ROUND(1/((1+Simulador!$S$13)^A75),9))) -> 0.329555193 | G75: 43.15350277
A76: 73 | B76: 73 | C76: 2028-04-10 | D76: 4 | E76: =IF(ISERROR(MATCH(D76,Simulador!$H$16:$H$17,0))=FALSE,"C",IF(ISERROR(MATCH(D76,Simulador!$H$18:$H$19,0))=FALSE,"D","")) ->  | F76: =IF(E76="C",0,IF(E76 ="D",ROUND(1/((1+Simulador!$S$13)^A76),9) * 2,ROUND(1/((1+Simulador!$S$13)^A76),9))) -> 0.324513461 | G76: 43.47801623
A77: 74 | B77: 74 | C77: 2028-05-10 | D77: 5 | E77: =IF(ISERROR(MATCH(D77,Simulador!$H$16:$H$17,0))=FALSE,"C",IF(ISERROR(MATCH(D77,Simulador!$H$18:$H$19,0))=FALSE,"D","")) ->  | F77: =IF(E77="C",0,IF(E77 ="D",ROUND(1/((1+Simulador!$S$13)^A77),9) * 2,ROUND(1/((1+Simulador!$S$13)^A77),9))) -> 0.319548861 | G77: 43.79756509
A78: 75 | B78: 75 | C78: 2028-06-10 | D78: 6 | E78: =IF(ISERROR(MATCH(D78,Simulador!$H$16:$H$17,0))=FALSE,"C",IF(ISERROR(MATCH(D78,Simulador!$H$18:$H$19,0))=FALSE,"D","")) ->  | F78: =IF(E78="C",0,IF(E78 ="D",ROUND(1/((1+Simulador!$S$13)^A78),9) * 2,ROUND(1/((1+Simulador!$S$13)^A78),9))) -> 0.314660213 | G78: 44.1122253
A79: 76 | B79: 76 | C79: 2028-07-10 | D79: 7 | E79: =IF(ISERROR(MATCH(D79,Simulador!$H$16:$H$17,0))=FALSE,"C",IF(ISERROR(MATCH(D79,Simulador!$H$18:$H$19,0))=FALSE,"D","")) ->  | F79: =IF(E79="C",0,IF(E79 ="D",ROUND(1/((1+Simulador!$S$13)^A79),9) * 2,ROUND(1/((1+Simulador!$S$13)^A79),9))) -> 0.309846354 | G79: 44.42207166
A80: 77 | B80: 77 | C80: 2028-08-10 | D80: 8 | E80: =IF(ISERROR(MATCH(D80,Simulador!$H$16:$H$17,0))=FALSE,"C",IF(ISERROR(MATCH(D80,Simulador!$H$18:$H$19,0))=FALSE,"D","")) ->  | F80: =IF(E80="C",0,IF(E80 ="D",ROUND(1/((1+Simulador!$S$13)^A80),9) * 2,ROUND(1/((1+Simulador!$S$13)^A80),9))) -> 0.30510614 | G80: 44.7271778
A81: 78 | B81: 78 | C81: 2028-09-10 | D81: 9 | E81: =IF(ISERROR(MATCH(D81,Simulador!$H$16:$H$17,0))=FALSE,"C",IF(ISERROR(MATCH(D81,Simulador!$H$18:$H$19,0))=FALSE,"D","")) ->  | F81: =IF(E81="C",0,IF(E81 ="D",ROUND(1/((1+Simulador!$S$13)^A81),9) * 2,ROUND(1/((1+Simulador!$S$13)^A81),9))) -> 0.300438445 | G81: 45.02761624
A82: 79 | B82: 79 | C82: 2028-10-10 | D82: 10 | E82: =IF(ISERROR(MATCH(D82,Simulador!$H$16:$H$17,0))=FALSE,"C",IF(ISERROR(MATCH(D82,Simulador!$H$18:$H$19,0))=FALSE,"D","")) ->  | F82: =IF(E82="C",0,IF(E82 ="D",ROUND(1/((1+Simulador!$S$13)^A82),9) * 2,ROUND(1/((1+Simulador!$S$13)^A82),9))) -> 0.295842159 | G82: 45.3234584
A83: 80 | B83: 80 | C83: 2028-11-10 | D83: 11 | E83: =IF(ISERROR(MATCH(D83,Simulador!$H$16:$H$17,0))=FALSE,"C",IF(ISERROR(MATCH(D83,Simulador!$H$18:$H$19,0))=FALSE,"D","")) ->  | F83: =IF(E83="C",0,IF(E83 ="D",ROUND(1/((1+Simulador!$S$13)^A83),9) * 2,ROUND(1/((1+Simulador!$S$13)^A83),9))) -> 0.29131619 | G83: 45.61477459
A84: 81 | B84: 81 | C84: 2028-12-10 | D84: 12 | E84: =IF(ISERROR(MATCH(D84,Simulador!$H$16:$H$17,0))=FALSE,"C",IF(ISERROR(MATCH(D84,Simulador!$H$18:$H$19,0))=FALSE,"D","")) ->  | F84: =IF(E84="C",0,IF(E84 ="D",ROUND(1/((1+Simulador!$S$13)^A84),9) * 2,ROUND(1/((1+Simulador!$S$13)^A84),9))) -> 0.286859462 | G84: 45.90163405
A85: 82 | B85: 82 | C85: 2029-01-10 | D85: 1 | E85: =IF(ISERROR(MATCH(D85,Simulador!$H$16:$H$17,0))=FALSE,"C",IF(ISERROR(MATCH(D85,Simulador!$H$18:$H$19,0))=FALSE,"D","")) ->  | F85: =IF(E85="C",0,IF(E85 ="D",ROUND(1/((1+Simulador!$S$13)^A85),9) * 2,ROUND(1/((1+Simulador!$S$13)^A85),9))) -> 0.282470915 | G85: 46.18410497
A86: 83 | B86: 83 | C86: 2029-02-10 | D86: 2 | E86: =IF(ISERROR(MATCH(D86,Simulador!$H$16:$H$17,0))=FALSE,"C",IF(ISERROR(MATCH(D86,Simulador!$H$18:$H$19,0))=FALSE,"D","")) ->  | F86: =IF(E86="C",0,IF(E86 ="D",ROUND(1/((1+Simulador!$S$13)^A86),9) * 2,ROUND(1/((1+Simulador!$S$13)^A86),9))) -> 0.278149507 | G86: 46.46225447
A87: 84 | B87: 84 | C87: 2029-03-10 | D87: 3 | E87: =IF(ISERROR(MATCH(D87,Simulador!$H$16:$H$17,0))=FALSE,"C",IF(ISERROR(MATCH(D87,Simulador!$H$18:$H$19,0))=FALSE,"D","")) ->  | F87: =IF(E87="C",0,IF(E87 ="D",ROUND(1/((1+Simulador!$S$13)^A87),9) * 2,ROUND(1/((1+Simulador!$S$13)^A87),9))) -> 0.27389421 | G87: 46.73614868
A88: 85 | B88: 85 | C88: 2029-04-10 | D88: 4 | E88: =IF(ISERROR(MATCH(D88,Simulador!$H$16:$H$17,0))=FALSE,"C",IF(ISERROR(MATCH(D88,Simulador!$H$18:$H$19,0))=FALSE,"D","")) ->  | F88: =IF(E88="C",0,IF(E88 ="D",ROUND(1/((1+Simulador!$S$13)^A88),9) * 2,ROUND(1/((1+Simulador!$S$13)^A88),9))) -> 0.269704014 | G88: 47.0058527
A89: 86 | B89: 86 | C89: 2029-05-10 | D89: 5 | E89: =IF(ISERROR(MATCH(D89,Simulador!$H$16:$H$17,0))=FALSE,"C",IF(ISERROR(MATCH(D89,Simulador!$H$18:$H$19,0))=FALSE,"D","")) ->  | F89: =IF(E89="C",0,IF(E89 ="D",ROUND(1/((1+Simulador!$S$13)^A89),9) * 2,ROUND(1/((1+Simulador!$S$13)^A89),9))) -> 0.265577921 | G89: 47.27143062
A90: 87 | B90: 87 | C90: 2029-06-10 | D90: 6 | E90: =IF(ISERROR(MATCH(D90,Simulador!$H$16:$H$17,0))=FALSE,"C",IF(ISERROR(MATCH(D90,Simulador!$H$18:$H$19,0))=FALSE,"D","")) ->  | F90: =IF(E90="C",0,IF(E90 ="D",ROUND(1/((1+Simulador!$S$13)^A90),9) * 2,ROUND(1/((1+Simulador!$S$13)^A90),9))) -> 0.261514953 | G90: 47.53294557
A91: 88 | B91: 88 | C91: 2029-07-10 | D91: 7 | E91: =IF(ISERROR(MATCH(D91,Simulador!$H$16:$H$17,0))=FALSE,"C",IF(ISERROR(MATCH(D91,Simulador!$H$18:$H$19,0))=FALSE,"D","")) ->  | F91: =IF(E91="C",0,IF(E91 ="D",ROUND(1/((1+Simulador!$S$13)^A91),9) * 2,ROUND(1/((1+Simulador!$S$13)^A91),9))) -> 0.257514141 | G91: 47.79045971
A92: 89 | B92: 89 | C92: 2029-08-10 | D92: 8 | E92: =IF(ISERROR(MATCH(D92,Simulador!$H$16:$H$17,0))=FALSE,"C",IF(ISERROR(MATCH(D92,Simulador!$H$18:$H$19,0))=FALSE,"D","")) ->  | F92: =IF(E92="C",0,IF(E92 ="D",ROUND(1/((1+Simulador!$S$13)^A92),9) * 2,ROUND(1/((1+Simulador!$S$13)^A92),9))) -> 0.253574537 | G92: 48.04403425
A93: 90 | B93: 90 | C93: 2029-09-10 | D93: 9 | E93: =IF(ISERROR(MATCH(D93,Simulador!$H$16:$H$17,0))=FALSE,"C",IF(ISERROR(MATCH(D93,Simulador!$H$18:$H$19,0))=FALSE,"D","")) ->  | F93: =IF(E93="C",0,IF(E93 ="D",ROUND(1/((1+Simulador!$S$13)^A93),9) * 2,ROUND(1/((1+Simulador!$S$13)^A93),9))) -> 0.249695203 | G93: 48.29372945
A94: 91 | B94: 91 | C94: 2029-10-10 | D94: 10 | E94: =IF(ISERROR(MATCH(D94,Simulador!$H$16:$H$17,0))=FALSE,"C",IF(ISERROR(MATCH(D94,Simulador!$H$18:$H$19,0))=FALSE,"D","")) ->  | F94: =IF(E94="C",0,IF(E94 ="D",ROUND(1/((1+Simulador!$S$13)^A94),9) * 2,ROUND(1/((1+Simulador!$S$13)^A94),9))) -> 0.245875217 | G94: 48.53960467
A95: 92 | B95: 92 | C95: 2029-11-10 | D95: 11 | E95: =IF(ISERROR(MATCH(D95,Simulador!$H$16:$H$17,0))=FALSE,"C",IF(ISERROR(MATCH(D95,Simulador!$H$18:$H$19,0))=FALSE,"D","")) ->  | F95: =IF(E95="C",0,IF(E95 ="D",ROUND(1/((1+Simulador!$S$13)^A95),9) * 2,ROUND(1/((1+Simulador!$S$13)^A95),9))) -> 0.242113672 | G95: 48.78171834
A96: 93 | B96: 93 | C96: 2029-12-10 | D96: 12 | E96: =IF(ISERROR(MATCH(D96,Simulador!$H$16:$H$17,0))=FALSE,"C",IF(ISERROR(MATCH(D96,Simulador!$H$18:$H$19,0))=FALSE,"D","")) ->  | F96: =IF(E96="C",0,IF(E96 ="D",ROUND(1/((1+Simulador!$S$13)^A96),9) * 2,ROUND(1/((1+Simulador!$S$13)^A96),9))) -> 0.238409673 | G96: 49.02012802
A97: 94 | B97: 94 | C97: 2030-01-10 | D97: 1 | E97: =IF(ISERROR(MATCH(D97,Simulador!$H$16:$H$17,0))=FALSE,"C",IF(ISERROR(MATCH(D97,Simulador!$H$18:$H$19,0))=FALSE,"D","")) ->  | F97: =IF(E97="C",0,IF(E97 ="D",ROUND(1/((1+Simulador!$S$13)^A97),9) * 2,ROUND(1/((1+Simulador!$S$13)^A97),9))) -> 0.23476234 | G97: 49.25489036
A98: 95 | B98: 95 | C98: 2030-02-10 | D98: 2 | E98: =IF(ISERROR(MATCH(D98,Simulador!$H$16:$H$17,0))=FALSE,"C",IF(ISERROR(MATCH(D98,Simulador!$H$18:$H$19,0))=FALSE,"D","")) ->  | F98: =IF(E98="C",0,IF(E98 ="D",ROUND(1/((1+Simulador!$S$13)^A98),9) * 2,ROUND(1/((1+Simulador!$S$13)^A98),9))) -> 0.231170806 | G98: 49.48606116
A99: 96 | B99: 96 | C99: 2030-03-10 | D99: 3 | E99: =IF(ISERROR(MATCH(D99,Simulador!$H$16:$H$17,0))=FALSE,"C",IF(ISERROR(MATCH(D99,Simulador!$H$18:$H$19,0))=FALSE,"D","")) ->  | F99: =IF(E99="C",0,IF(E99 ="D",ROUND(1/((1+Simulador!$S$13)^A99),9) * 2,ROUND(1/((1+Simulador!$S$13)^A99),9))) -> 0.227634218 | G99: 49.71369538
A100: 97 | B100: =IF(E100<>"C",IF(ISERROR(1+B99)=TRUE,1,1+B99),IF(ISNUMBER(B99),B99,1)) -> 97 | C100: 2030-04-10 | D100: =MONTH(C100) -> 4 | E100: =IF(ISERROR(MATCH(D100,Simulador!$H$16:$H$17,0))=FALSE,"C",IF(ISERROR(MATCH(D100,Simulador!$H$18:$H$19,0))=FALSE,"D","")) ->  | F100: =IF(E100="C",0,IF(E100 ="D",ROUND(1/((1+Simulador!$S$13)^A100),9) * 2,ROUND(1/((1+Simulador!$S$13)^A100),9))) -> 0.224151734 | G100: =G99+ROUND(F100,9) -> 49.93784711
A101: 98 | B101: 98 | C101: 2030-05-10 | D101: 5 | E101: =IF(ISERROR(MATCH(D101,Simulador!$H$16:$H$17,0))=FALSE,"C",IF(ISERROR(MATCH(D101,Simulador!$H$18:$H$19,0))=FALSE,"D","")) ->  | F101: =IF(E101="C",0,IF(E101 ="D",ROUND(1/((1+Simulador!$S$13)^A101),9) * 2,ROUND(1/((1+Simulador!$S$13)^A101),9))) -> 0.220722528 | G101: 50.15856964
A102: 99 | B102: 99 | C102: 2030-06-10 | D102: 6 | E102: =IF(ISERROR(MATCH(D102,Simulador!$H$16:$H$17,0))=FALSE,"C",IF(ISERROR(MATCH(D102,Simulador!$H$18:$H$19,0))=FALSE,"D","")) ->  | F102: =IF(E102="C",0,IF(E102 ="D",ROUND(1/((1+Simulador!$S$13)^A102),9) * 2,ROUND(1/((1+Simulador!$S$13)^A102),9))) -> 0.217345783 | G102: 50.37591542
A103: 100 | B103: 100 | C103: 2030-07-10 | D103: 7 | E103: =IF(ISERROR(MATCH(D103,Simulador!$H$16:$H$17,0))=FALSE,"C",IF(ISERROR(MATCH(D103,Simulador!$H$18:$H$19,0))=FALSE,"D","")) ->  | F103: =IF(E103="C",0,IF(E103 ="D",ROUND(1/((1+Simulador!$S$13)^A103),9) * 2,ROUND(1/((1+Simulador!$S$13)^A103),9))) -> 0.214020698 | G103: 50.58993612
A104: 101 | B104: 101 | C104: 2030-08-10 | D104: 8 | E104: =IF(ISERROR(MATCH(D104,Simulador!$H$16:$H$17,0))=FALSE,"C",IF(ISERROR(MATCH(D104,Simulador!$H$18:$H$19,0))=FALSE,"D","")) ->  | F104: =IF(E104="C",0,IF(E104 ="D",ROUND(1/((1+Simulador!$S$13)^A104),9) * 2,ROUND(1/((1+Simulador!$S$13)^A104),9))) -> 0.210746482 | G104: 50.8006826
A105: 102 | B105: 102 | C105: 2030-09-10 | D105: 9 | E105: =IF(ISERROR(MATCH(D105,Simulador!$H$16:$H$17,0))=FALSE,"C",IF(ISERROR(MATCH(D105,Simulador!$H$18:$H$19,0))=FALSE,"D","")) ->  | F105: =IF(E105="C",0,IF(E105 ="D",ROUND(1/((1+Simulador!$S$13)^A105),9) * 2,ROUND(1/((1+Simulador!$S$13)^A105),9))) -> 0.207522357 | G105: 51.00820496
A106: 103 | B106: 103 | C106: 2030-10-10 | D106: 10 | E106: =IF(ISERROR(MATCH(D106,Simulador!$H$16:$H$17,0))=FALSE,"C",IF(ISERROR(MATCH(D106,Simulador!$H$18:$H$19,0))=FALSE,"D","")) ->  | F106: =IF(E106="C",0,IF(E106 ="D",ROUND(1/((1+Simulador!$S$13)^A106),9) * 2,ROUND(1/((1+Simulador!$S$13)^A106),9))) -> 0.204347557 | G106: 51.21255252
A107: 104 | B107: 104 | C107: 2030-11-10 | D107: 11 | E107: =IF(ISERROR(MATCH(D107,Simulador!$H$16:$H$17,0))=FALSE,"C",IF(ISERROR(MATCH(D107,Simulador!$H$18:$H$19,0))=FALSE,"D","")) ->  | F107: =IF(E107="C",0,IF(E107 ="D",ROUND(1/((1+Simulador!$S$13)^A107),9) * 2,ROUND(1/((1+Simulador!$S$13)^A107),9))) -> 0.201221326 | G107: 51.41377384
A108: 105 | B108: 105 | C108: 2030-12-10 | D108: 12 | E108: =IF(ISERROR(MATCH(D108,Simulador!$H$16:$H$17,0))=FALSE,"C",IF(ISERROR(MATCH(D108,Simulador!$H$18:$H$19,0))=FALSE,"D","")) ->  | F108: =IF(E108="C",0,IF(E108 ="D",ROUND(1/((1+Simulador!$S$13)^A108),9) * 2,ROUND(1/((1+Simulador!$S$13)^A108),9))) -> 0.198142923 | G108: 51.61191677
A109: 106 | B109: 106 | C109: 2031-01-10 | D109: 1 | E109: =IF(ISERROR(MATCH(D109,Simulador!$H$16:$H$17,0))=FALSE,"C",IF(ISERROR(MATCH(D109,Simulador!$H$18:$H$19,0))=FALSE,"D","")) ->  | F109: =IF(E109="C",0,IF(E109 ="D",ROUND(1/((1+Simulador!$S$13)^A109),9) * 2,ROUND(1/((1+Simulador!$S$13)^A109),9))) -> 0.195111615 | G109: 51.80702838
A110: 107 | B110: 107 | C110: 2031-02-10 | D110: 2 | E110: =IF(ISERROR(MATCH(D110,Simulador!$H$16:$H$17,0))=FALSE,"C",IF(ISERROR(MATCH(D110,Simulador!$H$18:$H$19,0))=FALSE,"D","")) ->  | F110: =IF(E110="C",0,IF(E110 ="D",ROUND(1/((1+Simulador!$S$13)^A110),9) * 2,ROUND(1/((1+Simulador!$S$13)^A110),9))) -> 0.192126681 | G110: 51.99915506
A111: 108 | B111: 108 | C111: 2031-03-10 | D111: 3 | E111: =IF(ISERROR(MATCH(D111,Simulador!$H$16:$H$17,0))=FALSE,"C",IF(ISERROR(MATCH(D111,Simulador!$H$18:$H$19,0))=FALSE,"D","")) ->  | F111: =IF(E111="C",0,IF(E111 ="D",ROUND(1/((1+Simulador!$S$13)^A111),9) * 2,ROUND(1/((1+Simulador!$S$13)^A111),9))) -> 0.189187413 | G111: 52.18834248
A112: 109 | B112: 109 | C112: 2031-04-10 | D112: 4 | E112: =IF(ISERROR(MATCH(D112,Simulador!$H$16:$H$17,0))=FALSE,"C",IF(ISERROR(MATCH(D112,Simulador!$H$18:$H$19,0))=FALSE,"D","")) ->  | F112: =IF(E112="C",0,IF(E112 ="D",ROUND(1/((1+Simulador!$S$13)^A112),9) * 2,ROUND(1/((1+Simulador!$S$13)^A112),9))) -> 0.186293111 | G112: 52.37463559
A113: 110 | B113: 110 | C113: 2031-05-10 | D113: 5 | E113: =IF(ISERROR(MATCH(D113,Simulador!$H$16:$H$17,0))=FALSE,"C",IF(ISERROR(MATCH(D113,Simulador!$H$18:$H$19,0))=FALSE,"D","")) ->  | F113: =IF(E113="C",0,IF(E113 ="D",ROUND(1/((1+Simulador!$S$13)^A113),9) * 2,ROUND(1/((1+Simulador!$S$13)^A113),9))) -> 0.183443089 | G113: 52.55807868
A114: 111 | B114: 111 | C114: 2031-06-10 | D114: 6 | E114: =IF(ISERROR(MATCH(D114,Simulador!$H$16:$H$17,0))=FALSE,"C",IF(ISERROR(MATCH(D114,Simulador!$H$18:$H$19,0))=FALSE,"D","")) ->  | F114: =IF(E114="C",0,IF(E114 ="D",ROUND(1/((1+Simulador!$S$13)^A114),9) * 2,ROUND(1/((1+Simulador!$S$13)^A114),9))) -> 0.180636667 | G114: 52.73871534
A115: 112 | B115: 112 | C115: 2031-07-10 | D115: 7 | E115: =IF(ISERROR(MATCH(D115,Simulador!$H$16:$H$17,0))=FALSE,"C",IF(ISERROR(MATCH(D115,Simulador!$H$18:$H$19,0))=FALSE,"D","")) ->  | F115: =IF(E115="C",0,IF(E115 ="D",ROUND(1/((1+Simulador!$S$13)^A115),9) * 2,ROUND(1/((1+Simulador!$S$13)^A115),9))) -> 0.17787318 | G115: 52.91658852
A116: 113 | B116: 113 | C116: 2031-08-10 | D116: 8 | E116: =IF(ISERROR(MATCH(D116,Simulador!$H$16:$H$17,0))=FALSE,"C",IF(ISERROR(MATCH(D116,Simulador!$H$18:$H$19,0))=FALSE,"D","")) ->  | F116: =IF(E116="C",0,IF(E116 ="D",ROUND(1/((1+Simulador!$S$13)^A116),9) * 2,ROUND(1/((1+Simulador!$S$13)^A116),9))) -> 0.17515197 | G116: 53.09174049
A117: 114 | B117: 114 | C117: 2031-09-10 | D117: 9 | E117: =IF(ISERROR(MATCH(D117,Simulador!$H$16:$H$17,0))=FALSE,"C",IF(ISERROR(MATCH(D117,Simulador!$H$18:$H$19,0))=FALSE,"D","")) ->  | F117: =IF(E117="C",0,IF(E117 ="D",ROUND(1/((1+Simulador!$S$13)^A117),9) * 2,ROUND(1/((1+Simulador!$S$13)^A117),9))) -> 0.172472391 | G117: 53.26421288
A118: 115 | B118: 115 | C118: 2031-10-10 | D118: 10 | E118: =IF(ISERROR(MATCH(D118,Simulador!$H$16:$H$17,0))=FALSE,"C",IF(ISERROR(MATCH(D118,Simulador!$H$18:$H$19,0))=FALSE,"D","")) ->  | F118: =IF(E118="C",0,IF(E118 ="D",ROUND(1/((1+Simulador!$S$13)^A118),9) * 2,ROUND(1/((1+Simulador!$S$13)^A118),9))) -> 0.169833806 | G118: 53.43404669
A119: 116 | B119: 116 | C119: 2031-11-10 | D119: 11 | E119: =IF(ISERROR(MATCH(D119,Simulador!$H$16:$H$17,0))=FALSE,"C",IF(ISERROR(MATCH(D119,Simulador!$H$18:$H$19,0))=FALSE,"D","")) ->  | F119: =IF(E119="C",0,IF(E119 ="D",ROUND(1/((1+Simulador!$S$13)^A119),9) * 2,ROUND(1/((1+Simulador!$S$13)^A119),9))) -> 0.167235588 | G119: 53.60128228
A120: 117 | B120: 117 | C120: 2031-12-10 | D120: 12 | E120: =IF(ISERROR(MATCH(D120,Simulador!$H$16:$H$17,0))=FALSE,"C",IF(ISERROR(MATCH(D120,Simulador!$H$18:$H$19,0))=FALSE,"D","")) ->  | F120: =IF(E120="C",0,IF(E120 ="D",ROUND(1/((1+Simulador!$S$13)^A120),9) * 2,ROUND(1/((1+Simulador!$S$13)^A120),9))) -> 0.164677118 | G120: 53.7659594
A121: 118 | B121: 118 | C121: 2032-01-10 | D121: 1 | E121: =IF(ISERROR(MATCH(D121,Simulador!$H$16:$H$17,0))=FALSE,"C",IF(ISERROR(MATCH(D121,Simulador!$H$18:$H$19,0))=FALSE,"D","")) ->  | F121: =IF(E121="C",0,IF(E121 ="D",ROUND(1/((1+Simulador!$S$13)^A121),9) * 2,ROUND(1/((1+Simulador!$S$13)^A121),9))) -> 0.16215779 | G121: 53.92811719
A122: 119 | B122: 119 | C122: 2032-02-10 | D122: 2 | E122: =IF(ISERROR(MATCH(D122,Simulador!$H$16:$H$17,0))=FALSE,"C",IF(ISERROR(MATCH(D122,Simulador!$H$18:$H$19,0))=FALSE,"D","")) ->  | F122: =IF(E122="C",0,IF(E122 ="D",ROUND(1/((1+Simulador!$S$13)^A122),9) * 2,ROUND(1/((1+Simulador!$S$13)^A122),9))) -> 0.159677003 | G122: 54.08779419
A123: 120 | B123: 120 | C123: 2032-03-10 | D123: 3 | E123: =IF(ISERROR(MATCH(D123,Simulador!$H$16:$H$17,0))=FALSE,"C",IF(ISERROR(MATCH(D123,Simulador!$H$18:$H$19,0))=FALSE,"D","")) ->  | F123: =IF(E123="C",0,IF(E123 ="D",ROUND(1/((1+Simulador!$S$13)^A123),9) * 2,ROUND(1/((1+Simulador!$S$13)^A123),9))) -> 0.15723417 | G123: 54.24502836
A124: 121 | B124: 121 | C124: 2032-04-10 | D124: 4 | E124: =IF(ISERROR(MATCH(D124,Simulador!$H$16:$H$17,0))=FALSE,"C",IF(ISERROR(MATCH(D124,Simulador!$H$18:$H$19,0))=FALSE,"D","")) ->  | F124: =IF(E124="C",0,IF(E124 ="D",ROUND(1/((1+Simulador!$S$13)^A124),9) * 2,ROUND(1/((1+Simulador!$S$13)^A124),9))) -> 0.154828708 | G124: 54.39985707
A125: 122 | B125: 122 | C125: 2032-05-10 | D125: 5 | E125: =IF(ISERROR(MATCH(D125,Simulador!$H$16:$H$17,0))=FALSE,"C",IF(ISERROR(MATCH(D125,Simulador!$H$18:$H$19,0))=FALSE,"D","")) ->  | F125: =IF(E125="C",0,IF(E125 ="D",ROUND(1/((1+Simulador!$S$13)^A125),9) * 2,ROUND(1/((1+Simulador!$S$13)^A125),9))) -> 0.152460046 | G125: 54.55231711
A126: 123 | B126: 123 | C126: 2032-06-10 | D126: 6 | E126: =IF(ISERROR(MATCH(D126,Simulador!$H$16:$H$17,0))=FALSE,"C",IF(ISERROR(MATCH(D126,Simulador!$H$18:$H$19,0))=FALSE,"D","")) ->  | F126: =IF(E126="C",0,IF(E126 ="D",ROUND(1/((1+Simulador!$S$13)^A126),9) * 2,ROUND(1/((1+Simulador!$S$13)^A126),9))) -> 0.150127622 | G126: 54.70244474
A127: 124 | B127: 124 | C127: 2032-07-10 | D127: 7 | E127: =IF(ISERROR(MATCH(D127,Simulador!$H$16:$H$17,0))=FALSE,"C",IF(ISERROR(MATCH(D127,Simulador!$H$18:$H$19,0))=FALSE,"D","")) ->  | F127: =IF(E127="C",0,IF(E127 ="D",ROUND(1/((1+Simulador!$S$13)^A127),9) * 2,ROUND(1/((1+Simulador!$S$13)^A127),9))) -> 0.14783088 | G127: 54.85027562
A128: 125 | B128: 125 | C128: 2032-08-10 | D128: 8 | E128: =IF(ISERROR(MATCH(D128,Simulador!$H$16:$H$17,0))=FALSE,"C",IF(ISERROR(MATCH(D128,Simulador!$H$18:$H$19,0))=FALSE,"D","")) ->  | F128: =IF(E128="C",0,IF(E128 ="D",ROUND(1/((1+Simulador!$S$13)^A128),9) * 2,ROUND(1/((1+Simulador!$S$13)^A128),9))) -> 0.145569275 | G128: 54.99584489
A129: 126 | B129: 126 | C129: 2032-09-10 | D129: 9 | E129: =IF(ISERROR(MATCH(D129,Simulador!$H$16:$H$17,0))=FALSE,"C",IF(ISERROR(MATCH(D129,Simulador!$H$18:$H$19,0))=FALSE,"D","")) ->  | F129: =IF(E129="C",0,IF(E129 ="D",ROUND(1/((1+Simulador!$S$13)^A129),9) * 2,ROUND(1/((1+Simulador!$S$13)^A129),9))) -> 0.14334227 | G129: 55.13918716
A130: 127 | B130: 127 | C130: 2032-10-10 | D130: 10 | E130: =IF(ISERROR(MATCH(D130,Simulador!$H$16:$H$17,0))=FALSE,"C",IF(ISERROR(MATCH(D130,Simulador!$H$18:$H$19,0))=FALSE,"D","")) ->  | F130: =IF(E130="C",0,IF(E130 ="D",ROUND(1/((1+Simulador!$S$13)^A130),9) * 2,ROUND(1/((1+Simulador!$S$13)^A130),9))) -> 0.141149335 | G130: 55.2803365
A131: 128 | B131: 128 | C131: 2032-11-10 | D131: 11 | E131: =IF(ISERROR(MATCH(D131,Simulador!$H$16:$H$17,0))=FALSE,"C",IF(ISERROR(MATCH(D131,Simulador!$H$18:$H$19,0))=FALSE,"D","")) ->  | F131: =IF(E131="C",0,IF(E131 ="D",ROUND(1/((1+Simulador!$S$13)^A131),9) * 2,ROUND(1/((1+Simulador!$S$13)^A131),9))) -> 0.138989948 | G131: 55.41932644
A132: 129 | B132: 129 | C132: 2032-12-10 | D132: 12 | E132: =IF(ISERROR(MATCH(D132,Simulador!$H$16:$H$17,0))=FALSE,"C",IF(ISERROR(MATCH(D132,Simulador!$H$18:$H$19,0))=FALSE,"D","")) ->  | F132: =IF(E132="C",0,IF(E132 ="D",ROUND(1/((1+Simulador!$S$13)^A132),9) * 2,ROUND(1/((1+Simulador!$S$13)^A132),9))) -> 0.136863598 | G132: 55.55619004
A133: =A132+1 -> 130 | B133: 130 | C133: =DATE(YEAR(C132) + 1/12,MONTH(C132)+1,DAY(C132)) -> 2033-01-10 | D133: 1 | E133: =IF(ISERROR(MATCH(D133,Simulador!$H$16:$H$17,0))=FALSE,"C",IF(ISERROR(MATCH(D133,Simulador!$H$18:$H$19,0))=FALSE,"D","")) ->  | F133: =IF(E133="C",0,IF(E133 ="D",ROUND(1/((1+Simulador!$S$13)^A133),9) * 2,ROUND(1/((1+Simulador!$S$13)^A133),9))) -> 0.134769777 | G133: 55.69095982
A134: 131 | B134: 131 | C134: 2033-02-10 | D134: 2 | E134: =IF(ISERROR(MATCH(D134,Simulador!$H$16:$H$17,0))=FALSE,"C",IF(ISERROR(MATCH(D134,Simulador!$H$18:$H$19,0))=FALSE,"D","")) ->  | F134: =IF(E134="C",0,IF(E134 ="D",ROUND(1/((1+Simulador!$S$13)^A134),9) * 2,ROUND(1/((1+Simulador!$S$13)^A134),9))) -> 0.132707989 | G134: 55.82366781
A135: 132 | B135: 132 | C135: 2033-03-10 | D135: 3 | E135: =IF(ISERROR(MATCH(D135,Simulador!$H$16:$H$17,0))=FALSE,"C",IF(ISERROR(MATCH(D135,Simulador!$H$18:$H$19,0))=FALSE,"D","")) ->  | F135: =IF(E135="C",0,IF(E135 ="D",ROUND(1/((1+Simulador!$S$13)^A135),9) * 2,ROUND(1/((1+Simulador!$S$13)^A135),9))) -> 0.130677743 | G135: 55.95434555
A136: 133 | B136: 133 | C136: 2033-04-10 | D136: 4 | E136: =IF(ISERROR(MATCH(D136,Simulador!$H$16:$H$17,0))=FALSE,"C",IF(ISERROR(MATCH(D136,Simulador!$H$18:$H$19,0))=FALSE,"D","")) ->  | F136: =IF(E136="C",0,IF(E136 ="D",ROUND(1/((1+Simulador!$S$13)^A136),9) * 2,ROUND(1/((1+Simulador!$S$13)^A136),9))) -> 0.128678557 | G136: 56.08302411
A137: 134 | B137: 134 | C137: 2033-05-10 | D137: 5 | E137: =IF(ISERROR(MATCH(D137,Simulador!$H$16:$H$17,0))=FALSE,"C",IF(ISERROR(MATCH(D137,Simulador!$H$18:$H$19,0))=FALSE,"D","")) ->  | F137: =IF(E137="C",0,IF(E137 ="D",ROUND(1/((1+Simulador!$S$13)^A137),9) * 2,ROUND(1/((1+Simulador!$S$13)^A137),9))) -> 0.126709956 | G137: 56.20973406
A138: 135 | B138: 135 | C138: 2033-06-10 | D138: 6 | E138: =IF(ISERROR(MATCH(D138,Simulador!$H$16:$H$17,0))=FALSE,"C",IF(ISERROR(MATCH(D138,Simulador!$H$18:$H$19,0))=FALSE,"D","")) ->  | F138: =IF(E138="C",0,IF(E138 ="D",ROUND(1/((1+Simulador!$S$13)^A138),9) * 2,ROUND(1/((1+Simulador!$S$13)^A138),9))) -> 0.124771472 | G138: 56.33450554
A139: 136 | B139: 136 | C139: 2033-07-10 | D139: 7 | E139: =IF(ISERROR(MATCH(D139,Simulador!$H$16:$H$17,0))=FALSE,"C",IF(ISERROR(MATCH(D139,Simulador!$H$18:$H$19,0))=FALSE,"D","")) ->  | F139: =IF(E139="C",0,IF(E139 ="D",ROUND(1/((1+Simulador!$S$13)^A139),9) * 2,ROUND(1/((1+Simulador!$S$13)^A139),9))) -> 0.122862644 | G139: 56.45736818
A140: 137 | B140: 137 | C140: 2033-08-10 | D140: 8 | E140: =IF(ISERROR(MATCH(D140,Simulador!$H$16:$H$17,0))=FALSE,"C",IF(ISERROR(MATCH(D140,Simulador!$H$18:$H$19,0))=FALSE,"D","")) ->  | F140: =IF(E140="C",0,IF(E140 ="D",ROUND(1/((1+Simulador!$S$13)^A140),9) * 2,ROUND(1/((1+Simulador!$S$13)^A140),9))) -> 0.120983018 | G140: 56.5783512
A141: 138 | B141: 138 | C141: 2033-09-10 | D141: 9 | E141: =IF(ISERROR(MATCH(D141,Simulador!$H$16:$H$17,0))=FALSE,"C",IF(ISERROR(MATCH(D141,Simulador!$H$18:$H$19,0))=FALSE,"D","")) ->  | F141: =IF(E141="C",0,IF(E141 ="D",ROUND(1/((1+Simulador!$S$13)^A141),9) * 2,ROUND(1/((1+Simulador!$S$13)^A141),9))) -> 0.119132148 | G141: 56.69748335
A142: 139 | B142: 139 | C142: 2033-10-10 | D142: 10 | E142: =IF(ISERROR(MATCH(D142,Simulador!$H$16:$H$17,0))=FALSE,"C",IF(ISERROR(MATCH(D142,Simulador!$H$18:$H$19,0))=FALSE,"D","")) ->  | F142: =IF(E142="C",0,IF(E142 ="D",ROUND(1/((1+Simulador!$S$13)^A142),9) * 2,ROUND(1/((1+Simulador!$S$13)^A142),9))) -> 0.117309593 | G142: 56.81479294
A143: 140 | B143: 140 | C143: 2033-11-10 | D143: 11 | E143: =IF(ISERROR(MATCH(D143,Simulador!$H$16:$H$17,0))=FALSE,"C",IF(ISERROR(MATCH(D143,Simulador!$H$18:$H$19,0))=FALSE,"D","")) ->  | F143: =IF(E143="C",0,IF(E143 ="D",ROUND(1/((1+Simulador!$S$13)^A143),9) * 2,ROUND(1/((1+Simulador!$S$13)^A143),9))) -> 0.115514921 | G143: 56.93030786
A144: 141 | B144: 141 | C144: 2033-12-10 | D144: 12 | E144: =IF(ISERROR(MATCH(D144,Simulador!$H$16:$H$17,0))=FALSE,"C",IF(ISERROR(MATCH(D144,Simulador!$H$18:$H$19,0))=FALSE,"D","")) ->  | F144: =IF(E144="C",0,IF(E144 ="D",ROUND(1/((1+Simulador!$S$13)^A144),9) * 2,ROUND(1/((1+Simulador!$S$13)^A144),9))) -> 0.113747705 | G144: 57.04405556
A145: 142 | B145: 142 | C145: 2034-01-10 | D145: 1 | E145: =IF(ISERROR(MATCH(D145,Simulador!$H$16:$H$17,0))=FALSE,"C",IF(ISERROR(MATCH(D145,Simulador!$H$18:$H$19,0))=FALSE,"D","")) ->  | F145: =IF(E145="C",0,IF(E145 ="D",ROUND(1/((1+Simulador!$S$13)^A145),9) * 2,ROUND(1/((1+Simulador!$S$13)^A145),9))) -> 0.112007525 | G145: 57.15606309
A146: 143 | B146: 143 | C146: 2034-02-10 | D146: 2 | E146: =IF(ISERROR(MATCH(D146,Simulador!$H$16:$H$17,0))=FALSE,"C",IF(ISERROR(MATCH(D146,Simulador!$H$18:$H$19,0))=FALSE,"D","")) ->  | F146: =IF(E146="C",0,IF(E146 ="D",ROUND(1/((1+Simulador!$S$13)^A146),9) * 2,ROUND(1/((1+Simulador!$S$13)^A146),9))) -> 0.110293968 | G146: 57.26635706
A147: 144 | B147: 144 | C147: 2034-03-10 | D147: 3 | E147: =IF(ISERROR(MATCH(D147,Simulador!$H$16:$H$17,0))=FALSE,"C",IF(ISERROR(MATCH(D147,Simulador!$H$18:$H$19,0))=FALSE,"D","")) ->  | F147: =IF(E147="C",0,IF(E147 ="D",ROUND(1/((1+Simulador!$S$13)^A147),9) * 2,ROUND(1/((1+Simulador!$S$13)^A147),9))) -> 0.108606625 | G147: 57.37496368
A148: 145 | B148: 145 | C148: 2034-04-10 | D148: 4 | E148: =IF(ISERROR(MATCH(D148,Simulador!$H$16:$H$17,0))=FALSE,"C",IF(ISERROR(MATCH(D148,Simulador!$H$18:$H$19,0))=FALSE,"D","")) ->  | F148: =IF(E148="C",0,IF(E148 ="D",ROUND(1/((1+Simulador!$S$13)^A148),9) * 2,ROUND(1/((1+Simulador!$S$13)^A148),9))) -> 0.106945096 | G148: 57.48190878
A149: 146 | B149: 146 | C149: 2034-05-10 | D149: 5 | E149: =IF(ISERROR(MATCH(D149,Simulador!$H$16:$H$17,0))=FALSE,"C",IF(ISERROR(MATCH(D149,Simulador!$H$18:$H$19,0))=FALSE,"D","")) ->  | F149: =IF(E149="C",0,IF(E149 ="D",ROUND(1/((1+Simulador!$S$13)^A149),9) * 2,ROUND(1/((1+Simulador!$S$13)^A149),9))) -> 0.105308987 | G149: 57.58721777
A150: 147 | B150: 147 | C150: 2034-06-10 | D150: 6 | E150: =IF(ISERROR(MATCH(D150,Simulador!$H$16:$H$17,0))=FALSE,"C",IF(ISERROR(MATCH(D150,Simulador!$H$18:$H$19,0))=FALSE,"D","")) ->  | F150: =IF(E150="C",0,IF(E150 ="D",ROUND(1/((1+Simulador!$S$13)^A150),9) * 2,ROUND(1/((1+Simulador!$S$13)^A150),9))) -> 0.103697907 | G150: 57.69091567
A151: 148 | B151: 148 | C151: 2034-07-10 | D151: 7 | E151: =IF(ISERROR(MATCH(D151,Simulador!$H$16:$H$17,0))=FALSE,"C",IF(ISERROR(MATCH(D151,Simulador!$H$18:$H$19,0))=FALSE,"D","")) ->  | F151: =IF(E151="C",0,IF(E151 ="D",ROUND(1/((1+Simulador!$S$13)^A151),9) * 2,ROUND(1/((1+Simulador!$S$13)^A151),9))) -> 0.102111475 | G151: 57.79302715
A152: 149 | B152: 149 | C152: 2034-08-10 | D152: 8 | E152: =IF(ISERROR(MATCH(D152,Simulador!$H$16:$H$17,0))=FALSE,"C",IF(ISERROR(MATCH(D152,Simulador!$H$18:$H$19,0))=FALSE,"D","")) ->  | F152: =IF(E152="C",0,IF(E152 ="D",ROUND(1/((1+Simulador!$S$13)^A152),9) * 2,ROUND(1/((1+Simulador!$S$13)^A152),9))) -> 0.100549313 | G152: 57.89357646
A153: 150 | B153: 150 | C153: 2034-09-10 | D153: 9 | E153: =IF(ISERROR(MATCH(D153,Simulador!$H$16:$H$17,0))=FALSE,"C",IF(ISERROR(MATCH(D153,Simulador!$H$18:$H$19,0))=FALSE,"D","")) ->  | F153: =IF(E153="C",0,IF(E153 ="D",ROUND(1/((1+Simulador!$S$13)^A153),9) * 2,ROUND(1/((1+Simulador!$S$13)^A153),9))) -> 0.09901105 | G153: 57.99258751
A154: 151 | B154: 151 | C154: 2034-10-10 | D154: 10 | E154: =IF(ISERROR(MATCH(D154,Simulador!$H$16:$H$17,0))=FALSE,"C",IF(ISERROR(MATCH(D154,Simulador!$H$18:$H$19,0))=FALSE,"D","")) ->  | F154: =IF(E154="C",0,IF(E154 ="D",ROUND(1/((1+Simulador!$S$13)^A154),9) * 2,ROUND(1/((1+Simulador!$S$13)^A154),9))) -> 0.09749632 | G154: 58.09008383
A155: 152 | B155: 152 | C155: 2034-11-10 | D155: 11 | E155: =IF(ISERROR(MATCH(D155,Simulador!$H$16:$H$17,0))=FALSE,"C",IF(ISERROR(MATCH(D155,Simulador!$H$18:$H$19,0))=FALSE,"D","")) ->  | F155: =IF(E155="C",0,IF(E155 ="D",ROUND(1/((1+Simulador!$S$13)^A155),9) * 2,ROUND(1/((1+Simulador!$S$13)^A155),9))) -> 0.096004763 | G155: 58.18608859
A156: 153 | B156: 153 | C156: 2034-12-10 | D156: 12 | E156: =IF(ISERROR(MATCH(D156,Simulador!$H$16:$H$17,0))=FALSE,"C",IF(ISERROR(MATCH(D156,Simulador!$H$18:$H$19,0))=FALSE,"D","")) ->  | F156: =IF(E156="C",0,IF(E156 ="D",ROUND(1/((1+Simulador!$S$13)^A156),9) * 2,ROUND(1/((1+Simulador!$S$13)^A156),9))) -> 0.094536025 | G156: 58.28062462
A157: 154 | B157: 154 | C157: 2035-01-10 | D157: 1 | E157: =IF(ISERROR(MATCH(D157,Simulador!$H$16:$H$17,0))=FALSE,"C",IF(ISERROR(MATCH(D157,Simulador!$H$18:$H$19,0))=FALSE,"D","")) ->  | F157: =IF(E157="C",0,IF(E157 ="D",ROUND(1/((1+Simulador!$S$13)^A157),9) * 2,ROUND(1/((1+Simulador!$S$13)^A157),9))) -> 0.093089757 | G157: 58.37371438
A158: 155 | B158: 155 | C158: 2035-02-10 | D158: 2 | E158: =IF(ISERROR(MATCH(D158,Simulador!$H$16:$H$17,0))=FALSE,"C",IF(ISERROR(MATCH(D158,Simulador!$H$18:$H$19,0))=FALSE,"D","")) ->  | F158: =IF(E158="C",0,IF(E158 ="D",ROUND(1/((1+Simulador!$S$13)^A158),9) * 2,ROUND(1/((1+Simulador!$S$13)^A158),9))) -> 0.091665614 | G158: 58.46537999
A159: 156 | B159: 156 | C159: 2035-03-10 | D159: 3 | E159: =IF(ISERROR(MATCH(D159,Simulador!$H$16:$H$17,0))=FALSE,"C",IF(ISERROR(MATCH(D159,Simulador!$H$18:$H$19,0))=FALSE,"D","")) ->  | F159: =IF(E159="C",0,IF(E159 ="D",ROUND(1/((1+Simulador!$S$13)^A159),9) * 2,ROUND(1/((1+Simulador!$S$13)^A159),9))) -> 0.090263259 | G159: 58.55564325
A160: 157 | B160: 157 | C160: 2035-04-10 | D160: 4 | E160: =IF(ISERROR(MATCH(D160,Simulador!$H$16:$H$17,0))=FALSE,"C",IF(ISERROR(MATCH(D160,Simulador!$H$18:$H$19,0))=FALSE,"D","")) ->  | F160: =IF(E160="C",0,IF(E160 ="D",ROUND(1/((1+Simulador!$S$13)^A160),9) * 2,ROUND(1/((1+Simulador!$S$13)^A160),9))) -> 0.088882358 | G160: 58.64452561
A161: 158 | B161: 158 | C161: 2035-05-10 | D161: 5 | E161: =IF(ISERROR(MATCH(D161,Simulador!$H$16:$H$17,0))=FALSE,"C",IF(ISERROR(MATCH(D161,Simulador!$H$18:$H$19,0))=FALSE,"D","")) ->  | F161: =IF(E161="C",0,IF(E161 ="D",ROUND(1/((1+Simulador!$S$13)^A161),9) * 2,ROUND(1/((1+Simulador!$S$13)^A161),9))) -> 0.087522583 | G161: 58.73204819
A162: 159 | B162: 159 | C162: 2035-06-10 | D162: 6 | E162: =IF(ISERROR(MATCH(D162,Simulador!$H$16:$H$17,0))=FALSE,"C",IF(ISERROR(MATCH(D162,Simulador!$H$18:$H$19,0))=FALSE,"D","")) ->  | F162: =IF(E162="C",0,IF(E162 ="D",ROUND(1/((1+Simulador!$S$13)^A162),9) * 2,ROUND(1/((1+Simulador!$S$13)^A162),9))) -> 0.086183611 | G162: 58.8182318
A163: 160 | B163: 160 | C163: 2035-07-10 | D163: 7 | E163: =IF(ISERROR(MATCH(D163,Simulador!$H$16:$H$17,0))=FALSE,"C",IF(ISERROR(MATCH(D163,Simulador!$H$18:$H$19,0))=FALSE,"D","")) ->  | F163: =IF(E163="C",0,IF(E163 ="D",ROUND(1/((1+Simulador!$S$13)^A163),9) * 2,ROUND(1/((1+Simulador!$S$13)^A163),9))) -> 0.084865122 | G163: 58.90309692
A164: 161 | B164: =IF(E164<>"C",IF(ISERROR(1+B163)=TRUE,1,1+B163),IF(ISNUMBER(B163),B163,1)) -> 161 | C164: 2035-08-10 | D164: =MONTH(C164) -> 8 | E164: =IF(ISERROR(MATCH(D164,Simulador!$H$16:$H$17,0))=FALSE,"C",IF(ISERROR(MATCH(D164,Simulador!$H$18:$H$19,0))=FALSE,"D","")) ->  | F164: =IF(E164="C",0,IF(E164 ="D",ROUND(1/((1+Simulador!$S$13)^A164),9) * 2,ROUND(1/((1+Simulador!$S$13)^A164),9))) -> 0.083566805 | G164: =G163+ROUND(F164,9) -> 58.98666373
A165: 162 | B165: 162 | C165: 2035-09-10 | D165: 9 | E165: =IF(ISERROR(MATCH(D165,Simulador!$H$16:$H$17,0))=FALSE,"C",IF(ISERROR(MATCH(D165,Simulador!$H$18:$H$19,0))=FALSE,"D","")) ->  | F165: =IF(E165="C",0,IF(E165 ="D",ROUND(1/((1+Simulador!$S$13)^A165),9) * 2,ROUND(1/((1+Simulador!$S$13)^A165),9))) -> 0.082288351 | G165: 59.06895208
A166: 163 | B166: 163 | C166: 2035-10-10 | D166: 10 | E166: =IF(ISERROR(MATCH(D166,Simulador!$H$16:$H$17,0))=FALSE,"C",IF(ISERROR(MATCH(D166,Simulador!$H$18:$H$19,0))=FALSE,"D","")) ->  | F166: =IF(E166="C",0,IF(E166 ="D",ROUND(1/((1+Simulador!$S$13)^A166),9) * 2,ROUND(1/((1+Simulador!$S$13)^A166),9))) -> 0.081029455 | G166: 59.14998153
A167: 164 | B167: 164 | C167: 2035-11-10 | D167: 11 | E167: =IF(ISERROR(MATCH(D167,Simulador!$H$16:$H$17,0))=FALSE,"C",IF(ISERROR(MATCH(D167,Simulador!$H$18:$H$19,0))=FALSE,"D","")) ->  | F167: =IF(E167="C",0,IF(E167 ="D",ROUND(1/((1+Simulador!$S$13)^A167),9) * 2,ROUND(1/((1+Simulador!$S$13)^A167),9))) -> 0.079789818 | G167: 59.22977135
A168: 165 | B168: 165 | C168: 2035-12-10 | D168: 12 | E168: =IF(ISERROR(MATCH(D168,Simulador!$H$16:$H$17,0))=FALSE,"C",IF(ISERROR(MATCH(D168,Simulador!$H$18:$H$19,0))=FALSE,"D","")) ->  | F168: =IF(E168="C",0,IF(E168 ="D",ROUND(1/((1+Simulador!$S$13)^A168),9) * 2,ROUND(1/((1+Simulador!$S$13)^A168),9))) -> 0.078569146 | G168: 59.3083405
A169: 166 | B169: 166 | C169: 2036-01-10 | D169: 1 | E169: =IF(ISERROR(MATCH(D169,Simulador!$H$16:$H$17,0))=FALSE,"C",IF(ISERROR(MATCH(D169,Simulador!$H$18:$H$19,0))=FALSE,"D","")) ->  | F169: =IF(E169="C",0,IF(E169 ="D",ROUND(1/((1+Simulador!$S$13)^A169),9) * 2,ROUND(1/((1+Simulador!$S$13)^A169),9))) -> 0.077367148 | G169: 59.38570765
A170: 167 | B170: 167 | C170: 2036-02-10 | D170: 2 | E170: =IF(ISERROR(MATCH(D170,Simulador!$H$16:$H$17,0))=FALSE,"C",IF(ISERROR(MATCH(D170,Simulador!$H$18:$H$19,0))=FALSE,"D","")) ->  | F170: =IF(E170="C",0,IF(E170 ="D",ROUND(1/((1+Simulador!$S$13)^A170),9) * 2,ROUND(1/((1+Simulador!$S$13)^A170),9))) -> 0.07618354 | G170: 59.46189119
A171: 168 | B171: 168 | C171: 2036-03-10 | D171: 3 | E171: =IF(ISERROR(MATCH(D171,Simulador!$H$16:$H$17,0))=FALSE,"C",IF(ISERROR(MATCH(D171,Simulador!$H$18:$H$19,0))=FALSE,"D","")) ->  | F171: =IF(E171="C",0,IF(E171 ="D",ROUND(1/((1+Simulador!$S$13)^A171),9) * 2,ROUND(1/((1+Simulador!$S$13)^A171),9))) -> 0.075018038 | G171: 59.53690922
A172: 169 | B172: 169 | C172: 2036-04-10 | D172: 4 | E172: =IF(ISERROR(MATCH(D172,Simulador!$H$16:$H$17,0))=FALSE,"C",IF(ISERROR(MATCH(D172,Simulador!$H$18:$H$19,0))=FALSE,"D","")) ->  | F172: =IF(E172="C",0,IF(E172 ="D",ROUND(1/((1+Simulador!$S$13)^A172),9) * 2,ROUND(1/((1+Simulador!$S$13)^A172),9))) -> 0.073870368 | G172: 59.61077959
A173: 170 | B173: 170 | C173: 2036-05-10 | D173: 5 | E173: =IF(ISERROR(MATCH(D173,Simulador!$H$16:$H$17,0))=FALSE,"C",IF(ISERROR(MATCH(D173,Simulador!$H$18:$H$19,0))=FALSE,"D","")) ->  | F173: =IF(E173="C",0,IF(E173 ="D",ROUND(1/((1+Simulador!$S$13)^A173),9) * 2,ROUND(1/((1+Simulador!$S$13)^A173),9))) -> 0.072740255 | G173: 59.68351985
A174: 171 | B174: 171 | C174: 2036-06-10 | D174: 6 | E174: =IF(ISERROR(MATCH(D174,Simulador!$H$16:$H$17,0))=FALSE,"C",IF(ISERROR(MATCH(D174,Simulador!$H$18:$H$19,0))=FALSE,"D","")) ->  | F174: =IF(E174="C",0,IF(E174 ="D",ROUND(1/((1+Simulador!$S$13)^A174),9) * 2,ROUND(1/((1+Simulador!$S$13)^A174),9))) -> 0.071627431 | G174: 59.75514728
A175: 172 | B175: 172 | C175: 2036-07-10 | D175: 7 | E175: =IF(ISERROR(MATCH(D175,Simulador!$H$16:$H$17,0))=FALSE,"C",IF(ISERROR(MATCH(D175,Simulador!$H$18:$H$19,0))=FALSE,"D","")) ->  | F175: =IF(E175="C",0,IF(E175 ="D",ROUND(1/((1+Simulador!$S$13)^A175),9) * 2,ROUND(1/((1+Simulador!$S$13)^A175),9))) -> 0.070531632 | G175: 59.82567891
A176: 173 | B176: 173 | C176: 2036-08-10 | D176: 8 | E176: =IF(ISERROR(MATCH(D176,Simulador!$H$16:$H$17,0))=FALSE,"C",IF(ISERROR(MATCH(D176,Simulador!$H$18:$H$19,0))=FALSE,"D","")) ->  | F176: =IF(E176="C",0,IF(E176 ="D",ROUND(1/((1+Simulador!$S$13)^A176),9) * 2,ROUND(1/((1+Simulador!$S$13)^A176),9))) -> 0.069452598 | G176: 59.89513151
A177: 174 | B177: 174 | C177: 2036-09-10 | D177: 9 | E177: =IF(ISERROR(MATCH(D177,Simulador!$H$16:$H$17,0))=FALSE,"C",IF(ISERROR(MATCH(D177,Simulador!$H$18:$H$19,0))=FALSE,"D","")) ->  | F177: =IF(E177="C",0,IF(E177 ="D",ROUND(1/((1+Simulador!$S$13)^A177),9) * 2,ROUND(1/((1+Simulador!$S$13)^A177),9))) -> 0.06839007 | G177: 59.96352158
A178: 175 | B178: 175 | C178: 2036-10-10 | D178: 10 | E178: =IF(ISERROR(MATCH(D178,Simulador!$H$16:$H$17,0))=FALSE,"C",IF(ISERROR(MATCH(D178,Simulador!$H$18:$H$19,0))=FALSE,"D","")) ->  | F178: =IF(E178="C",0,IF(E178 ="D",ROUND(1/((1+Simulador!$S$13)^A178),9) * 2,ROUND(1/((1+Simulador!$S$13)^A178),9))) -> 0.067343798 | G178: 60.03086538
A179: 176 | B179: 176 | C179: 2036-11-10 | D179: 11 | E179: =IF(ISERROR(MATCH(D179,Simulador!$H$16:$H$17,0))=FALSE,"C",IF(ISERROR(MATCH(D179,Simulador!$H$18:$H$19,0))=FALSE,"D","")) ->  | F179: =IF(E179="C",0,IF(E179 ="D",ROUND(1/((1+Simulador!$S$13)^A179),9) * 2,ROUND(1/((1+Simulador!$S$13)^A179),9))) -> 0.066313533 | G179: 60.09717891
A180: 177 | B180: 177 | C180: 2036-12-10 | D180: 12 | E180: =IF(ISERROR(MATCH(D180,Simulador!$H$16:$H$17,0))=FALSE,"C",IF(ISERROR(MATCH(D180,Simulador!$H$18:$H$19,0))=FALSE,"D","")) ->  | F180: =IF(E180="C",0,IF(E180 ="D",ROUND(1/((1+Simulador!$S$13)^A180),9) * 2,ROUND(1/((1+Simulador!$S$13)^A180),9))) -> 0.065299029 | G180: 60.16247794
A181: 178 | B181: 178 | C181: 2037-01-10 | D181: 1 | E181: =IF(ISERROR(MATCH(D181,Simulador!$H$16:$H$17,0))=FALSE,"C",IF(ISERROR(MATCH(D181,Simulador!$H$18:$H$19,0))=FALSE,"D","")) ->  | F181: =IF(E181="C",0,IF(E181 ="D",ROUND(1/((1+Simulador!$S$13)^A181),9) * 2,ROUND(1/((1+Simulador!$S$13)^A181),9))) -> 0.064300046 | G181: 60.22677798
A182: 179 | B182: 179 | C182: 2037-02-10 | D182: 2 | E182: =IF(ISERROR(MATCH(D182,Simulador!$H$16:$H$17,0))=FALSE,"C",IF(ISERROR(MATCH(D182,Simulador!$H$18:$H$19,0))=FALSE,"D","")) ->  | F182: =IF(E182="C",0,IF(E182 ="D",ROUND(1/((1+Simulador!$S$13)^A182),9) * 2,ROUND(1/((1+Simulador!$S$13)^A182),9))) -> 0.063316345 | G182: 60.29009433
A183: 180 | B183: 180 | C183: 2037-03-10 | D183: 3 | E183: =IF(ISERROR(MATCH(D183,Simulador!$H$16:$H$17,0))=FALSE,"C",IF(ISERROR(MATCH(D183,Simulador!$H$18:$H$19,0))=FALSE,"D","")) ->  | F183: =IF(E183="C",0,IF(E183 ="D",ROUND(1/((1+Simulador!$S$13)^A183),9) * 2,ROUND(1/((1+Simulador!$S$13)^A183),9))) -> 0.062347694 | G183: 60.35244202
A184: 181 | B184: 181 | C184: 2037-04-10 | D184: 4 | E184: =IF(ISERROR(MATCH(D184,Simulador!$H$16:$H$17,0))=FALSE,"C",IF(ISERROR(MATCH(D184,Simulador!$H$18:$H$19,0))=FALSE,"D","")) ->  | F184: =IF(E184="C",0,IF(E184 ="D",ROUND(1/((1+Simulador!$S$13)^A184),9) * 2,ROUND(1/((1+Simulador!$S$13)^A184),9))) -> 0.061393862 | G184: 60.41383588
A185: 182 | B185: 182 | C185: 2037-05-10 | D185: 5 | E185: =IF(ISERROR(MATCH(D185,Simulador!$H$16:$H$17,0))=FALSE,"C",IF(ISERROR(MATCH(D185,Simulador!$H$18:$H$19,0))=FALSE,"D","")) ->  | F185: =IF(E185="C",0,IF(E185 ="D",ROUND(1/((1+Simulador!$S$13)^A185),9) * 2,ROUND(1/((1+Simulador!$S$13)^A185),9))) -> 0.060454622 | G185: 60.47429051
A186: 183 | B186: 183 | C186: 2037-06-10 | D186: 6 | E186: =IF(ISERROR(MATCH(D186,Simulador!$H$16:$H$17,0))=FALSE,"C",IF(ISERROR(MATCH(D186,Simulador!$H$18:$H$19,0))=FALSE,"D","")) ->  | F186: =IF(E186="C",0,IF(E186 ="D",ROUND(1/((1+Simulador!$S$13)^A186),9) * 2,ROUND(1/((1+Simulador!$S$13)^A186),9))) -> 0.059529752 | G186: 60.53382026
A187: 184 | B187: 184 | C187: 2037-07-10 | D187: 7 | E187: =IF(ISERROR(MATCH(D187,Simulador!$H$16:$H$17,0))=FALSE,"C",IF(ISERROR(MATCH(D187,Simulador!$H$18:$H$19,0))=FALSE,"D","")) ->  | F187: =IF(E187="C",0,IF(E187 ="D",ROUND(1/((1+Simulador!$S$13)^A187),9) * 2,ROUND(1/((1+Simulador!$S$13)^A187),9))) -> 0.05861903 | G187: 60.59243929
A188: 185 | B188: 185 | C188: 2037-08-10 | D188: 8 | E188: =IF(ISERROR(MATCH(D188,Simulador!$H$16:$H$17,0))=FALSE,"C",IF(ISERROR(MATCH(D188,Simulador!$H$18:$H$19,0))=FALSE,"D","")) ->  | F188: =IF(E188="C",0,IF(E188 ="D",ROUND(1/((1+Simulador!$S$13)^A188),9) * 2,ROUND(1/((1+Simulador!$S$13)^A188),9))) -> 0.057722241 | G188: 60.65016153
A189: 186 | B189: 186 | C189: 2037-09-10 | D189: 9 | E189: =IF(ISERROR(MATCH(D189,Simulador!$H$16:$H$17,0))=FALSE,"C",IF(ISERROR(MATCH(D189,Simulador!$H$18:$H$19,0))=FALSE,"D","")) ->  | F189: =IF(E189="C",0,IF(E189 ="D",ROUND(1/((1+Simulador!$S$13)^A189),9) * 2,ROUND(1/((1+Simulador!$S$13)^A189),9))) -> 0.056839172 | G189: 60.7070007
A190: 187 | B190: 187 | C190: 2037-10-10 | D190: 10 | E190: =IF(ISERROR(MATCH(D190,Simulador!$H$16:$H$17,0))=FALSE,"C",IF(ISERROR(MATCH(D190,Simulador!$H$18:$H$19,0))=FALSE,"D","")) ->  | F190: =IF(E190="C",0,IF(E190 ="D",ROUND(1/((1+Simulador!$S$13)^A190),9) * 2,ROUND(1/((1+Simulador!$S$13)^A190),9))) -> 0.055969613 | G190: 60.76297031
A191: 188 | B191: 188 | C191: 2037-11-10 | D191: 11 | E191: =IF(ISERROR(MATCH(D191,Simulador!$H$16:$H$17,0))=FALSE,"C",IF(ISERROR(MATCH(D191,Simulador!$H$18:$H$19,0))=FALSE,"D","")) ->  | F191: =IF(E191="C",0,IF(E191 ="D",ROUND(1/((1+Simulador!$S$13)^A191),9) * 2,ROUND(1/((1+Simulador!$S$13)^A191),9))) -> 0.055113356 | G191: 60.81808367
A192: 189 | B192: 189 | C192: 2037-12-10 | D192: 12 | E192: =IF(ISERROR(MATCH(D192,Simulador!$H$16:$H$17,0))=FALSE,"C",IF(ISERROR(MATCH(D192,Simulador!$H$18:$H$19,0))=FALSE,"D","")) ->  | F192: =IF(E192="C",0,IF(E192 ="D",ROUND(1/((1+Simulador!$S$13)^A192),9) * 2,ROUND(1/((1+Simulador!$S$13)^A192),9))) -> 0.054270199 | G192: 60.87235387
A193: 190 | B193: 190 | C193: 2038-01-10 | D193: 1 | E193: =IF(ISERROR(MATCH(D193,Simulador!$H$16:$H$17,0))=FALSE,"C",IF(ISERROR(MATCH(D193,Simulador!$H$18:$H$19,0))=FALSE,"D","")) ->  | F193: =IF(E193="C",0,IF(E193 ="D",ROUND(1/((1+Simulador!$S$13)^A193),9) * 2,ROUND(1/((1+Simulador!$S$13)^A193),9))) -> 0.053439942 | G193: 60.92579381
A194: 191 | B194: 191 | C194: 2038-02-10 | D194: 2 | E194: =IF(ISERROR(MATCH(D194,Simulador!$H$16:$H$17,0))=FALSE,"C",IF(ISERROR(MATCH(D194,Simulador!$H$18:$H$19,0))=FALSE,"D","")) ->  | F194: =IF(E194="C",0,IF(E194 ="D",ROUND(1/((1+Simulador!$S$13)^A194),9) * 2,ROUND(1/((1+Simulador!$S$13)^A194),9))) -> 0.052622386 | G194: 60.9784162
A195: 192 | B195: 192 | C195: 2038-03-10 | D195: 3 | E195: =IF(ISERROR(MATCH(D195,Simulador!$H$16:$H$17,0))=FALSE,"C",IF(ISERROR(MATCH(D195,Simulador!$H$18:$H$19,0))=FALSE,"D","")) ->  | F195: =IF(E195="C",0,IF(E195 ="D",ROUND(1/((1+Simulador!$S$13)^A195),9) * 2,ROUND(1/((1+Simulador!$S$13)^A195),9))) -> 0.051817337 | G195: 61.03023353
A196: 193 | B196: 193 | C196: 2038-04-10 | D196: 4 | E196: =IF(ISERROR(MATCH(D196,Simulador!$H$16:$H$17,0))=FALSE,"C",IF(ISERROR(MATCH(D196,Simulador!$H$18:$H$19,0))=FALSE,"D","")) ->  | F196: =IF(E196="C",0,IF(E196 ="D",ROUND(1/((1+Simulador!$S$13)^A196),9) * 2,ROUND(1/((1+Simulador!$S$13)^A196),9))) -> 0.051024605 | G196: 61.08125814
A197: =A196+1 -> 194 | B197: 194 | C197: =DATE(YEAR(C196) + 1/12,MONTH(C196)+1,DAY(C196)) -> 2038-05-10 | D197: 5 | E197: =IF(ISERROR(MATCH(D197,Simulador!$H$16:$H$17,0))=FALSE,"C",IF(ISERROR(MATCH(D197,Simulador!$H$18:$H$19,0))=FALSE,"D","")) ->  | F197: =IF(E197="C",0,IF(E197 ="D",ROUND(1/((1+Simulador!$S$13)^A197),9) * 2,ROUND(1/((1+Simulador!$S$13)^A197),9))) -> 0.050244 | G197: 61.13150214
A198: 195 | B198: 195 | C198: 2038-06-10 | D198: 6 | E198: =IF(ISERROR(MATCH(D198,Simulador!$H$16:$H$17,0))=FALSE,"C",IF(ISERROR(MATCH(D198,Simulador!$H$18:$H$19,0))=FALSE,"D","")) ->  | F198: =IF(E198="C",0,IF(E198 ="D",ROUND(1/((1+Simulador!$S$13)^A198),9) * 2,ROUND(1/((1+Simulador!$S$13)^A198),9))) -> 0.049475337 | G198: 61.18097748
A199: 196 | B199: 196 | C199: 2038-07-10 | D199: 7 | E199: =IF(ISERROR(MATCH(D199,Simulador!$H$16:$H$17,0))=FALSE,"C",IF(ISERROR(MATCH(D199,Simulador!$H$18:$H$19,0))=FALSE,"D","")) ->  | F199: =IF(E199="C",0,IF(E199 ="D",ROUND(1/((1+Simulador!$S$13)^A199),9) * 2,ROUND(1/((1+Simulador!$S$13)^A199),9))) -> 0.048718434 | G199: 61.22969591
A200: 197 | B200: 197 | C200: 2038-08-10 | D200: 8 | E200: =IF(ISERROR(MATCH(D200,Simulador!$H$16:$H$17,0))=FALSE,"C",IF(ISERROR(MATCH(D200,Simulador!$H$18:$H$19,0))=FALSE,"D","")) ->  | F200: =IF(E200="C",0,IF(E200 ="D",ROUND(1/((1+Simulador!$S$13)^A200),9) * 2,ROUND(1/((1+Simulador!$S$13)^A200),9))) -> 0.047973111 | G200: 61.27766902
A201: 198 | B201: 198 | C201: 2038-09-10 | D201: 9 | E201: =IF(ISERROR(MATCH(D201,Simulador!$H$16:$H$17,0))=FALSE,"C",IF(ISERROR(MATCH(D201,Simulador!$H$18:$H$19,0))=FALSE,"D","")) ->  | F201: =IF(E201="C",0,IF(E201 ="D",ROUND(1/((1+Simulador!$S$13)^A201),9) * 2,ROUND(1/((1+Simulador!$S$13)^A201),9))) -> 0.047239189 | G201: 61.32490821
... 185 more rows

Sheet Simulador_Cliente
C3: SIMULADOR PRÉSTAMO BANCA EMPRENDEDORA MYPE | G3: Soles
G4: Dólares
G6: No
B7: Moneda | C7: Soles | G7: Julio
B8: Producto | C8: Vivienda | G8: Diciembre
B9: Monto del Préstamo | C9: 50000
B10: Fecha de Desembolso | C10: 2022-02-08 | M10: 0
B11: Plazo | C11: 36 | G11: Banco | M11: 30 | R11: =IF(C8=G20,C11<=18,IF(C8=G17,C11<=24,C11<=36)) -> TRUE | S11: O(C11=" ";Y(C11>=1;C11<=60))
B12: TEA | C12: 20 | G12: Endoso | M12: 60
B13: Días de Gracia | C13: 30 | M13: 90
B14: Seguro Desgravamen | C14: Banco | G14: Sí | M14: 180
B15: Seguro Multiriesgo | C15: Sí | G15: No
B16: Seguro Todo Riesgo | C16: No
B17: =+IF(C16="Sí","Valor del Bien a asegurar","") ->  | G17: Capital de Trabajo | R17: 180 | S17: 24 | AE17: =OR(C17=" ",C17>C9) -> FALSE
G18: Activo Fijo | O18: 180 | S18: 36
G19: Vivienda | O19: 90 | S19: 36
G20: Consumo | O20: 60 | S20: 18

Sheet Cronograma_Referencial
B5: (SIMULACIÓN)
B6: CRONOGRAMA DE PAGOS
B9: Moneda : | D9: =+Simulador_Cliente!C7 -> Soles | F9: Monto del Préstamo : | H9: =+Simulador_Cliente!C9 -> 50000
B10: Producto : | D10: =+Simulador_Cliente!C8 -> Vivienda | F10: Tasa Efectiva Anual : | H10: =+Simulador_Cliente!C12&"%" -> 20%
B11: Fecha de desembolso : | D11: =+Simulador_Cliente!C10 -> 2022-02-08 | F11: Tasa de Costo Efectiva Anual : | H11: =+((1+I11)^12)-1 -> 0.2356055685 | I11: =+RATE(D12,J18,-H9-I12) -> 0.0177864266
B12: Plazo (en meses) : | D12: =+Simulador_Cliente!C11 -> 36 | F12: Tasa Seguro de Desgravamen Mensual : | H12: =+IF(Simulador_Cliente!C14="Endoso",0,0.083%) -> 0.00083 | I12: =+Simulador!S16 -> 765.4735
B13: Periodo de gracia : | D13: =+Simulador_Cliente!C13&" "& "días" -> 30 días | F13: Tasa Seguro de Seguro Multiriesgo : | H13: =+IF(Simulador_Cliente!C15="No",0,0.07%) -> 0.0007
F14: Tasa Seguro Todo Riesgo : | H14: =+IF(Simulador_Cliente!C16="No",0,0.0292%) -> 0
B17: N° | C17: Fecha Vencimiento | D17: Capital | E17: Interes | F17: Interes de Gracia | G17: Seguro Desgravamen | H17: Seguro Multiriesgos | I17: Seguro Todo Riesgo | J17: Total Cuota
B18: 1 | C18: =IFERROR(+IF(B18>0,VLOOKUP(B18,Simulador!$A$32:$W$550,3,0)," ")," ") -> 2022-04-10 | D18: =IFERROR(+IF(B18>0,VLOOKUP(B18,Simulador!$A$32:$W$550,13,0)," ")," ") -> 956.11 | E18: =IFERROR(+IF(B18>0,VLOOKUP(B18,Simulador!$A$32:$W$550,14,0)," ")," ") -> 791.19 | F18: =IFERROR(+IF(B18>0,VLOOKUP(B18,Simulador!$A$32:$W$550,15,0)," ")," ") -> 21.26315278 | G18: =IFERROR(+IF(B18>0,VLOOKUP(B18,Simulador!$A$32:$W$550,19,0)," ")," ") -> 83 | H18: =IFERROR(+IF(B18>0,VLOOKUP(B18,Simulador!$A$32:$W$550,20,0)," ")," ") -> 70 | I18: =IFERROR(+IF(B18>0,VLOOKUP(B18,Simulador!$A$32:$W$550,22,0)," ")," ") -> 0 | J18: =IFERROR(+IF(B18>0,VLOOKUP(B18,Simulador!$A$32:$W$550,23,0)," ")," ") -> 1921.563153
B19: =IF(B18=0," ",IF(B18>=$D$12,"",B18+1)) -> 2 | C19: =IF($D$12=0," ",IF(B18=$D$12,"TOTALES",+IF(B19>0,VLOOKUP(B19,Simulador!$A$32:$W$550,3,0)," "))) -> 2022-05-10 | D19: =IF($D$12=0," ",IF(B18=$D$12,Simulador!$M$30,+IF(B19>0,VLOOKUP(B19,Simulador!$A$32:$W$550,13,0)," "))) -> 1072.96 | E19: =IF($D$12=0," ",IF(B18=$D$12,Simulador!$N$30,+IF(B19>0,VLOOKUP(B19,Simulador!$A$32:$W$550,14,0)," "))) -> 750.84 | F19: =IF($D$12=0," ",IF(B18=$D$12,Simulador!$O$30,+IF(B19>0,VLOOKUP(B19,Simulador!$A$32:$W$550,15,0)," "))) -> 21.26315278 | G19: =IF($D$12=0," ",IF(B18=$D$12,Simulador!$S$30,+IF(B19>0,VLOOKUP(B19,Simulador!$A$32:$W$550,19,0)," "))) -> 41.5 | H19: =IF($D$12=0," ",IF(B18=$D$12,Simulador!$T$30,+IF(B19>0,VLOOKUP(B19,Simulador!$A$32:$W$550,20,0)," "))) -> 35 | I19: =IF($D$12=0," ",IF(B18=$D$12,Simulador!$V$30,+IF(B19>0,VLOOKUP(B19,Simulador!$A$32:$W$550,22,0)," "))) -> 0 | J19: =IF($D$12=0," ",IF(B18=$D$12,Simulador!$W$30,+IF(B19>0,VLOOKUP(B19,Simulador!$A$32:$W$550,23,0)," "))) -> 1921.563153
B20: 3 | C20: =IF($D$12=0," ",IF(B19=$D$12,"TOTALES",+IF(B20>0,VLOOKUP(B20,Simulador!$A$32:$W$550,3,0)," "))) -> 2022-06-10 | D20: =IF($D$12=0," ",IF(B19=$D$12,Simulador!$M$30,+IF(B20>0,VLOOKUP(B20,Simulador!$A$32:$W$550,13,0)," "))) -> 1064.72 | E20: =IF($D$12=0," ",IF(B19=$D$12,Simulador!$N$30,+IF(B20>0,VLOOKUP(B20,Simulador!$A$32:$W$550,14,0)," "))) -> 759.08 | F20: =IF($D$12=0," ",IF(B19=$D$12,Simulador!$O$30,+IF(B20>0,VLOOKUP(B20,Simulador!$A$32:$W$550,15,0)," "))) -> 21.26315278 | G20: =IF($D$12=0," ",IF(B19=$D$12,Simulador!$S$30,+IF(B20>0,VLOOKUP(B20,Simulador!$A$32:$W$550,19,0)," "))) -> 41.5 | H20: =IF($D$12=0," ",IF(B19=$D$12,Simulador!$T$30,+IF(B20>0,VLOOKUP(B20,Simulador!$A$32:$W$550,20,0)," "))) -> 35 | I20: =IF($D$12=0," ",IF(B19=$D$12,Simulador!$V$30,+IF(B20>0,VLOOKUP(B20,Simulador!$A$32:$W$550,22,0)," "))) -> 0 | J20: =IF($D$12=0," ",IF(B19=$D$12,Simulador!$W$30,+IF(B20>0,VLOOKUP(B20,Simulador!$A$32:$W$550,23,0)," "))) -> 1921.563153
B21: 4 | C21: =IF($D$12=0," ",IF(B20=$D$12,"TOTALES",+IF(B21>0,VLOOKUP(B21,Simulador!$A$32:$W$550,3,0)," "))) -> 2022-07-10 | D21: =IF($D$12=0," ",IF(B20=$D$12,Simulador!$M$30,+IF(B21>0,VLOOKUP(B21,Simulador!$A$32:$W$550,13,0)," "))) -> 1105.69 | E21: =IF($D$12=0," ",IF(B20=$D$12,Simulador!$N$30,+IF(B21>0,VLOOKUP(B21,Simulador!$A$32:$W$550,14,0)," "))) -> 718.11 | F21: =IF($D$12=0," ",IF(B20=$D$12,Simulador!$O$30,+IF(B21>0,VLOOKUP(B21,Simulador!$A$32:$W$550,15,0)," "))) -> 21.26315278 | G21: =IF($D$12=0," ",IF(B20=$D$12,Simulador!$S$30,+IF(B21>0,VLOOKUP(B21,Simulador!$A$32:$W$550,19,0)," "))) -> 41.5 | H21: =IF($D$12=0," ",IF(B20=$D$12,Simulador!$T$30,+IF(B21>0,VLOOKUP(B21,Simulador!$A$32:$W$550,20,0)," "))) -> 35 | I21: =IF($D$12=0," ",IF(B20=$D$12,Simulador!$V$30,+IF(B21>0,VLOOKUP(B21,Simulador!$A$32:$W$550,22,0)," "))) -> 0 | J21: =IF($D$12=0," ",IF(B20=$D$12,Simulador!$W$30,+IF(B21>0,VLOOKUP(B21,Simulador!$A$32:$W$550,23,0)," "))) -> 1921.563153
B22: 5 | C22: =IF($D$12=0," ",IF(B21=$D$12,"TOTALES",+IF(B22>0,VLOOKUP(B22,Simulador!$A$32:$W$550,3,0)," "))) -> 2022-08-10 | D22: =IF($D$12=0," ",IF(B21=$D$12,Simulador!$M$30,+IF(B22>0,VLOOKUP(B22,Simulador!$A$32:$W$550,13,0)," "))) -> 1099.06 | E22: =IF($D$12=0," ",IF(B21=$D$12,Simulador!$N$30,+IF(B22>0,VLOOKUP(B22,Simulador!$A$32:$W$550,14,0)," "))) -> 724.74 | F22: =IF($D$12=0," ",IF(B21=$D$12,Simulador!$O$30,+IF(B22>0,VLOOKUP(B22,Simulador!$A$32:$W$550,15,0)," "))) -> 21.26315278 | G22: =IF($D$12=0," ",IF(B21=$D$12,Simulador!$S$30,+IF(B22>0,VLOOKUP(B22,Simulador!$A$32:$W$550,19,0)," "))) -> 41.5 | H22: =IF($D$12=0," ",IF(B21=$D$12,Simulador!$T$30,+IF(B22>0,VLOOKUP(B22,Simulador!$A$32:$W$550,20,0)," "))) -> 35 | I22: =IF($D$12=0," ",IF(B21=$D$12,Simulador!$V$30,+IF(B22>0,VLOOKUP(B22,Simulador!$A$32:$W$550,22,0)," "))) -> 0 | J22: =IF($D$12=0," ",IF(B21=$D$12,Simulador!$W$30,+IF(B22>0,VLOOKUP(B22,Simulador!$A$32:$W$550,23,0)," "))) -> 1921.563153
B23: 6 | C23: =IF($D$12=0," ",IF(B22=$D$12,"TOTALES",+IF(B23>0,VLOOKUP(B23,Simulador!$A$32:$W$550,3,0)," "))) -> 2022-09-10 | D23: =IF($D$12=0," ",IF(B22=$D$12,Simulador!$M$30,+IF(B23>0,VLOOKUP(B23,Simulador!$A$32:$W$550,13,0)," "))) -> 1116.45 | E23: =IF($D$12=0," ",IF(B22=$D$12,Simulador!$N$30,+IF(B23>0,VLOOKUP(B23,Simulador!$A$32:$W$550,14,0)," "))) -> 707.35 | F23: =IF($D$12=0," ",IF(B22=$D$12,Simulador!$O$30,+IF(B23>0,VLOOKUP(B23,Simulador!$A$32:$W$550,15,0)," "))) -> 21.26315278 | G23: =IF($D$12=0," ",IF(B22=$D$12,Simulador!$S$30,+IF(B23>0,VLOOKUP(B23,Simulador!$A$32:$W$550,19,0)," "))) -> 41.5 | H23: =IF($D$12=0," ",IF(B22=$D$12,Simulador!$T$30,+IF(B23>0,VLOOKUP(B23,Simulador!$A$32:$W$550,20,0)," "))) -> 35 | I23: =IF($D$12=0," ",IF(B22=$D$12,Simulador!$V$30,+IF(B23>0,VLOOKUP(B23,Simulador!$A$32:$W$550,22,0)," "))) -> 0 | J23: =IF($D$12=0," ",IF(B22=$D$12,Simulador!$W$30,+IF(B23>0,VLOOKUP(B23,Simulador!$A$32:$W$550,23,0)," "))) -> 1921.563153
B24: 7 | C24: =IF($D$12=0," ",IF(B23=$D$12,"TOTALES",+IF(B24>0,VLOOKUP(B24,Simulador!$A$32:$W$550,3,0)," "))) -> 2022-10-10 | D24: =IF($D$12=0," ",IF(B23=$D$12,Simulador!$M$30,+IF(B24>0,VLOOKUP(B24,Simulador!$A$32:$W$550,13,0)," "))) -> 1156.54 | E24: =IF($D$12=0," ",IF(B23=$D$12,Simulador!$N$30,+IF(B24>0,VLOOKUP(B24,Simulador!$A$32:$W$550,14,0)," "))) -> 667.26 | F24: =IF($D$12=0," ",IF(B23=$D$12,Simulador!$O$30,+IF(B24>0,VLOOKUP(B24,Simulador!$A$32:$W$550,15,0)," "))) -> 21.26315278 | G24: =IF($D$12=0," ",IF(B23=$D$12,Simulador!$S$30,+IF(B24>0,VLOOKUP(B24,Simulador!$A$32:$W$550,19,0)," "))) -> 41.5 | H24: =IF($D$12=0," ",IF(B23=$D$12,Simulador!$T$30,+IF(B24>0,VLOOKUP(B24,Simulador!$A$32:$W$550,20,0)," "))) -> 35 | I24: =IF($D$12=0," ",IF(B23=$D$12,Simulador!$V$30,+IF(B24>0,VLOOKUP(B24,Simulador!$A$32:$W$550,22,0)," "))) -> 0 | J24: =IF($D$12=0," ",IF(B23=$D$12,Simulador!$W$30,+IF(B24>0,VLOOKUP(B24,Simulador!$A$32:$W$550,23,0)," "))) -> 1921.563153
B25: 8 | C25: =IF($D$12=0," ",IF(B24=$D$12,"TOTALES",+IF(B25>0,VLOOKUP(B25,Simulador!$A$32:$W$550,3,0)," "))) -> 2022-11-10 | D25: =IF($D$12=0," ",IF(B24=$D$12,Simulador!$M$30,+IF(B25>0,VLOOKUP(B25,Simulador!$A$32:$W$550,13,0)," "))) -> 1152.42 | E25: =IF($D$12=0," ",IF(B24=$D$12,Simulador!$N$30,+IF(B25>0,VLOOKUP(B25,Simulador!$A$32:$W$550,14,0)," "))) -> 671.38 | F25: =IF($D$12=0," ",IF(B24=$D$12,Simulador!$O$30,+IF(B25>0,VLOOKUP(B25,Simulador!$A$32:$W$550,15,0)," "))) -> 21.26315278 | G25: =IF($D$12=0," ",IF(B24=$D$12,Simulador!$S$30,+IF(B25>0,VLOOKUP(B25,Simulador!$A$32:$W$550,19,0)," "))) -> 41.5 | H25: =IF($D$12=0," ",IF(B24=$D$12,Simulador!$T$30,+IF(B25>0,VLOOKUP(B25,Simulador!$A$32:$W$550,20,0)," "))) -> 35 | I25: =IF($D$12=0," ",IF(B24=$D$12,Simulador!$V$30,+IF(B25>0,VLOOKUP(B25,Simulador!$A$32:$W$550,22,0)," "))) -> 0 | J25: =IF($D$12=0," ",IF(B24=$D$12,Simulador!$W$30,+IF(B25>0,VLOOKUP(B25,Simulador!$A$32:$W$550,23,0)," "))) -> 1921.563153
B26: 9 | C26: =IF($D$12=0," ",IF(B25=$D$12,"TOTALES",+IF(B26>0,VLOOKUP(B26,Simulador!$A$32:$W$550,3,0)," "))) -> 2022-12-10 | D26: =IF($D$12=0," ",IF(B25=$D$12,Simulador!$M$30,+IF(B26>0,VLOOKUP(B26,Simulador!$A$32:$W$550,13,0)," "))) -> 1191.89 | E26: =IF($D$12=0," ",IF(B25=$D$12,Simulador!$N$30,+IF(B26>0,VLOOKUP(B26,Simulador!$A$32:$W$550,14,0)," "))) -> 631.91 | F26: =IF($D$12=0," ",IF(B25=$D$12,Simulador!$O$30,+IF(B26>0,VLOOKUP(B26,Simulador!$A$32:$W$550,15,0)," "))) -> 21.26315278 | G26: =IF($D$12=0," ",IF(B25=$D$12,Simulador!$S$30,+IF(B26>0,VLOOKUP(B26,Simulador!$A$32:$W$550,19,0)," "))) -> 41.5 | H26: =IF($D$12=0," ",IF(B25=$D$12,Simulador!$T$30,+IF(B26>0,VLOOKUP(B26,Simulador!$A$32:$W$550,20,0)," "))) -> 35 | I26: =IF($D$12=0," ",IF(B25=$D$12,Simulador!$V$30,+IF(B26>0,VLOOKUP(B26,Simulador!$A$32:$W$550,22,0)," "))) -> 0 | J26: =IF($D$12=0," ",IF(B25=$D$12,Simulador!$W$30,+IF(B26>0,VLOOKUP(B26,Simulador!$A$32:$W$550,23,0)," "))) -> 1921.563153
B27: 10 | C27: =IF($D$12=0," ",IF(B26=$D$12,"TOTALES",+IF(B27>0,VLOOKUP(B27,Simulador!$A$32:$W$550,3,0)," "))) -> 2023-01-10 | D27: =IF($D$12=0," ",IF(B26=$D$12,Simulador!$M$30,+IF(B27>0,VLOOKUP(B27,Simulador!$A$32:$W$550,13,0)," "))) -> 1189.52 | E27: =IF($D$12=0," ",IF(B26=$D$12,Simulador!$N$30,+IF(B27>0,VLOOKUP(B27,Simulador!$A$32:$W$550,14,0)," "))) -> 634.28 | F27: =IF($D$12=0," ",IF(B26=$D$12,Simulador!$O$30,+IF(B27>0,VLOOKUP(B27,Simulador!$A$32:$W$550,15,0)," "))) -> 21.26315278 | G27: =IF($D$12=0," ",IF(B26=$D$12,Simulador!$S$30,+IF(B27>0,VLOOKUP(B27,Simulador!$A$32:$W$550,19,0)," "))) -> 41.5 | H27: =IF($D$12=0," ",IF(B26=$D$12,Simulador!$T$30,+IF(B27>0,VLOOKUP(B27,Simulador!$A$32:$W$550,20,0)," "))) -> 35 | I27: =IF($D$12=0," ",IF(B26=$D$12,Simulador!$V$30,+IF(B27>0,VLOOKUP(B27,Simulador!$A$32:$W$550,22,0)," "))) -> 0 | J27: =IF($D$12=0," ",IF(B26=$D$12,Simulador!$W$30,+IF(B27>0,VLOOKUP(B27,Simulador!$A$32:$W$550,23,0)," "))) -> 1921.563153
B28: 11 | C28: =IF($D$12=0," ",IF(B27=$D$12,"TOTALES",+IF(B28>0,VLOOKUP(B28,Simulador!$A$32:$W$550,3,0)," "))) -> 2023-02-10 | D28: =IF($D$12=0," ",IF(B27=$D$12,Simulador!$M$30,+IF(B28>0,VLOOKUP(B28,Simulador!$A$32:$W$550,13,0)," "))) -> 1208.34 | E28: =IF($D$12=0," ",IF(B27=$D$12,Simulador!$N$30,+IF(B28>0,VLOOKUP(B28,Simulador!$A$32:$W$550,14,0)," "))) -> 615.46 | F28: =IF($D$12=0," ",IF(B27=$D$12,Simulador!$O$30,+IF(B28>0,VLOOKUP(B28,Simulador!$A$32:$W$550,15,0)," "))) -> 21.26315278 | G28: =IF($D$12=0," ",IF(B27=$D$12,Simulador!$S$30,+IF(B28>0,VLOOKUP(B28,Simulador!$A$32:$W$550,19,0)," "))) -> 41.5 | H28: =IF($D$12=0," ",IF(B27=$D$12,Simulador!$T$30,+IF(B28>0,VLOOKUP(B28,Simulador!$A$32:$W$550,20,0)," "))) -> 35 | I28: =IF($D$12=0," ",IF(B27=$D$12,Simulador!$V$30,+IF(B28>0,VLOOKUP(B28,Simulador!$A$32:$W$550,22,0)," "))) -> 0 | J28: =IF($D$12=0," ",IF(B27=$D$12,Simulador!$W$30,+IF(B28>0,VLOOKUP(B28,Simulador!$A$32:$W$550,23,0)," "))) -> 1921.563153
B29: 12 | C29: =IF($D$12=0," ",IF(B28=$D$12,"TOTALES",+IF(B29>0,VLOOKUP(B29,Simulador!$A$32:$W$550,3,0)," "))) -> 2023-03-10 | D29: =IF($D$12=0," ",IF(B28=$D$12,Simulador!$M$30,+IF(B29>0,VLOOKUP(B29,Simulador!$A$32:$W$550,13,0)," "))) -> 1285.58 | E29: =IF($D$12=0," ",IF(B28=$D$12,Simulador!$N$30,+IF(B29>0,VLOOKUP(B29,Simulador!$A$32:$W$550,14,0)," "))) -> 538.22 | F29: =IF($D$12=0," ",IF(B28=$D$12,Simulador!$O$30,+IF(B29>0,VLOOKUP(B29,Simulador!$A$32:$W$550,15,0)," "))) -> 21.26315278 | G29: =IF($D$12=0," ",IF(B28=$D$12,Simulador!$S$30,+IF(B29>0,VLOOKUP(B29,Simulador!$A$32:$W$550,19,0)," "))) -> 41.5 | H29: =IF($D$12=0," ",IF(B28=$D$12,Simulador!$T$30,+IF(B29>0,VLOOKUP(B29,Simulador!$A$32:$W$550,20,0)," "))) -> 35 | I29: =IF($D$12=0," ",IF(B28=$D$12,Simulador!$V$30,+IF(B29>0,VLOOKUP(B29,Simulador!$A$32:$W$550,22,0)," "))) -> 0 | J29: =IF($D$12=0," ",IF(B28=$D$12,Simulador!$W$30,+IF(B29>0,VLOOKUP(B29,Simulador!$A$32:$W$550,23,0)," "))) -> 1921.563153
B30: 13 | C30: =IF($D$12=0," ",IF(B29=$D$12,"TOTALES",+IF(B30>0,VLOOKUP(B30,Simulador!$A$32:$W$550,3,0)," "))) -> 2023-04-10 | D30: =IF($D$12=0," ",IF(B29=$D$12,Simulador!$M$30,+IF(B30>0,VLOOKUP(B30,Simulador!$A$32:$W$550,13,0)," "))) -> 1247.8 | E30: =IF($D$12=0," ",IF(B29=$D$12,Simulador!$N$30,+IF(B30>0,VLOOKUP(B30,Simulador!$A$32:$W$550,14,0)," "))) -> 576 | F30: =IF($D$12=0," ",IF(B29=$D$12,Simulador!$O$30,+IF(B30>0,VLOOKUP(B30,Simulador!$A$32:$W$550,15,0)," "))) -> 21.26315278 | G30: =IF($D$12=0," ",IF(B29=$D$12,Simulador!$S$30,+IF(B30>0,VLOOKUP(B30,Simulador!$A$32:$W$550,19,0)," "))) -> 41.5 | H30: =IF($D$12=0," ",IF(B29=$D$12,Simulador!$T$30,+IF(B30>0,VLOOKUP(B30,Simulador!$A$32:$W$550,20,0)," "))) -> 35 | I30: =IF($D$12=0," ",IF(B29=$D$12,Simulador!$V$30,+IF(B30>0,VLOOKUP(B30,Simulador!$A$32:$W$550,22,0)," "))) -> 0 | J30: =IF($D$12=0," ",IF(B29=$D$12,Simulador!$W$30,+IF(B30>0,VLOOKUP(B30,Simulador!$A$32:$W$550,23,0)," "))) -> 1921.563153
B31: 14 | C31: =IF($D$12=0," ",IF(B30=$D$12,"TOTALES",+IF(B31>0,VLOOKUP(B31,Simulador!$A$32:$W$550,3,0)," "))) -> 2023-05-10 | D31: =IF($D$12=0," ",IF(B30=$D$12,Simulador!$M$30,+IF(B31>0,VLOOKUP(B31,Simulador!$A$32:$W$550,13,0)," "))) -> 1285.63 | E31: =IF($D$12=0," ",IF(B30=$D$12,Simulador!$N$30,+IF(B31>0,VLOOKUP(B31,Simulador!$A$32:$W$550,14,0)," "))) -> 538.17 | F31: =IF($D$12=0," ",IF(B30=$D$12,Simulador!$O$30,+IF(B31>0,VLOOKUP(B31,Simulador!$A$32:$W$550,15,0)," "))) -> 21.26315278 | G31: =IF($D$12=0," ",IF(B30=$D$12,Simulador!$S$30,+IF(B31>0,VLOOKUP(B31,Simulador!$A$32:$W$550,19,0)," "))) -> 41.5 | H31: =IF($D$12=0," ",IF(B30=$D$12,Simulador!$T$30,+IF(B31>0,VLOOKUP(B31,Simulador!$A$32:$W$550,20,0)," "))) -> 35 | I31: =IF($D$12=0," ",IF(B30=$D$12,Simulador!$V$30,+IF(B31>0,VLOOKUP(B31,Simulador!$A$32:$W$550,22,0)," "))) -> 0 | J31: =IF($D$12=0," ",IF(B30=$D$12,Simulador!$W$30,+IF(B31>0,VLOOKUP(B31,Simulador!$A$32:$W$550,23,0)," "))) -> 1921.563153
B32: 15 | C32: =IF($D$12=0," ",IF(B31=$D$12,"TOTALES",+IF(B32>0,VLOOKUP(B32,Simulador!$A$32:$W$550,3,0)," "))) -> 2023-06-10 | D32: =IF($D$12=0," ",IF(B31=$D$12,Simulador!$M$30,+IF(B32>0,VLOOKUP(B32,Simulador!$A$32:$W$550,13,0)," "))) -> 1287.89 | E32: =IF($D$12=0," ",IF(B31=$D$12,Simulador!$N$30,+IF(B32>0,VLOOKUP(B32,Simulador!$A$32:$W$550,14,0)," "))) -> 535.91 | F32: =IF($D$12=0," ",IF(B31=$D$12,Simulador!$O$30,+IF(B32>0,VLOOKUP(B32,Simulador!$A$32:$W$550,15,0)," "))) -> 21.26315278 | G32: =IF($D$12=0," ",IF(B31=$D$12,Simulador!$S$30,+IF(B32>0,VLOOKUP(B32,Simulador!$A$32:$W$550,19,0)," "))) -> 41.5 | H32: =IF($D$12=0," ",IF(B31=$D$12,Simulador!$T$30,+IF(B32>0,VLOOKUP(B32,Simulador!$A$32:$W$550,20,0)," "))) -> 35 | I32: =IF($D$12=0," ",IF(B31=$D$12,Simulador!$V$30,+IF(B32>0,VLOOKUP(B32,Simulador!$A$32:$W$550,22,0)," "))) -> 0 | J32: =IF($D$12=0," ",IF(B31=$D$12,Simulador!$W$30,+IF(B32>0,VLOOKUP(B32,Simulador!$A$32:$W$550,23,0)," "))) -> 1921.563153
B33: 16 | C33: =IF($D$12=0," ",IF(B32=$D$12,"TOTALES",+IF(B33>0,VLOOKUP(B33,Simulador!$A$32:$W$550,3,0)," "))) -> 2023-07-10 | D33: =IF($D$12=0," ",IF(B32=$D$12,Simulador!$M$30,+IF(B33>0,VLOOKUP(B33,Simulador!$A$32:$W$550,13,0)," "))) -> 1325.03 | E33: =IF($D$12=0," ",IF(B32=$D$12,Simulador!$N$30,+IF(B33>0,VLOOKUP(B33,Simulador!$A$32:$W$550,14,0)," "))) -> 498.77 | F33: =IF($D$12=0," ",IF(B32=$D$12,Simulador!$O$30,+IF(B33>0,VLOOKUP(B33,Simulador!$A$32:$W$550,15,0)," "))) -> 21.26315278 | G33: =IF($D$12=0," ",IF(B32=$D$12,Simulador!$S$30,+IF(B33>0,VLOOKUP(B33,Simulador!$A$32:$W$550,19,0)," "))) -> 41.5 | H33: =IF($D$12=0," ",IF(B32=$D$12,Simulador!$T$30,+IF(B33>0,VLOOKUP(B33,Simulador!$A$32:$W$550,20,0)," "))) -> 35 | I33: =IF($D$12=0," ",IF(B32=$D$12,Simulador!$V$30,+IF(B33>0,VLOOKUP(B33,Simulador!$A$32:$W$550,22,0)," "))) -> 0 | J33: =IF($D$12=0," ",IF(B32=$D$12,Simulador!$W$30,+IF(B33>0,VLOOKUP(B33,Simulador!$A$32:$W$550,23,0)," "))) -> 1921.563153
B34: 17 | C34: =IF($D$12=0," ",IF(B33=$D$12,"TOTALES",+IF(B34>0,VLOOKUP(B34,Simulador!$A$32:$W$550,3,0)," "))) -> 2023-08-10 | D34: =IF($D$12=0," ",IF(B33=$D$12,Simulador!$M$30,+IF(B34>0,VLOOKUP(B34,Simulador!$A$32:$W$550,13,0)," "))) -> 1329.24 | E34: =IF($D$12=0," ",IF(B33=$D$12,Simulador!$N$30,+IF(B34>0,VLOOKUP(B34,Simulador!$A$32:$W$550,14,0)," "))) -> 494.56 | F34: =IF($D$12=0," ",IF(B33=$D$12,Simulador!$O$30,+IF(B34>0,VLOOKUP(B34,Simulador!$A$32:$W$550,15,0)," "))) -> 21.26315278 | G34: =IF($D$12=0," ",IF(B33=$D$12,Simulador!$S$30,+IF(B34>0,VLOOKUP(B34,Simulador!$A$32:$W$550,19,0)," "))) -> 41.5 | H34: =IF($D$12=0," ",IF(B33=$D$12,Simulador!$T$30,+IF(B34>0,VLOOKUP(B34,Simulador!$A$32:$W$550,20,0)," "))) -> 35 | I34: =IF($D$12=0," ",IF(B33=$D$12,Simulador!$V$30,+IF(B34>0,VLOOKUP(B34,Simulador!$A$32:$W$550,22,0)," "))) -> 0 | J34: =IF($D$12=0," ",IF(B33=$D$12,Simulador!$W$30,+IF(B34>0,VLOOKUP(B34,Simulador!$A$32:$W$550,23,0)," "))) -> 1921.563153
B35: 18 | C35: =IF($D$12=0," ",IF(B34=$D$12,"TOTALES",+IF(B35>0,VLOOKUP(B35,Simulador!$A$32:$W$550,3,0)," "))) -> 2023-09-10 | D35: =IF($D$12=0," ",IF(B34=$D$12,Simulador!$M$30,+IF(B35>0,VLOOKUP(B35,Simulador!$A$32:$W$550,13,0)," "))) -> 1350.27 | E35: =IF($D$12=0," ",IF(B34=$D$12,Simulador!$N$30,+IF(B35>0,VLOOKUP(B35,Simulador!$A$32:$W$550,14,0)," "))) -> 473.53 | F35: =IF($D$12=0," ",IF(B34=$D$12,Simulador!$O$30,+IF(B35>0,VLOOKUP(B35,Simulador!$A$32:$W$550,15,0)," "))) -> 21.26315278 | G35: =IF($D$12=0," ",IF(B34=$D$12,Simulador!$S$30,+IF(B35>0,VLOOKUP(B35,Simulador!$A$32:$W$550,19,0)," "))) -> 41.5 | H35: =IF($D$12=0," ",IF(B34=$D$12,Simulador!$T$30,+IF(B35>0,VLOOKUP(B35,Simulador!$A$32:$W$550,20,0)," "))) -> 35 | I35: =IF($D$12=0," ",IF(B34=$D$12,Simulador!$V$30,+IF(B35>0,VLOOKUP(B35,Simulador!$A$32:$W$550,22,0)," "))) -> 0 | J35: =IF($D$12=0," ",IF(B34=$D$12,Simulador!$W$30,+IF(B35>0,VLOOKUP(B35,Simulador!$A$32:$W$550,23,0)," "))) -> 1921.563153
B36: 19 | C36: =IF($D$12=0," ",IF(B35=$D$12,"TOTALES",+IF(B36>0,VLOOKUP(B36,Simulador!$A$32:$W$550,3,0)," "))) -> 2023-10-10 | D36: =IF($D$12=0," ",IF(B35=$D$12,Simulador!$M$30,+IF(B36>0,VLOOKUP(B36,Simulador!$A$32:$W$550,13,0)," "))) -> 1386.33 | E36: =IF($D$12=0," ",IF(B35=$D$12,Simulador!$N$30,+IF(B36>0,VLOOKUP(B36,Simulador!$A$32:$W$550,14,0)," "))) -> 437.47 | F36: =IF($D$12=0," ",IF(B35=$D$12,Simulador!$O$30,+IF(B36>0,VLOOKUP(B36,Simulador!$A$32:$W$550,15,0)," "))) -> 21.26315278 | G36: =IF($D$12=0," ",IF(B35=$D$12,Simulador!$S$30,+IF(B36>0,VLOOKUP(B36,Simulador!$A$32:$W$550,19,0)," "))) -> 41.5 | H36: =IF($D$12=0," ",IF(B35=$D$12,Simulador!$T$30,+IF(B36>0,VLOOKUP(B36,Simulador!$A$32:$W$550,20,0)," "))) -> 35 | I36: =IF($D$12=0," ",IF(B35=$D$12,Simulador!$V$30,+IF(B36>0,VLOOKUP(B36,Simulador!$A$32:$W$550,22,0)," "))) -> 0 | J36: =IF($D$12=0," ",IF(B35=$D$12,Simulador!$W$30,+IF(B36>0,VLOOKUP(B36,Simulador!$A$32:$W$550,23,0)," "))) -> 1921.563153
B37: 20 | C37: =IF($D$12=0," ",IF(B36=$D$12,"TOTALES",+IF(B37>0,VLOOKUP(B37,Simulador!$A$32:$W$550,3,0)," "))) -> 2023-11-10 | D37: =IF($D$12=0," ",IF(B36=$D$12,Simulador!$M$30,+IF(B37>0,VLOOKUP(B37,Simulador!$A$32:$W$550,13,0)," "))) -> 1393.57 | E37: =IF($D$12=0," ",IF(B36=$D$12,Simulador!$N$30,+IF(B37>0,VLOOKUP(B37,Simulador!$A$32:$W$550,14,0)," "))) -> 430.23 | F37: =IF($D$12=0," ",IF(B36=$D$12,Simulador!$O$30,+IF(B37>0,VLOOKUP(B37,Simulador!$A$32:$W$550,15,0)," "))) -> 21.26315278 | G37: =IF($D$12=0," ",IF(B36=$D$12,Simulador!$S$30,+IF(B37>0,VLOOKUP(B37,Simulador!$A$32:$W$550,19,0)," "))) -> 41.5 | H37: =IF($D$12=0," ",IF(B36=$D$12,Simulador!$T$30,+IF(B37>0,VLOOKUP(B37,Simulador!$A$32:$W$550,20,0)," "))) -> 35 | I37: =IF($D$12=0," ",IF(B36=$D$12,Simulador!$V$30,+IF(B37>0,VLOOKUP(B37,Simulador!$A$32:$W$550,22,0)," "))) -> 0 | J37: =IF($D$12=0," ",IF(B36=$D$12,Simulador!$W$30,+IF(B37>0,VLOOKUP(B37,Simulador!$A$32:$W$550,23,0)," "))) -> 1921.563153
B38: 21 | C38: =IF($D$12=0," ",IF(B37=$D$12,"TOTALES",+IF(B38>0,VLOOKUP(B38,Simulador!$A$32:$W$550,3,0)," "))) -> 2023-12-10 | D38: =IF($D$12=0," ",IF(B37=$D$12,Simulador!$M$30,+IF(B38>0,VLOOKUP(B38,Simulador!$A$32:$W$550,13,0)," "))) -> 1428.89 | E38: =IF($D$12=0," ",IF(B37=$D$12,Simulador!$N$30,+IF(B38>0,VLOOKUP(B38,Simulador!$A$32:$W$550,14,0)," "))) -> 394.91 | F38: =IF($D$12=0," ",IF(B37=$D$12,Simulador!$O$30,+IF(B38>0,VLOOKUP(B38,Simulador!$A$32:$W$550,15,0)," "))) -> 21.26315278 | G38: =IF($D$12=0," ",IF(B37=$D$12,Simulador!$S$30,+IF(B38>0,VLOOKUP(B38,Simulador!$A$32:$W$550,19,0)," "))) -> 41.5 | H38: =IF($D$12=0," ",IF(B37=$D$12,Simulador!$T$30,+IF(B38>0,VLOOKUP(B38,Simulador!$A$32:$W$550,20,0)," "))) -> 35 | I38: =IF($D$12=0," ",IF(B37=$D$12,Simulador!$V$30,+IF(B38>0,VLOOKUP(B38,Simulador!$A$32:$W$550,22,0)," "))) -> 0 | J38: =IF($D$12=0," ",IF(B37=$D$12,Simulador!$W$30,+IF(B38>0,VLOOKUP(B38,Simulador!$A$32:$W$550,23,0)," "))) -> 1921.563153
B39: 22 | C39: =IF($D$12=0," ",IF(B38=$D$12,"TOTALES",+IF(B39>0,VLOOKUP(B39,Simulador!$A$32:$W$550,3,0)," "))) -> 2024-01-10 | D39: =IF($D$12=0," ",IF(B38=$D$12,Simulador!$M$30,+IF(B39>0,VLOOKUP(B39,Simulador!$A$32:$W$550,13,0)," "))) -> 1438.24 | E39: =IF($D$12=0," ",IF(B38=$D$12,Simulador!$N$30,+IF(B39>0,VLOOKUP(B39,Simulador!$A$32:$W$550,14,0)," "))) -> 385.56 | F39: =IF($D$12=0," ",IF(B38=$D$12,Simulador!$O$30,+IF(B39>0,VLOOKUP(B39,Simulador!$A$32:$W$550,15,0)," "))) -> 21.26315278 | G39: =IF($D$12=0," ",IF(B38=$D$12,Simulador!$S$30,+IF(B39>0,VLOOKUP(B39,Simulador!$A$32:$W$550,19,0)," "))) -> 41.5 | H39: =IF($D$12=0," ",IF(B38=$D$12,Simulador!$T$30,+IF(B39>0,VLOOKUP(B39,Simulador!$A$32:$W$550,20,0)," "))) -> 35 | I39: =IF($D$12=0," ",IF(B38=$D$12,Simulador!$V$30,+IF(B39>0,VLOOKUP(B39,Simulador!$A$32:$W$550,22,0)," "))) -> 0 | J39: =IF($D$12=0," ",IF(B38=$D$12,Simulador!$W$30,+IF(B39>0,VLOOKUP(B39,Simulador!$A$32:$W$550,23,0)," "))) -> 1921.563153
B40: 23 | C40: =IF($D$12=0," ",IF(B39=$D$12,"TOTALES",+IF(B40>0,VLOOKUP(B40,Simulador!$A$32:$W$550,3,0)," "))) -> 2024-02-10 | D40: =IF($D$12=0," ",IF(B39=$D$12,Simulador!$M$30,+IF(B40>0,VLOOKUP(B40,Simulador!$A$32:$W$550,13,0)," "))) -> 1460.99 | E40: =IF($D$12=0," ",IF(B39=$D$12,Simulador!$N$30,+IF(B40>0,VLOOKUP(B40,Simulador!$A$32:$W$550,14,0)," "))) -> 362.81 | F40: =IF($D$12=0," ",IF(B39=$D$12,Simulador!$O$30,+IF(B40>0,VLOOKUP(B40,Simulador!$A$32:$W$550,15,0)," "))) -> 21.26315278 | G40: =IF($D$12=0," ",IF(B39=$D$12,Simulador!$S$30,+IF(B40>0,VLOOKUP(B40,Simulador!$A$32:$W$550,19,0)," "))) -> 41.5 | H40: =IF($D$12=0," ",IF(B39=$D$12,Simulador!$T$30,+IF(B40>0,VLOOKUP(B40,Simulador!$A$32:$W$550,20,0)," "))) -> 35 | I40: =IF($D$12=0," ",IF(B39=$D$12,Simulador!$V$30,+IF(B40>0,VLOOKUP(B40,Simulador!$A$32:$W$550,22,0)," "))) -> 0 | J40: =IF($D$12=0," ",IF(B39=$D$12,Simulador!$W$30,+IF(B40>0,VLOOKUP(B40,Simulador!$A$32:$W$550,23,0)," "))) -> 1921.563153
B41: 24 | C41: =IF($D$12=0," ",IF(B40=$D$12,"TOTALES",+IF(B41>0,VLOOKUP(B41,Simulador!$A$32:$W$550,3,0)," "))) -> 2024-03-10 | D41: =IF($D$12=0," ",IF(B40=$D$12,Simulador!$M$30,+IF(B41>0,VLOOKUP(B41,Simulador!$A$32:$W$550,13,0)," "))) -> 1506.19 | E41: =IF($D$12=0," ",IF(B40=$D$12,Simulador!$N$30,+IF(B41>0,VLOOKUP(B41,Simulador!$A$32:$W$550,14,0)," "))) -> 317.61 | F41: =IF($D$12=0," ",IF(B40=$D$12,Simulador!$O$30,+IF(B41>0,VLOOKUP(B41,Simulador!$A$32:$W$550,15,0)," "))) -> 21.26315278 | G41: =IF($D$12=0," ",IF(B40=$D$12,Simulador!$S$30,+IF(B41>0,VLOOKUP(B41,Simulador!$A$32:$W$550,19,0)," "))) -> 41.5 | H41: =IF($D$12=0," ",IF(B40=$D$12,Simulador!$T$30,+IF(B41>0,VLOOKUP(B41,Simulador!$A$32:$W$550,20,0)," "))) -> 35 | I41: =IF($D$12=0," ",IF(B40=$D$12,Simulador!$V$30,+IF(B41>0,VLOOKUP(B41,Simulador!$A$32:$W$550,22,0)," "))) -> 0 | J41: =IF($D$12=0," ",IF(B40=$D$12,Simulador!$W$30,+IF(B41>0,VLOOKUP(B41,Simulador!$A$32:$W$550,23,0)," "))) -> 1921.563153
B42: 25 | C42: =IF($D$12=0," ",IF(B41=$D$12,"TOTALES",+IF(B42>0,VLOOKUP(B42,Simulador!$A$32:$W$550,3,0)," "))) -> 2024-04-10 | D42: =IF($D$12=0," ",IF(B41=$D$12,Simulador!$M$30,+IF(B42>0,VLOOKUP(B42,Simulador!$A$32:$W$550,13,0)," "))) -> 1507.95 | E42: =IF($D$12=0," ",IF(B41=$D$12,Simulador!$N$30,+IF(B42>0,VLOOKUP(B42,Simulador!$A$32:$W$550,14,0)," "))) -> 315.85 | F42: =IF($D$12=0," ",IF(B41=$D$12,Simulador!$O$30,+IF(B42>0,VLOOKUP(B42,Simulador!$A$32:$W$550,15,0)," "))) -> 21.26315278 | G42: =IF($D$12=0," ",IF(B41=$D$12,Simulador!$S$30,+IF(B42>0,VLOOKUP(B42,Simulador!$A$32:$W$550,19,0)," "))) -> 41.5 | H42: =IF($D$12=0," ",IF(B41=$D$12,Simulador!$T$30,+IF(B42>0,VLOOKUP(B42,Simulador!$A$32:$W$550,20,0)," "))) -> 35 | I42: =IF($D$12=0," ",IF(B41=$D$12,Simulador!$V$30,+IF(B42>0,VLOOKUP(B42,Simulador!$A$32:$W$550,22,0)," "))) -> 0 | J42: =IF($D$12=0," ",IF(B41=$D$12,Simulador!$W$30,+IF(B42>0,VLOOKUP(B42,Simulador!$A$32:$W$550,23,0)," "))) -> 1921.563153
B43: 26 | C43: =IF($D$12=0," ",IF(B42=$D$12,"TOTALES",+IF(B43>0,VLOOKUP(B43,Simulador!$A$32:$W$550,3,0)," "))) -> 2024-05-10 | D43: =IF($D$12=0," ",IF(B42=$D$12,Simulador!$M$30,+IF(B43>0,VLOOKUP(B43,Simulador!$A$32:$W$550,13,0)," "))) -> 1541.3 | E43: =IF($D$12=0," ",IF(B42=$D$12,Simulador!$N$30,+IF(B43>0,VLOOKUP(B43,Simulador!$A$32:$W$550,14,0)," "))) -> 282.5 | F43: =IF($D$12=0," ",IF(B42=$D$12,Simulador!$O$30,+IF(B43>0,VLOOKUP(B43,Simulador!$A$32:$W$550,15,0)," "))) -> 21.26315278 | G43: =IF($D$12=0," ",IF(B42=$D$12,Simulador!$S$30,+IF(B43>0,VLOOKUP(B43,Simulador!$A$32:$W$550,19,0)," "))) -> 41.5 | H43: =IF($D$12=0," ",IF(B42=$D$12,Simulador!$T$30,+IF(B43>0,VLOOKUP(B43,Simulador!$A$32:$W$550,20,0)," "))) -> 35 | I43: =IF($D$12=0," ",IF(B42=$D$12,Simulador!$V$30,+IF(B43>0,VLOOKUP(B43,Simulador!$A$32:$W$550,22,0)," "))) -> 0 | J43: =IF($D$12=0," ",IF(B42=$D$12,Simulador!$W$30,+IF(B43>0,VLOOKUP(B43,Simulador!$A$32:$W$550,23,0)," "))) -> 1921.563153
B44: 27 | C44: =IF($D$12=0," ",IF(B43=$D$12,"TOTALES",+IF(B44>0,VLOOKUP(B44,Simulador!$A$32:$W$550,3,0)," "))) -> 2024-06-10 | D44: =IF($D$12=0," ",IF(B43=$D$12,Simulador!$M$30,+IF(B44>0,VLOOKUP(B44,Simulador!$A$32:$W$550,13,0)," "))) -> 1556.2 | E44: =IF($D$12=0," ",IF(B43=$D$12,Simulador!$N$30,+IF(B44>0,VLOOKUP(B44,Simulador!$A$32:$W$550,14,0)," "))) -> 267.6 | F44: =IF($D$12=0," ",IF(B43=$D$12,Simulador!$O$30,+IF(B44>0,VLOOKUP(B44,Simulador!$A$32:$W$550,15,0)," "))) -> 21.26315278 | G44: =IF($D$12=0," ",IF(B43=$D$12,Simulador!$S$30,+IF(B44>0,VLOOKUP(B44,Simulador!$A$32:$W$550,19,0)," "))) -> 41.5 | H44: =IF($D$12=0," ",IF(B43=$D$12,Simulador!$T$30,+IF(B44>0,VLOOKUP(B44,Simulador!$A$32:$W$550,20,0)," "))) -> 35 | I44: =IF($D$12=0," ",IF(B43=$D$12,Simulador!$V$30,+IF(B44>0,VLOOKUP(B44,Simulador!$A$32:$W$550,22,0)," "))) -> 0 | J44: =IF($D$12=0," ",IF(B43=$D$12,Simulador!$W$30,+IF(B44>0,VLOOKUP(B44,Simulador!$A$32:$W$550,23,0)," "))) -> 1921.563153
B45: 28 | C45: =IF($D$12=0," ",IF(B44=$D$12,"TOTALES",+IF(B45>0,VLOOKUP(B45,Simulador!$A$32:$W$550,3,0)," "))) -> 2024-07-10 | D45: =IF($D$12=0," ",IF(B44=$D$12,Simulador!$M$30,+IF(B45>0,VLOOKUP(B45,Simulador!$A$32:$W$550,13,0)," "))) -> 1588.72 | E45: =IF($D$12=0," ",IF(B44=$D$12,Simulador!$N$30,+IF(B45>0,VLOOKUP(B45,Simulador!$A$32:$W$550,14,0)," "))) -> 235.08 | F45: =IF($D$12=0," ",IF(B44=$D$12,Simulador!$O$30,+IF(B45>0,VLOOKUP(B45,Simulador!$A$32:$W$550,15,0)," "))) -> 21.26315278 | G45: =IF($D$12=0," ",IF(B44=$D$12,Simulador!$S$30,+IF(B45>0,VLOOKUP(B45,Simulador!$A$32:$W$550,19,0)," "))) -> 41.5 | H45: =IF($D$12=0," ",IF(B44=$D$12,Simulador!$T$30,+IF(B45>0,VLOOKUP(B45,Simulador!$A$32:$W$550,20,0)," "))) -> 35 | I45: =IF($D$12=0," ",IF(B44=$D$12,Simulador!$V$30,+IF(B45>0,VLOOKUP(B45,Simulador!$A$32:$W$550,22,0)," "))) -> 0 | J45: =IF($D$12=0," ",IF(B44=$D$12,Simulador!$W$30,+IF(B45>0,VLOOKUP(B45,Simulador!$A$32:$W$550,23,0)," "))) -> 1921.563153
B46: 29 | C46: =IF($D$12=0," ",IF(B45=$D$12,"TOTALES",+IF(B46>0,VLOOKUP(B46,Simulador!$A$32:$W$550,3,0)," "))) -> 2024-08-10 | D46: =IF($D$12=0," ",IF(B45=$D$12,Simulador!$M$30,+IF(B46>0,VLOOKUP(B46,Simulador!$A$32:$W$550,13,0)," "))) -> 1605.96 | E46: =IF($D$12=0," ",IF(B45=$D$12,Simulador!$N$30,+IF(B46>0,VLOOKUP(B46,Simulador!$A$32:$W$550,14,0)," "))) -> 217.84 | F46: =IF($D$12=0," ",IF(B45=$D$12,Simulador!$O$30,+IF(B46>0,VLOOKUP(B46,Simulador!$A$32:$W$550,15,0)," "))) -> 21.26315278 | G46: =IF($D$12=0," ",IF(B45=$D$12,Simulador!$S$30,+IF(B46>0,VLOOKUP(B46,Simulador!$A$32:$W$550,19,0)," "))) -> 41.5 | H46: =IF($D$12=0," ",IF(B45=$D$12,Simulador!$T$30,+IF(B46>0,VLOOKUP(B46,Simulador!$A$32:$W$550,20,0)," "))) -> 35 | I46: =IF($D$12=0," ",IF(B45=$D$12,Simulador!$V$30,+IF(B46>0,VLOOKUP(B46,Simulador!$A$32:$W$550,22,0)," "))) -> 0 | J46: =IF($D$12=0," ",IF(B45=$D$12,Simulador!$W$30,+IF(B46>0,VLOOKUP(B46,Simulador!$A$32:$W$550,23,0)," "))) -> 1921.563153
B47: 30 | C47: =IF($D$12=0," ",IF(B46=$D$12,"TOTALES",+IF(B47>0,VLOOKUP(B47,Simulador!$A$32:$W$550,3,0)," "))) -> 2024-09-10 | D47: =IF($D$12=0," ",IF(B46=$D$12,Simulador!$M$30,+IF(B47>0,VLOOKUP(B47,Simulador!$A$32:$W$550,13,0)," "))) -> 1631.37 | E47: =IF($D$12=0," ",IF(B46=$D$12,Simulador!$N$30,+IF(B47>0,VLOOKUP(B47,Simulador!$A$32:$W$550,14,0)," "))) -> 192.43 | F47: =IF($D$12=0," ",IF(B46=$D$12,Simulador!$O$30,+IF(B47>0,VLOOKUP(B47,Simulador!$A$32:$W$550,15,0)," "))) -> 21.26315278 | G47: =IF($D$12=0," ",IF(B46=$D$12,Simulador!$S$30,+IF(B47>0,VLOOKUP(B47,Simulador!$A$32:$W$550,19,0)," "))) -> 41.5 | H47: =IF($D$12=0," ",IF(B46=$D$12,Simulador!$T$30,+IF(B47>0,VLOOKUP(B47,Simulador!$A$32:$W$550,20,0)," "))) -> 35 | I47: =IF($D$12=0," ",IF(B46=$D$12,Simulador!$V$30,+IF(B47>0,VLOOKUP(B47,Simulador!$A$32:$W$550,22,0)," "))) -> 0 | J47: =IF($D$12=0," ",IF(B46=$D$12,Simulador!$W$30,+IF(B47>0,VLOOKUP(B47,Simulador!$A$32:$W$550,23,0)," "))) -> 1921.563153
B48: 31 | C48: =IF($D$12=0," ",IF(B47=$D$12,"TOTALES",+IF(B48>0,VLOOKUP(B48,Simulador!$A$32:$W$550,3,0)," "))) -> 2024-10-10 | D48: =IF($D$12=0," ",IF(B47=$D$12,Simulador!$M$30,+IF(B48>0,VLOOKUP(B48,Simulador!$A$32:$W$550,13,0)," "))) -> 1662.6 | E48: =IF($D$12=0," ",IF(B47=$D$12,Simulador!$N$30,+IF(B48>0,VLOOKUP(B48,Simulador!$A$32:$W$550,14,0)," "))) -> 161.2 | F48: =IF($D$12=0," ",IF(B47=$D$12,Simulador!$O$30,+IF(B48>0,VLOOKUP(B48,Simulador!$A$32:$W$550,15,0)," "))) -> 21.26315278 | G48: =IF($D$12=0," ",IF(B47=$D$12,Simulador!$S$30,+IF(B48>0,VLOOKUP(B48,Simulador!$A$32:$W$550,19,0)," "))) -> 41.5 | H48: =IF($D$12=0," ",IF(B47=$D$12,Simulador!$T$30,+IF(B48>0,VLOOKUP(B48,Simulador!$A$32:$W$550,20,0)," "))) -> 35 | I48: =IF($D$12=0," ",IF(B47=$D$12,Simulador!$V$30,+IF(B48>0,VLOOKUP(B48,Simulador!$A$32:$W$550,22,0)," "))) -> 0 | J48: =IF($D$12=0," ",IF(B47=$D$12,Simulador!$W$30,+IF(B48>0,VLOOKUP(B48,Simulador!$A$32:$W$550,23,0)," "))) -> 1921.563153
B49: 32 | C49: =IF($D$12=0," ",IF(B48=$D$12,"TOTALES",+IF(B49>0,VLOOKUP(B49,Simulador!$A$32:$W$550,3,0)," "))) -> 2024-11-10 | D49: =IF($D$12=0," ",IF(B48=$D$12,Simulador!$M$30,+IF(B49>0,VLOOKUP(B49,Simulador!$A$32:$W$550,13,0)," "))) -> 1683.5 | E49: =IF($D$12=0," ",IF(B48=$D$12,Simulador!$N$30,+IF(B49>0,VLOOKUP(B49,Simulador!$A$32:$W$550,14,0)," "))) -> 140.3 | F49: =IF($D$12=0," ",IF(B48=$D$12,Simulador!$O$30,+IF(B49>0,VLOOKUP(B49,Simulador!$A$32:$W$550,15,0)," "))) -> 21.26315278 | G49: =IF($D$12=0," ",IF(B48=$D$12,Simulador!$S$30,+IF(B49>0,VLOOKUP(B49,Simulador!$A$32:$W$550,19,0)," "))) -> 41.5 | H49: =IF($D$12=0," ",IF(B48=$D$12,Simulador!$T$30,+IF(B49>0,VLOOKUP(B49,Simulador!$A$32:$W$550,20,0)," "))) -> 35 | I49: =IF($D$12=0," ",IF(B48=$D$12,Simulador!$V$30,+IF(B49>0,VLOOKUP(B49,Simulador!$A$32:$W$550,22,0)," "))) -> 0 | J49: =IF($D$12=0," ",IF(B48=$D$12,Simulador!$W$30,+IF(B49>0,VLOOKUP(B49,Simulador!$A$32:$W$550,23,0)," "))) -> 1921.563153
B50: 33 | C50: =IF($D$12=0," ",IF(B49=$D$12,"TOTALES",+IF(B50>0,VLOOKUP(B50,Simulador!$A$32:$W$550,3,0)," "))) -> 2024-12-10 | D50: =IF($D$12=0," ",IF(B49=$D$12,Simulador!$M$30,+IF(B50>0,VLOOKUP(B50,Simulador!$A$32:$W$550,13,0)," "))) -> 1713.83 | E50: =IF($D$12=0," ",IF(B49=$D$12,Simulador!$N$30,+IF(B50>0,VLOOKUP(B50,Simulador!$A$32:$W$550,14,0)," "))) -> 109.97 | F50: =IF($D$12=0," ",IF(B49=$D$12,Simulador!$O$30,+IF(B50>0,VLOOKUP(B50,Simulador!$A$32:$W$550,15,0)," "))) -> 21.26315278 | G50: =IF($D$12=0," ",IF(B49=$D$12,Simulador!$S$30,+IF(B50>0,VLOOKUP(B50,Simulador!$A$32:$W$550,19,0)," "))) -> 41.5 | H50: =IF($D$12=0," ",IF(B49=$D$12,Simulador!$T$30,+IF(B50>0,VLOOKUP(B50,Simulador!$A$32:$W$550,20,0)," "))) -> 35 | I50: =IF($D$12=0," ",IF(B49=$D$12,Simulador!$V$30,+IF(B50>0,VLOOKUP(B50,Simulador!$A$32:$W$550,22,0)," "))) -> 0 | J50: =IF($D$12=0," ",IF(B49=$D$12,Simulador!$W$30,+IF(B50>0,VLOOKUP(B50,Simulador!$A$32:$W$550,23,0)," "))) -> 1921.563153
B51: =IF(B50=0," ",IF(B50>=$D$12,"",B50+1)) -> 34 | C51: =IF($D$12=0," ",IF(B50=$D$12,"TOTALES",+IF(B51>0,VLOOKUP(B51,Simulador!$A$32:$W$550,3,0)," "))) -> 2025-01-10 | D51: =IF($D$12=0," ",IF(B50=$D$12,Simulador!$M$30,+IF(B51>0,VLOOKUP(B51,Simulador!$A$32:$W$550,13,0)," "))) -> 1737.26 | E51: =IF($D$12=0," ",IF(B50=$D$12,Simulador!$N$30,+IF(B51>0,VLOOKUP(B51,Simulador!$A$32:$W$550,14,0)," "))) -> 86.54 | F51: =IF($D$12=0," ",IF(B50=$D$12,Simulador!$O$30,+IF(B51>0,VLOOKUP(B51,Simulador!$A$32:$W$550,15,0)," "))) -> 21.26315278 | G51: =IF($D$12=0," ",IF(B50=$D$12,Simulador!$S$30,+IF(B51>0,VLOOKUP(B51,Simulador!$A$32:$W$550,19,0)," "))) -> 41.5 | H51: =IF($D$12=0," ",IF(B50=$D$12,Simulador!$T$30,+IF(B51>0,VLOOKUP(B51,Simulador!$A$32:$W$550,20,0)," "))) -> 35 | I51: =IF($D$12=0," ",IF(B50=$D$12,Simulador!$V$30,+IF(B51>0,VLOOKUP(B51,Simulador!$A$32:$W$550,22,0)," "))) -> 0 | J51: =IF($D$12=0," ",IF(B50=$D$12,Simulador!$W$30,+IF(B51>0,VLOOKUP(B51,Simulador!$A$32:$W$550,23,0)," "))) -> 1921.563153
B52: 35 | C52: =IF($D$12=0," ",IF(B51=$D$12,"TOTALES",+IF(B52>0,VLOOKUP(B52,Simulador!$A$32:$W$550,3,0)," "))) -> 2025-02-10 | D52: =IF($D$12=0," ",IF(B51=$D$12,Simulador!$M$30,+IF(B52>0,VLOOKUP(B52,Simulador!$A$32:$W$550,13,0)," "))) -> 1764.75 | E52: =IF($D$12=0," ",IF(B51=$D$12,Simulador!$N$30,+IF(B52>0,VLOOKUP(B52,Simulador!$A$32:$W$550,14,0)," "))) -> 59.05 | F52: =IF($D$12=0," ",IF(B51=$D$12,Simulador!$O$30,+IF(B52>0,VLOOKUP(B52,Simulador!$A$32:$W$550,15,0)," "))) -> 21.26315278 | G52: =IF($D$12=0," ",IF(B51=$D$12,Simulador!$S$30,+IF(B52>0,VLOOKUP(B52,Simulador!$A$32:$W$550,19,0)," "))) -> 41.5 | H52: =IF($D$12=0," ",IF(B51=$D$12,Simulador!$T$30,+IF(B52>0,VLOOKUP(B52,Simulador!$A$32:$W$550,20,0)," "))) -> 35 | I52: =IF($D$12=0," ",IF(B51=$D$12,Simulador!$V$30,+IF(B52>0,VLOOKUP(B52,Simulador!$A$32:$W$550,22,0)," "))) -> 0 | J52: =IF($D$12=0," ",IF(B51=$D$12,Simulador!$W$30,+IF(B52>0,VLOOKUP(B52,Simulador!$A$32:$W$550,23,0)," "))) -> 1921.563153
B53: 36 | C53: =IF($D$12=0," ",IF(B52=$D$12,"TOTALES",+IF(B53>0,VLOOKUP(B53,Simulador!$A$32:$W$550,3,0)," "))) -> 2025-03-10 | D53: =IF($D$12=0," ",IF(B52=$D$12,Simulador!$M$30,+IF(B53>0,VLOOKUP(B53,Simulador!$A$32:$W$550,13,0)," "))) -> 1967.21 | E53: =IF($D$12=0," ",IF(B52=$D$12,Simulador!$N$30,+IF(B53>0,VLOOKUP(B53,Simulador!$A$32:$W$550,14,0)," "))) -> 28.09 | F53: =IF($D$12=0," ",IF(B52=$D$12,Simulador!$O$30,+IF(B53>0,VLOOKUP(B53,Simulador!$A$32:$W$550,15,0)," "))) -> 21.26315278 | G53: =IF($D$12=0," ",IF(B52=$D$12,Simulador!$S$30,+IF(B53>0,VLOOKUP(B53,Simulador!$A$32:$W$550,19,0)," "))) -> 41.5 | H53: =IF($D$12=0," ",IF(B52=$D$12,Simulador!$T$30,+IF(B53>0,VLOOKUP(B53,Simulador!$A$32:$W$550,20,0)," "))) -> 35 | I53: =IF($D$12=0," ",IF(B52=$D$12,Simulador!$V$30,+IF(B53>0,VLOOKUP(B53,Simulador!$A$32:$W$550,22,0)," "))) -> 0 | J53: =IF($D$12=0," ",IF(B52=$D$12,Simulador!$W$30,+IF(B53>0,VLOOKUP(B53,Simulador!$A$32:$W$550,23,0)," "))) -> 2093.063153
C54: =IF($D$12=0," ",IF(B53=$D$12,"TOTALES",+IF(B54>0,VLOOKUP(B54,Simulador!$A$32:$W$550,3,0)," "))) -> TOTALES | D54: =IF($D$12=0," ",IF(B53=$D$12,Simulador!$M$30,+IF(B54>0,VLOOKUP(B54,Simulador!$A$32:$W$550,13,0)," "))) -> 50000 | E54: =IF($D$12=0," ",IF(B53=$D$12,Simulador!$N$30,+IF(B54>0,VLOOKUP(B54,Simulador!$A$32:$W$550,14,0)," "))) -> 15751.8 | F54: =IF($D$12=0," ",IF(B53=$D$12,Simulador!$O$30,+IF(B54>0,VLOOKUP(B54,Simulador!$A$32:$W$550,15,0)," "))) -> 765.4735 | G54: =IF($D$12=0," ",IF(B53=$D$12,Simulador!$S$30,+IF(B54>0,VLOOKUP(B54,Simulador!$A$32:$W$550,19,0)," "))) -> 1535.5 | H54: =IF($D$12=0," ",IF(B53=$D$12,Simulador!$T$30,+IF(B54>0,VLOOKUP(B54,Simulador!$A$32:$W$550,20,0)," "))) -> 1295 | I54: =IF($D$12=0," ",IF(B53=$D$12,Simulador!$V$30,+IF(B54>0,VLOOKUP(B54,Simulador!$A$32:$W$550,22,0)," "))) -> 0 | J54: =IF($D$12=0," ",IF(B53=$D$12,Simulador!$W$30,+IF(B54>0,VLOOKUP(B54,Simulador!$A$32:$W$550,23,0)," "))) -> 69347.7735
C55: =IF($D$12=0," ",IF(B54=$D$12,"TOTALES",+IF(B55>0,VLOOKUP(B55,Simulador!$A$32:$W$550,3,0)," "))) ->  | D55: =IF($D$12=0," ",IF(B54=$D$12,Simulador!$M$30,+IF(B55>0,VLOOKUP(B55,Simulador!$A$32:$W$550,13,0)," "))) ->  | E55: =IF($D$12=0," ",IF(B54=$D$12,Simulador!$N$30,+IF(B55>0,VLOOKUP(B55,Simulador!$A$32:$W$550,14,0)," "))) ->  | F55: =IF($D$12=0," ",IF(B54=$D$12,Simulador!$O$30,+IF(B55>0,VLOOKUP(B55,Simulador!$A$32:$W$550,15,0)," "))) ->  | G55: =IF($D$12=0," ",IF(B54=$D$12,Simulador!$S$30,+IF(B55>0,VLOOKUP(B55,Simulador!$A$32:$W$550,19,0)," "))) ->  | H55: =IF($D$12=0," ",IF(B54=$D$12,Simulador!$T$30,+IF(B55>0,VLOOKUP(B55,Simulador!$A$32:$W$550,20,0)," "))) ->  | I55: =IF($D$12=0," ",IF(B54=$D$12,Simulador!$V$30,+IF(B55>0,VLOOKUP(B55,Simulador!$A$32:$W$550,22,0)," "))) ->  | J55: =IF($D$12=0," ",IF(B54=$D$12,Simulador!$W$30,+IF(B55>0,VLOOKUP(B55,Simulador!$A$32:$W$550,23,0)," "))) -> 
C56: =IF($D$12=0," ",IF(B55=$D$12,"TOTALES",+IF(B56>0,VLOOKUP(B56,Simulador!$A$32:$W$550,3,0)," "))) ->  | D56: =IF($D$12=0," ",IF(B55=$D$12,Simulador!$M$30,+IF(B56>0,VLOOKUP(B56,Simulador!$A$32:$W$550,13,0)," "))) ->  | E56: =IF($D$12=0," ",IF(B55=$D$12,Simulador!$N$30,+IF(B56>0,VLOOKUP(B56,Simulador!$A$32:$W$550,14,0)," "))) ->  | F56: =IF($D$12=0," ",IF(B55=$D$12,Simulador!$O$30,+IF(B56>0,VLOOKUP(B56,Simulador!$A$32:$W$550,15,0)," "))) ->  | G56: =IF($D$12=0," ",IF(B55=$D$12,Simulador!$S$30,+IF(B56>0,VLOOKUP(B56,Simulador!$A$32:$W$550,19,0)," "))) ->  | H56: =IF($D$12=0," ",IF(B55=$D$12,Simulador!$T$30,+IF(B56>0,VLOOKUP(B56,Simulador!$A$32:$W$550,20,0)," "))) ->  | I56: =IF($D$12=0," ",IF(B55=$D$12,Simulador!$V$30,+IF(B56>0,VLOOKUP(B56,Simulador!$A$32:$W$550,22,0)," "))) ->  | J56: =IF($D$12=0," ",IF(B55=$D$12,Simulador!$W$30,+IF(B56>0,VLOOKUP(B56,Simulador!$A$32:$W$550,23,0)," "))) -> 
C57: =IF($D$12=0," ",IF(B56=$D$12,"TOTALES",+IF(B57>0,VLOOKUP(B57,Simulador!$A$32:$W$550,3,0)," "))) ->  | D57: =IF($D$12=0," ",IF(B56=$D$12,Simulador!$M$30,+IF(B57>0,VLOOKUP(B57,Simulador!$A$32:$W$550,13,0)," "))) ->  | E57: =IF($D$12=0," ",IF(B56=$D$12,Simulador!$N$30,+IF(B57>0,VLOOKUP(B57,Simulador!$A$32:$W$550,14,0)," "))) ->  | F57: =IF($D$12=0," ",IF(B56=$D$12,Simulador!$O$30,+IF(B57>0,VLOOKUP(B57,Simulador!$A$32:$W$550,15,0)," "))) ->  | G57: =IF($D$12=0," ",IF(B56=$D$12,Simulador!$S$30,+IF(B57>0,VLOOKUP(B57,Simulador!$A$32:$W$550,19,0)," "))) ->  | H57: =IF($D$12=0," ",IF(B56=$D$12,Simulador!$T$30,+IF(B57>0,VLOOKUP(B57,Simulador!$A$32:$W$550,20,0)," "))) ->  | I57: =IF($D$12=0," ",IF(B56=$D$12,Simulador!$V$30,+IF(B57>0,VLOOKUP(B57,Simulador!$A$32:$W$550,22,0)," "))) ->  | J57: =IF($D$12=0," ",IF(B56=$D$12,Simulador!$W$30,+IF(B57>0,VLOOKUP(B57,Simulador!$A$32:$W$550,23,0)," "))) -> 
C58: =IF($D$12=0," ",IF(B57=$D$12,"TOTALES",+IF(B58>0,VLOOKUP(B58,Simulador!$A$32:$W$550,3,0)," "))) ->  | D58: =IF($D$12=0," ",IF(B57=$D$12,Simulador!$M$30,+IF(B58>0,VLOOKUP(B58,Simulador!$A$32:$W$550,13,0)," "))) ->  | E58: =IF($D$12=0," ",IF(B57=$D$12,Simulador!$N$30,+IF(B58>0,VLOOKUP(B58,Simulador!$A$32:$W$550,14,0)," "))) ->  | F58: =IF($D$12=0," ",IF(B57=$D$12,Simulador!$O$30,+IF(B58>0,VLOOKUP(B58,Simulador!$A$32:$W$550,15,0)," "))) ->  | G58: =IF($D$12=0," ",IF(B57=$D$12,Simulador!$S$30,+IF(B58>0,VLOOKUP(B58,Simulador!$A$32:$W$550,19,0)," "))) ->  | H58: =IF($D$12=0," ",IF(B57=$D$12,Simulador!$T$30,+IF(B58>0,VLOOKUP(B58,Simulador!$A$32:$W$550,20,0)," "))) ->  | I58: =IF($D$12=0," ",IF(B57=$D$12,Simulador!$V$30,+IF(B58>0,VLOOKUP(B58,Simulador!$A$32:$W$550,22,0)," "))) ->  | J58: =IF($D$12=0," ",IF(B57=$D$12,Simulador!$W$30,+IF(B58>0,VLOOKUP(B58,Simulador!$A$32:$W$550,23,0)," "))) -> 
C59: =IF($D$12=0," ",IF(B58=$D$12,"TOTALES",+IF(B59>0,VLOOKUP(B59,Simulador!$A$32:$W$550,3,0)," "))) ->  | D59: =IF($D$12=0," ",IF(B58=$D$12,Simulador!$M$30,+IF(B59>0,VLOOKUP(B59,Simulador!$A$32:$W$550,13,0)," "))) ->  | E59: =IF($D$12=0," ",IF(B58=$D$12,Simulador!$N$30,+IF(B59>0,VLOOKUP(B59,Simulador!$A$32:$W$550,14,0)," "))) ->  | F59: =IF($D$12=0," ",IF(B58=$D$12,Simulador!$O$30,+IF(B59>0,VLOOKUP(B59,Simulador!$A$32:$W$550,15,0)," "))) ->  | G59: =IF($D$12=0," ",IF(B58=$D$12,Simulador!$S$30,+IF(B59>0,VLOOKUP(B59,Simulador!$A$32:$W$550,19,0)," "))) ->  | H59: =IF($D$12=0," ",IF(B58=$D$12,Simulador!$T$30,+IF(B59>0,VLOOKUP(B59,Simulador!$A$32:$W$550,20,0)," "))) ->  | I59: =IF($D$12=0," ",IF(B58=$D$12,Simulador!$V$30,+IF(B59>0,VLOOKUP(B59,Simulador!$A$32:$W$550,22,0)," "))) ->  | J59: =IF($D$12=0," ",IF(B58=$D$12,Simulador!$W$30,+IF(B59>0,VLOOKUP(B59,Simulador!$A$32:$W$550,23,0)," "))) -> 
C60: =IF($D$12=0," ",IF(B59=$D$12,"TOTALES",+IF(B60>0,VLOOKUP(B60,Simulador!$A$32:$W$550,3,0)," "))) ->  | D60: =IF($D$12=0," ",IF(B59=$D$12,Simulador!$M$30,+IF(B60>0,VLOOKUP(B60,Simulador!$A$32:$W$550,13,0)," "))) ->  | E60: =IF($D$12=0," ",IF(B59=$D$12,Simulador!$N$30,+IF(B60>0,VLOOKUP(B60,Simulador!$A$32:$W$550,14,0)," "))) ->  | F60: =IF($D$12=0," ",IF(B59=$D$12,Simulador!$O$30,+IF(B60>0,VLOOKUP(B60,Simulador!$A$32:$W$550,15,0)," "))) ->  | G60: =IF($D$12=0," ",IF(B59=$D$12,Simulador!$S$30,+IF(B60>0,VLOOKUP(B60,Simulador!$A$32:$W$550,19,0)," "))) ->  | H60: =IF($D$12=0," ",IF(B59=$D$12,Simulador!$T$30,+IF(B60>0,VLOOKUP(B60,Simulador!$A$32:$W$550,20,0)," "))) ->  | I60: =IF($D$12=0," ",IF(B59=$D$12,Simulador!$V$30,+IF(B60>0,VLOOKUP(B60,Simulador!$A$32:$W$550,22,0)," "))) ->  | J60: =IF($D$12=0," ",IF(B59=$D$12,Simulador!$W$30,+IF(B60>0,VLOOKUP(B60,Simulador!$A$32:$W$550,23,0)," "))) -> 
C61: =IF($D$12=0," ",IF(B60=$D$12,"TOTALES",+IF(B61>0,VLOOKUP(B61,Simulador!$A$32:$W$550,3,0)," "))) ->  | D61: =IF($D$12=0," ",IF(B60=$D$12,Simulador!$M$30,+IF(B61>0,VLOOKUP(B61,Simulador!$A$32:$W$550,13,0)," "))) ->  | E61: =IF($D$12=0," ",IF(B60=$D$12,Simulador!$N$30,+IF(B61>0,VLOOKUP(B61,Simulador!$A$32:$W$550,14,0)," "))) ->  | F61: =IF($D$12=0," ",IF(B60=$D$12,Simulador!$O$30,+IF(B61>0,VLOOKUP(B61,Simulador!$A$32:$W$550,15,0)," "))) ->  | G61: =IF($D$12=0," ",IF(B60=$D$12,Simulador!$S$30,+IF(B61>0,VLOOKUP(B61,Simulador!$A$32:$W$550,19,0)," "))) ->  | H61: =IF($D$12=0," ",IF(B60=$D$12,Simulador!$T$30,+IF(B61>0,VLOOKUP(B61,Simulador!$A$32:$W$550,20,0)," "))) ->  | I61: =IF($D$12=0," ",IF(B60=$D$12,Simulador!$V$30,+IF(B61>0,VLOOKUP(B61,Simulador!$A$32:$W$550,22,0)," "))) ->  | J61: =IF($D$12=0," ",IF(B60=$D$12,Simulador!$W$30,+IF(B61>0,VLOOKUP(B61,Simulador!$A$32:$W$550,23,0)," "))) -> 
C62: =IF($D$12=0," ",IF(B61=$D$12,"TOTALES",+IF(B62>0,VLOOKUP(B62,Simulador!$A$32:$W$550,3,0)," "))) ->  | D62: =IF($D$12=0," ",IF(B61=$D$12,Simulador!$M$30,+IF(B62>0,VLOOKUP(B62,Simulador!$A$32:$W$550,13,0)," "))) ->  | E62: =IF($D$12=0," ",IF(B61=$D$12,Simulador!$N$30,+IF(B62>0,VLOOKUP(B62,Simulador!$A$32:$W$550,14,0)," "))) ->  | F62: =IF($D$12=0," ",IF(B61=$D$12,Simulador!$O$30,+IF(B62>0,VLOOKUP(B62,Simulador!$A$32:$W$550,15,0)," "))) ->  | G62: =IF($D$12=0," ",IF(B61=$D$12,Simulador!$S$30,+IF(B62>0,VLOOKUP(B62,Simulador!$A$32:$W$550,19,0)," "))) ->  | H62: =IF($D$12=0," ",IF(B61=$D$12,Simulador!$T$30,+IF(B62>0,VLOOKUP(B62,Simulador!$A$32:$W$550,20,0)," "))) ->  | I62: =IF($D$12=0," ",IF(B61=$D$12,Simulador!$V$30,+IF(B62>0,VLOOKUP(B62,Simulador!$A$32:$W$550,22,0)," "))) ->  | J62: =IF($D$12=0," ",IF(B61=$D$12,Simulador!$W$30,+IF(B62>0,VLOOKUP(B62,Simulador!$A$32:$W$550,23,0)," "))) -> 
C63: =IF($D$12=0," ",IF(B62=$D$12,"TOTALES",+IF(B63>0,VLOOKUP(B63,Simulador!$A$32:$W$550,3,0)," "))) ->  | D63: =IF($D$12=0," ",IF(B62=$D$12,Simulador!$M$30,+IF(B63>0,VLOOKUP(B63,Simulador!$A$32:$W$550,13,0)," "))) ->  | E63: =IF($D$12=0," ",IF(B62=$D$12,Simulador!$N$30,+IF(B63>0,VLOOKUP(B63,Simulador!$A$32:$W$550,14,0)," "))) ->  | F63: =IF($D$12=0," ",IF(B62=$D$12,Simulador!$O$30,+IF(B63>0,VLOOKUP(B63,Simulador!$A$32:$W$550,15,0)," "))) ->  | G63: =IF($D$12=0," ",IF(B62=$D$12,Simulador!$S$30,+IF(B63>0,VLOOKUP(B63,Simulador!$A$32:$W$550,19,0)," "))) ->  | H63: =IF($D$12=0," ",IF(B62=$D$12,Simulador!$T$30,+IF(B63>0,VLOOKUP(B63,Simulador!$A$32:$W$550,20,0)," "))) ->  | I63: =IF($D$12=0," ",IF(B62=$D$12,Simulador!$V$30,+IF(B63>0,VLOOKUP(B63,Simulador!$A$32:$W$550,22,0)," "))) ->  | J63: =IF($D$12=0," ",IF(B62=$D$12,Simulador!$W$30,+IF(B63>0,VLOOKUP(B63,Simulador!$A$32:$W$550,23,0)," "))) -> 
C64: =IF($D$12=0," ",IF(B63=$D$12,"TOTALES",+IF(B64>0,VLOOKUP(B64,Simulador!$A$32:$W$550,3,0)," "))) ->  | D64: =IF($D$12=0," ",IF(B63=$D$12,Simulador!$M$30,+IF(B64>0,VLOOKUP(B64,Simulador!$A$32:$W$550,13,0)," "))) ->  | E64: =IF($D$12=0," ",IF(B63=$D$12,Simulador!$N$30,+IF(B64>0,VLOOKUP(B64,Simulador!$A$32:$W$550,14,0)," "))) ->  | F64: =IF($D$12=0," ",IF(B63=$D$12,Simulador!$O$30,+IF(B64>0,VLOOKUP(B64,Simulador!$A$32:$W$550,15,0)," "))) ->  | G64: =IF($D$12=0," ",IF(B63=$D$12,Simulador!$S$30,+IF(B64>0,VLOOKUP(B64,Simulador!$A$32:$W$550,19,0)," "))) ->  | H64: =IF($D$12=0," ",IF(B63=$D$12,Simulador!$T$30,+IF(B64>0,VLOOKUP(B64,Simulador!$A$32:$W$550,20,0)," "))) ->  | I64: =IF($D$12=0," ",IF(B63=$D$12,Simulador!$V$30,+IF(B64>0,VLOOKUP(B64,Simulador!$A$32:$W$550,22,0)," "))) ->  | J64: =IF($D$12=0," ",IF(B63=$D$12,Simulador!$W$30,+IF(B64>0,VLOOKUP(B64,Simulador!$A$32:$W$550,23,0)," "))) -> 
C65: =IF($D$12=0," ",IF(B64=$D$12,"TOTALES",+IF(B65>0,VLOOKUP(B65,Simulador!$A$32:$W$550,3,0)," "))) ->  | D65: =IF($D$12=0," ",IF(B64=$D$12,Simulador!$M$30,+IF(B65>0,VLOOKUP(B65,Simulador!$A$32:$W$550,13,0)," "))) ->  | E65: =IF($D$12=0," ",IF(B64=$D$12,Simulador!$N$30,+IF(B65>0,VLOOKUP(B65,Simulador!$A$32:$W$550,14,0)," "))) ->  | F65: =IF($D$12=0," ",IF(B64=$D$12,Simulador!$O$30,+IF(B65>0,VLOOKUP(B65,Simulador!$A$32:$W$550,15,0)," "))) ->  | G65: =IF($D$12=0," ",IF(B64=$D$12,Simulador!$S$30,+IF(B65>0,VLOOKUP(B65,Simulador!$A$32:$W$550,19,0)," "))) ->  | H65: =IF($D$12=0," ",IF(B64=$D$12,Simulador!$T$30,+IF(B65>0,VLOOKUP(B65,Simulador!$A$32:$W$550,20,0)," "))) ->  | I65: =IF($D$12=0," ",IF(B64=$D$12,Simulador!$V$30,+IF(B65>0,VLOOKUP(B65,Simulador!$A$32:$W$550,22,0)," "))) ->  | J65: =IF($D$12=0," ",IF(B64=$D$12,Simulador!$W$30,+IF(B65>0,VLOOKUP(B65,Simulador!$A$32:$W$550,23,0)," "))) -> 
C66: =IF($D$12=0," ",IF(B65=$D$12,"TOTALES",+IF(B66>0,VLOOKUP(B66,Simulador!$A$32:$W$550,3,0)," "))) ->  | D66: =IF($D$12=0," ",IF(B65=$D$12,Simulador!$M$30,+IF(B66>0,VLOOKUP(B66,Simulador!$A$32:$W$550,13,0)," "))) ->  | E66: =IF($D$12=0," ",IF(B65=$D$12,Simulador!$N$30,+IF(B66>0,VLOOKUP(B66,Simulador!$A$32:$W$550,14,0)," "))) ->  | F66: =IF($D$12=0," ",IF(B65=$D$12,Simulador!$O$30,+IF(B66>0,VLOOKUP(B66,Simulador!$A$32:$W$550,15,0)," "))) ->  | G66: =IF($D$12=0," ",IF(B65=$D$12,Simulador!$S$30,+IF(B66>0,VLOOKUP(B66,Simulador!$A$32:$W$550,19,0)," "))) ->  | H66: =IF($D$12=0," ",IF(B65=$D$12,Simulador!$T$30,+IF(B66>0,VLOOKUP(B66,Simulador!$A$32:$W$550,20,0)," "))) ->  | I66: =IF($D$12=0," ",IF(B65=$D$12,Simulador!$V$30,+IF(B66>0,VLOOKUP(B66,Simulador!$A$32:$W$550,22,0)," "))) ->  | J66: =IF($D$12=0," ",IF(B65=$D$12,Simulador!$W$30,+IF(B66>0,VLOOKUP(B66,Simulador!$A$32:$W$550,23,0)," "))) -> 
C67: =IF($D$12=0," ",IF(B66=$D$12,"TOTALES",+IF(B67>0,VLOOKUP(B67,Simulador!$A$32:$W$550,3,0)," "))) ->  | D67: =IF($D$12=0," ",IF(B66=$D$12,Simulador!$M$30,+IF(B67>0,VLOOKUP(B67,Simulador!$A$32:$W$550,13,0)," "))) ->  | E67: =IF($D$12=0," ",IF(B66=$D$12,Simulador!$N$30,+IF(B67>0,VLOOKUP(B67,Simulador!$A$32:$W$550,14,0)," "))) ->  | F67: =IF($D$12=0," ",IF(B66=$D$12,Simulador!$O$30,+IF(B67>0,VLOOKUP(B67,Simulador!$A$32:$W$550,15,0)," "))) ->  | G67: =IF($D$12=0," ",IF(B66=$D$12,Simulador!$S$30,+IF(B67>0,VLOOKUP(B67,Simulador!$A$32:$W$550,19,0)," "))) ->  | H67: =IF($D$12=0," ",IF(B66=$D$12,Simulador!$T$30,+IF(B67>0,VLOOKUP(B67,Simulador!$A$32:$W$550,20,0)," "))) ->  | I67: =IF($D$12=0," ",IF(B66=$D$12,Simulador!$V$30,+IF(B67>0,VLOOKUP(B67,Simulador!$A$32:$W$550,22,0)," "))) ->  | J67: =IF($D$12=0," ",IF(B66=$D$12,Simulador!$W$30,+IF(B67>0,VLOOKUP(B67,Simulador!$A$32:$W$550,23,0)," "))) -> 
C68: =IF($D$12=0," ",IF(B67=$D$12,"TOTALES",+IF(B68>0,VLOOKUP(B68,Simulador!$A$32:$W$550,3,0)," "))) ->  | D68: =IF($D$12=0," ",IF(B67=$D$12,Simulador!$M$30,+IF(B68>0,VLOOKUP(B68,Simulador!$A$32:$W$550,13,0)," "))) ->  | E68: =IF($D$12=0," ",IF(B67=$D$12,Simulador!$N$30,+IF(B68>0,VLOOKUP(B68,Simulador!$A$32:$W$550,14,0)," "))) ->  | F68: =IF($D$12=0," ",IF(B67=$D$12,Simulador!$O$30,+IF(B68>0,VLOOKUP(B68,Simulador!$A$32:$W$550,15,0)," "))) ->  | G68: =IF($D$12=0," ",IF(B67=$D$12,Simulador!$S$30,+IF(B68>0,VLOOKUP(B68,Simulador!$A$32:$W$550,19,0)," "))) ->  | H68: =IF($D$12=0," ",IF(B67=$D$12,Simulador!$T$30,+IF(B68>0,VLOOKUP(B68,Simulador!$A$32:$W$550,20,0)," "))) ->  | I68: =IF($D$12=0," ",IF(B67=$D$12,Simulador!$V$30,+IF(B68>0,VLOOKUP(B68,Simulador!$A$32:$W$550,22,0)," "))) ->  | J68: =IF($D$12=0," ",IF(B67=$D$12,Simulador!$W$30,+IF(B68>0,VLOOKUP(B68,Simulador!$A$32:$W$550,23,0)," "))) -> 
C69: =IF($D$12=0," ",IF(B68=$D$12,"TOTALES",+IF(B69>0,VLOOKUP(B69,Simulador!$A$32:$W$550,3,0)," "))) ->  | D69: =IF($D$12=0," ",IF(B68=$D$12,Simulador!$M$30,+IF(B69>0,VLOOKUP(B69,Simulador!$A$32:$W$550,13,0)," "))) ->  | E69: =IF($D$12=0," ",IF(B68=$D$12,Simulador!$N$30,+IF(B69>0,VLOOKUP(B69,Simulador!$A$32:$W$550,14,0)," "))) ->  | F69: =IF($D$12=0," ",IF(B68=$D$12,Simulador!$O$30,+IF(B69>0,VLOOKUP(B69,Simulador!$A$32:$W$550,15,0)," "))) ->  | G69: =IF($D$12=0," ",IF(B68=$D$12,Simulador!$S$30,+IF(B69>0,VLOOKUP(B69,Simulador!$A$32:$W$550,19,0)," "))) ->  | H69: =IF($D$12=0," ",IF(B68=$D$12,Simulador!$T$30,+IF(B69>0,VLOOKUP(B69,Simulador!$A$32:$W$550,20,0)," "))) ->  | I69: =IF($D$12=0," ",IF(B68=$D$12,Simulador!$V$30,+IF(B69>0,VLOOKUP(B69,Simulador!$A$32:$W$550,22,0)," "))) ->  | J69: =IF($D$12=0," ",IF(B68=$D$12,Simulador!$W$30,+IF(B69>0,VLOOKUP(B69,Simulador!$A$32:$W$550,23,0)," "))) -> 
C70: =IF($D$12=0," ",IF(B69=$D$12,"TOTALES",+IF(B70>0,VLOOKUP(B70,Simulador!$A$32:$W$550,3,0)," "))) ->  | D70: =IF($D$12=0," ",IF(B69=$D$12,Simulador!$M$30,+IF(B70>0,VLOOKUP(B70,Simulador!$A$32:$W$550,13,0)," "))) ->  | E70: =IF($D$12=0," ",IF(B69=$D$12,Simulador!$N$30,+IF(B70>0,VLOOKUP(B70,Simulador!$A$32:$W$550,14,0)," "))) ->  | F70: =IF($D$12=0," ",IF(B69=$D$12,Simulador!$O$30,+IF(B70>0,VLOOKUP(B70,Simulador!$A$32:$W$550,15,0)," "))) ->  | G70: =IF($D$12=0," ",IF(B69=$D$12,Simulador!$S$30,+IF(B70>0,VLOOKUP(B70,Simulador!$A$32:$W$550,19,0)," "))) ->  | H70: =IF($D$12=0," ",IF(B69=$D$12,Simulador!$T$30,+IF(B70>0,VLOOKUP(B70,Simulador!$A$32:$W$550,20,0)," "))) ->  | I70: =IF($D$12=0," ",IF(B69=$D$12,Simulador!$V$30,+IF(B70>0,VLOOKUP(B70,Simulador!$A$32:$W$550,22,0)," "))) ->  | J70: =IF($D$12=0," ",IF(B69=$D$12,Simulador!$W$30,+IF(B70>0,VLOOKUP(B70,Simulador!$A$32:$W$550,23,0)," "))) -> 
C71: =IF($D$12=0," ",IF(B70=$D$12,"TOTALES",+IF(B71>0,VLOOKUP(B71,Simulador!$A$32:$W$550,3,0)," "))) ->  | D71: =IF($D$12=0," ",IF(B70=$D$12,Simulador!$M$30,+IF(B71>0,VLOOKUP(B71,Simulador!$A$32:$W$550,13,0)," "))) ->  | E71: =IF($D$12=0," ",IF(B70=$D$12,Simulador!$N$30,+IF(B71>0,VLOOKUP(B71,Simulador!$A$32:$W$550,14,0)," "))) ->  | F71: =IF($D$12=0," ",IF(B70=$D$12,Simulador!$O$30,+IF(B71>0,VLOOKUP(B71,Simulador!$A$32:$W$550,15,0)," "))) ->  | G71: =IF($D$12=0," ",IF(B70=$D$12,Simulador!$S$30,+IF(B71>0,VLOOKUP(B71,Simulador!$A$32:$W$550,19,0)," "))) ->  | H71: =IF($D$12=0," ",IF(B70=$D$12,Simulador!$T$30,+IF(B71>0,VLOOKUP(B71,Simulador!$A$32:$W$550,20,0)," "))) ->  | I71: =IF($D$12=0," ",IF(B70=$D$12,Simulador!$V$30,+IF(B71>0,VLOOKUP(B71,Simulador!$A$32:$W$550,22,0)," "))) ->  | J71: =IF($D$12=0," ",IF(B70=$D$12,Simulador!$W$30,+IF(B71>0,VLOOKUP(B71,Simulador!$A$32:$W$550,23,0)," "))) -> 
C72: =IF($D$12=0," ",IF(B71=$D$12,"TOTALES",+IF(B72>0,VLOOKUP(B72,Simulador!$A$32:$W$550,3,0)," "))) ->  | D72: =IF($D$12=0," ",IF(B71=$D$12,Simulador!$M$30,+IF(B72>0,VLOOKUP(B72,Simulador!$A$32:$W$550,13,0)," "))) ->  | E72: =IF($D$12=0," ",IF(B71=$D$12,Simulador!$N$30,+IF(B72>0,VLOOKUP(B72,Simulador!$A$32:$W$550,14,0)," "))) ->  | F72: =IF($D$12=0," ",IF(B71=$D$12,Simulador!$O$30,+IF(B72>0,VLOOKUP(B72,Simulador!$A$32:$W$550,15,0)," "))) ->  | G72: =IF($D$12=0," ",IF(B71=$D$12,Simulador!$S$30,+IF(B72>0,VLOOKUP(B72,Simulador!$A$32:$W$550,19,0)," "))) ->  | H72: =IF($D$12=0," ",IF(B71=$D$12,Simulador!$T$30,+IF(B72>0,VLOOKUP(B72,Simulador!$A$32:$W$550,20,0)," "))) ->  | I72: =IF($D$12=0," ",IF(B71=$D$12,Simulador!$V$30,+IF(B72>0,VLOOKUP(B72,Simulador!$A$32:$W$550,22,0)," "))) ->  | J72: =IF($D$12=0," ",IF(B71=$D$12,Simulador!$W$30,+IF(B72>0,VLOOKUP(B72,Simulador!$A$32:$W$550,23,0)," "))) -> 
C73: =IF($D$12=0," ",IF(B72=$D$12,"TOTALES",+IF(B73>0,VLOOKUP(B73,Simulador!$A$32:$W$550,3,0)," "))) ->  | D73: =IF($D$12=0," ",IF(B72=$D$12,Simulador!$M$30,+IF(B73>0,VLOOKUP(B73,Simulador!$A$32:$W$550,13,0)," "))) ->  | E73: =IF($D$12=0," ",IF(B72=$D$12,Simulador!$N$30,+IF(B73>0,VLOOKUP(B73,Simulador!$A$32:$W$550,14,0)," "))) ->  | F73: =IF($D$12=0," ",IF(B72=$D$12,Simulador!$O$30,+IF(B73>0,VLOOKUP(B73,Simulador!$A$32:$W$550,15,0)," "))) ->  | G73: =IF($D$12=0," ",IF(B72=$D$12,Simulador!$S$30,+IF(B73>0,VLOOKUP(B73,Simulador!$A$32:$W$550,19,0)," "))) ->  | H73: =IF($D$12=0," ",IF(B72=$D$12,Simulador!$T$30,+IF(B73>0,VLOOKUP(B73,Simulador!$A$32:$W$550,20,0)," "))) ->  | I73: =IF($D$12=0," ",IF(B72=$D$12,Simulador!$V$30,+IF(B73>0,VLOOKUP(B73,Simulador!$A$32:$W$550,22,0)," "))) ->  | J73: =IF($D$12=0," ",IF(B72=$D$12,Simulador!$W$30,+IF(B73>0,VLOOKUP(B73,Simulador!$A$32:$W$550,23,0)," "))) -> 
C74: =IF($D$12=0," ",IF(B73=$D$12,"TOTALES",+IF(B74>0,VLOOKUP(B74,Simulador!$A$32:$W$550,3,0)," "))) ->  | D74: =IF($D$12=0," ",IF(B73=$D$12,Simulador!$M$30,+IF(B74>0,VLOOKUP(B74,Simulador!$A$32:$W$550,13,0)," "))) ->  | E74: =IF($D$12=0," ",IF(B73=$D$12,Simulador!$N$30,+IF(B74>0,VLOOKUP(B74,Simulador!$A$32:$W$550,14,0)," "))) ->  | F74: =IF($D$12=0," ",IF(B73=$D$12,Simulador!$O$30,+IF(B74>0,VLOOKUP(B74,Simulador!$A$32:$W$550,15,0)," "))) ->  | G74: =IF($D$12=0," ",IF(B73=$D$12,Simulador!$S$30,+IF(B74>0,VLOOKUP(B74,Simulador!$A$32:$W$550,19,0)," "))) ->  | H74: =IF($D$12=0," ",IF(B73=$D$12,Simulador!$T$30,+IF(B74>0,VLOOKUP(B74,Simulador!$A$32:$W$550,20,0)," "))) ->  | I74: =IF($D$12=0," ",IF(B73=$D$12,Simulador!$V$30,+IF(B74>0,VLOOKUP(B74,Simulador!$A$32:$W$550,22,0)," "))) ->  | J74: =IF($D$12=0," ",IF(B73=$D$12,Simulador!$W$30,+IF(B74>0,VLOOKUP(B74,Simulador!$A$32:$W$550,23,0)," "))) -> 
C75: =IF($D$12=0," ",IF(B74=$D$12,"TOTALES",+IF(B75>0,VLOOKUP(B75,Simulador!$A$32:$W$550,3,0)," "))) ->  | D75: =IF($D$12=0," ",IF(B74=$D$12,Simulador!$M$30,+IF(B75>0,VLOOKUP(B75,Simulador!$A$32:$W$550,13,0)," "))) ->  | E75: =IF($D$12=0," ",IF(B74=$D$12,Simulador!$N$30,+IF(B75>0,VLOOKUP(B75,Simulador!$A$32:$W$550,14,0)," "))) ->  | F75: =IF($D$12=0," ",IF(B74=$D$12,Simulador!$O$30,+IF(B75>0,VLOOKUP(B75,Simulador!$A$32:$W$550,15,0)," "))) ->  | G75: =IF($D$12=0," ",IF(B74=$D$12,Simulador!$S$30,+IF(B75>0,VLOOKUP(B75,Simulador!$A$32:$W$550,19,0)," "))) ->  | H75: =IF($D$12=0," ",IF(B74=$D$12,Simulador!$T$30,+IF(B75>0,VLOOKUP(B75,Simulador!$A$32:$W$550,20,0)," "))) ->  | I75: =IF($D$12=0," ",IF(B74=$D$12,Simulador!$V$30,+IF(B75>0,VLOOKUP(B75,Simulador!$A$32:$W$550,22,0)," "))) ->  | J75: =IF($D$12=0," ",IF(B74=$D$12,Simulador!$W$30,+IF(B75>0,VLOOKUP(B75,Simulador!$A$32:$W$550,23,0)," "))) -> 
C76: =IF($D$12=0," ",IF(B75=$D$12,"TOTALES",+IF(B76>0,VLOOKUP(B76,Simulador!$A$32:$W$550,3,0)," "))) ->  | D76: =IF($D$12=0," ",IF(B75=$D$12,Simulador!$M$30,+IF(B76>0,VLOOKUP(B76,Simulador!$A$32:$W$550,13,0)," "))) ->  | E76: =IF($D$12=0," ",IF(B75=$D$12,Simulador!$N$30,+IF(B76>0,VLOOKUP(B76,Simulador!$A$32:$W$550,14,0)," "))) ->  | F76: =IF($D$12=0," ",IF(B75=$D$12,Simulador!$O$30,+IF(B76>0,VLOOKUP(B76,Simulador!$A$32:$W$550,15,0)," "))) ->  | G76: =IF($D$12=0," ",IF(B75=$D$12,Simulador!$S$30,+IF(B76>0,VLOOKUP(B76,Simulador!$A$32:$W$550,19,0)," "))) ->  | H76: =IF($D$12=0," ",IF(B75=$D$12,Simulador!$T$30,+IF(B76>0,VLOOKUP(B76,Simulador!$A$32:$W$550,20,0)," "))) ->  | I76: =IF($D$12=0," ",IF(B75=$D$12,Simulador!$V$30,+IF(B76>0,VLOOKUP(B76,Simulador!$A$32:$W$550,22,0)," "))) ->  | J76: =IF($D$12=0," ",IF(B75=$D$12,Simulador!$W$30,+IF(B76>0,VLOOKUP(B76,Simulador!$A$32:$W$550,23,0)," "))) -> 
C77: =IF($D$12=0," ",IF(B76=$D$12,"TOTALES",+IF(B77>0,VLOOKUP(B77,Simulador!$A$32:$W$550,3,0)," "))) ->  | D77: =IF($D$12=0," ",IF(B76=$D$12,Simulador!$M$30,+IF(B77>0,VLOOKUP(B77,Simulador!$A$32:$W$550,13,0)," "))) ->  | E77: =IF($D$12=0," ",IF(B76=$D$12,Simulador!$N$30,+IF(B77>0,VLOOKUP(B77,Simulador!$A$32:$W$550,14,0)," "))) ->  | F77: =IF($D$12=0," ",IF(B76=$D$12,Simulador!$O$30,+IF(B77>0,VLOOKUP(B77,Simulador!$A$32:$W$550,15,0)," "))) ->  | G77: =IF($D$12=0," ",IF(B76=$D$12,Simulador!$S$30,+IF(B77>0,VLOOKUP(B77,Simulador!$A$32:$W$550,19,0)," "))) ->  | H77: =IF($D$12=0," ",IF(B76=$D$12,Simulador!$T$30,+IF(B77>0,VLOOKUP(B77,Simulador!$A$32:$W$550,20,0)," "))) ->  | I77: =IF($D$12=0," ",IF(B76=$D$12,Simulador!$V$30,+IF(B77>0,VLOOKUP(B77,Simulador!$A$32:$W$550,22,0)," "))) ->  | J77: =IF($D$12=0," ",IF(B76=$D$12,Simulador!$W$30,+IF(B77>0,VLOOKUP(B77,Simulador!$A$32:$W$550,23,0)," "))) -> 
C78: =IF($D$12=0," ",IF(B77=$D$12,"TOTALES",+IF(B78>0,VLOOKUP(B78,Simulador!$A$32:$W$550,3,0)," "))) ->  | D78: =IF($D$12=0," ",IF(B77=$D$12,Simulador!$M$30,+IF(B78>0,VLOOKUP(B78,Simulador!$A$32:$W$550,13,0)," "))) ->  | E78: =IF($D$12=0," ",IF(B77=$D$12,Simulador!$N$30,+IF(B78>0,VLOOKUP(B78,Simulador!$A$32:$W$550,14,0)," "))) ->  | F78: =IF($D$12=0," ",IF(B77=$D$12,Simulador!$O$30,+IF(B78>0,VLOOKUP(B78,Simulador!$A$32:$W$550,15,0)," "))) ->  | G78: =IF($D$12=0," ",IF(B77=$D$12,Simulador!$S$30,+IF(B78>0,VLOOKUP(B78,Simulador!$A$32:$W$550,19,0)," "))) ->  | H78: =IF($D$12=0," ",IF(B77=$D$12,Simulador!$T$30,+IF(B78>0,VLOOKUP(B78,Simulador!$A$32:$W$550,20,0)," "))) ->  | I78: =IF($D$12=0," ",IF(B77=$D$12,Simulador!$V$30,+IF(B78>0,VLOOKUP(B78,Simulador!$A$32:$W$550,22,0)," "))) ->  | J78: =IF($D$12=0," ",IF(B77=$D$12,Simulador!$W$30,+IF(B78>0,VLOOKUP(B78,Simulador!$A$32:$W$550,23,0)," "))) -> 
C79: =IF($D$12=0," ",IF(B78=$D$12,"TOTALES",+IF(B79>0,VLOOKUP(B79,Simulador!$A$32:$W$550,3,0)," "))) ->  | D79: =IF($D$12=0," ",IF(B78=$D$12,Simulador!$M$30,+IF(B79>0,VLOOKUP(B79,Simulador!$A$32:$W$550,13,0)," "))) ->  | E79: =IF($D$12=0," ",IF(B78=$D$12,Simulador!$N$30,+IF(B79>0,VLOOKUP(B79,Simulador!$A$32:$W$550,14,0)," "))) ->  | F79: =IF($D$12=0," ",IF(B78=$D$12,Simulador!$O$30,+IF(B79>0,VLOOKUP(B79,Simulador!$A$32:$W$550,15,0)," "))) ->  | G79: =IF($D$12=0," ",IF(B78=$D$12,Simulador!$S$30,+IF(B79>0,VLOOKUP(B79,Simulador!$A$32:$W$550,19,0)," "))) ->  | H79: =IF($D$12=0," ",IF(B78=$D$12,Simulador!$T$30,+IF(B79>0,VLOOKUP(B79,Simulador!$A$32:$W$550,20,0)," "))) ->  | I79: =IF($D$12=0," ",IF(B78=$D$12,Simulador!$V$30,+IF(B79>0,VLOOKUP(B79,Simulador!$A$32:$W$550,22,0)," "))) ->  | J79: =IF($D$12=0," ",IF(B78=$D$12,Simulador!$W$30,+IF(B79>0,VLOOKUP(B79,Simulador!$A$32:$W$550,23,0)," "))) -> 
C80: =IF($D$12=0," ",IF(B79=$D$12,"TOTALES",+IF(B80>0,VLOOKUP(B80,Simulador!$A$32:$W$550,3,0)," "))) ->  | D80: =IF($D$12=0," ",IF(B79=$D$12,Simulador!$M$30,+IF(B80>0,VLOOKUP(B80,Simulador!$A$32:$W$550,13,0)," "))) ->  | E80: =IF($D$12=0," ",IF(B79=$D$12,Simulador!$N$30,+IF(B80>0,VLOOKUP(B80,Simulador!$A$32:$W$550,14,0)," "))) ->  | F80: =IF($D$12=0," ",IF(B79=$D$12,Simulador!$O$30,+IF(B80>0,VLOOKUP(B80,Simulador!$A$32:$W$550,15,0)," "))) ->  | G80: =IF($D$12=0," ",IF(B79=$D$12,Simulador!$S$30,+IF(B80>0,VLOOKUP(B80,Simulador!$A$32:$W$550,19,0)," "))) ->  | H80: =IF($D$12=0," ",IF(B79=$D$12,Simulador!$T$30,+IF(B80>0,VLOOKUP(B80,Simulador!$A$32:$W$550,20,0)," "))) ->  | I80: =IF($D$12=0," ",IF(B79=$D$12,Simulador!$V$30,+IF(B80>0,VLOOKUP(B80,Simulador!$A$32:$W$550,22,0)," "))) ->  | J80: =IF($D$12=0," ",IF(B79=$D$12,Simulador!$W$30,+IF(B80>0,VLOOKUP(B80,Simulador!$A$32:$W$550,23,0)," "))) -> 
C81: =IF($D$12=0," ",IF(B80=$D$12,"TOTALES",+IF(B81>0,VLOOKUP(B81,Simulador!$A$32:$W$550,3,0)," "))) ->  | D81: =IF($D$12=0," ",IF(B80=$D$12,Simulador!$M$30,+IF(B81>0,VLOOKUP(B81,Simulador!$A$32:$W$550,13,0)," "))) ->  | E81: =IF($D$12=0," ",IF(B80=$D$12,Simulador!$N$30,+IF(B81>0,VLOOKUP(B81,Simulador!$A$32:$W$550,14,0)," "))) ->  | F81: =IF($D$12=0," ",IF(B80=$D$12,Simulador!$O$30,+IF(B81>0,VLOOKUP(B81,Simulador!$A$32:$W$550,15,0)," "))) ->  | G81: =IF($D$12=0," ",IF(B80=$D$12,Simulador!$S$30,+IF(B81>0,VLOOKUP(B81,Simulador!$A$32:$W$550,19,0)," "))) ->  | H81: =IF($D$12=0," ",IF(B80=$D$12,Simulador!$T$30,+IF(B81>0,VLOOKUP(B81,Simulador!$A$32:$W$550,20,0)," "))) ->  | I81: =IF($D$12=0," ",IF(B80=$D$12,Simulador!$V$30,+IF(B81>0,VLOOKUP(B81,Simulador!$A$32:$W$550,22,0)," "))) ->  | J81: =IF($D$12=0," ",IF(B80=$D$12,Simulador!$W$30,+IF(B81>0,VLOOKUP(B81,Simulador!$A$32:$W$550,23,0)," "))) -> 
C82: =IF($D$12=0," ",IF(B81=$D$12,"TOTALES",+IF(B82>0,VLOOKUP(B82,Simulador!$A$32:$W$550,3,0)," "))) ->  | D82: =IF($D$12=0," ",IF(B81=$D$12,Simulador!$M$30,+IF(B82>0,VLOOKUP(B82,Simulador!$A$32:$W$550,13,0)," "))) ->  | E82: =IF($D$12=0," ",IF(B81=$D$12,Simulador!$N$30,+IF(B82>0,VLOOKUP(B82,Simulador!$A$32:$W$550,14,0)," "))) ->  | F82: =IF($D$12=0," ",IF(B81=$D$12,Simulador!$O$30,+IF(B82>0,VLOOKUP(B82,Simulador!$A$32:$W$550,15,0)," "))) ->  | G82: =IF($D$12=0," ",IF(B81=$D$12,Simulador!$S$30,+IF(B82>0,VLOOKUP(B82,Simulador!$A$32:$W$550,19,0)," "))) ->  | H82: =IF($D$12=0," ",IF(B81=$D$12,Simulador!$T$30,+IF(B82>0,VLOOKUP(B82,Simulador!$A$32:$W$550,20,0)," "))) ->  | I82: =IF($D$12=0," ",IF(B81=$D$12,Simulador!$V$30,+IF(B82>0,VLOOKUP(B82,Simulador!$A$32:$W$550,22,0)," "))) ->  | J82: =IF($D$12=0," ",IF(B81=$D$12,Simulador!$W$30,+IF(B82>0,VLOOKUP(B82,Simulador!$A$32:$W$550,23,0)," "))) -> 
B83: =IF(B82=0," ",IF(B82>=$D$12,"",B82+1)) ->  | C83: =IF($D$12=0," ",IF(B82=$D$12,"TOTALES",+IF(B83>0,VLOOKUP(B83,Simulador!$A$32:$W$550,3,0)," "))) ->  | D83: =IF($D$12=0," ",IF(B82=$D$12,Simulador!$M$30,+IF(B83>0,VLOOKUP(B83,Simulador!$A$32:$W$550,13,0)," "))) ->  | E83: =IF($D$12=0," ",IF(B82=$D$12,Simulador!$N$30,+IF(B83>0,VLOOKUP(B83,Simulador!$A$32:$W$550,14,0)," "))) ->  | F83: =IF($D$12=0," ",IF(B82=$D$12,Simulador!$O$30,+IF(B83>0,VLOOKUP(B83,Simulador!$A$32:$W$550,15,0)," "))) ->  | G83: =IF($D$12=0," ",IF(B82=$D$12,Simulador!$S$30,+IF(B83>0,VLOOKUP(B83,Simulador!$A$32:$W$550,19,0)," "))) ->  | H83: =IF($D$12=0," ",IF(B82=$D$12,Simulador!$T$30,+IF(B83>0,VLOOKUP(B83,Simulador!$A$32:$W$550,20,0)," "))) ->  | I83: =IF($D$12=0," ",IF(B82=$D$12,Simulador!$V$30,+IF(B83>0,VLOOKUP(B83,Simulador!$A$32:$W$550,22,0)," "))) ->  | J83: =IF($D$12=0," ",IF(B82=$D$12,Simulador!$W$30,+IF(B83>0,VLOOKUP(B83,Simulador!$A$32:$W$550,23,0)," "))) -> 
C84: =IF($D$12=0," ",IF(B83=$D$12,"TOTALES",+IF(B84>0,VLOOKUP(B84,Simulador!$A$32:$W$550,3,0)," "))) ->  | D84: =IF($D$12=0," ",IF(B83=$D$12,Simulador!$M$30,+IF(B84>0,VLOOKUP(B84,Simulador!$A$32:$W$550,13,0)," "))) ->  | E84: =IF($D$12=0," ",IF(B83=$D$12,Simulador!$N$30,+IF(B84>0,VLOOKUP(B84,Simulador!$A$32:$W$550,14,0)," "))) ->  | F84: =IF($D$12=0," ",IF(B83=$D$12,Simulador!$O$30,+IF(B84>0,VLOOKUP(B84,Simulador!$A$32:$W$550,15,0)," "))) ->  | G84: =IF($D$12=0," ",IF(B83=$D$12,Simulador!$S$30,+IF(B84>0,VLOOKUP(B84,Simulador!$A$32:$W$550,19,0)," "))) ->  | H84: =IF($D$12=0," ",IF(B83=$D$12,Simulador!$T$30,+IF(B84>0,VLOOKUP(B84,Simulador!$A$32:$W$550,20,0)," "))) ->  | I84: =IF($D$12=0," ",IF(B83=$D$12,Simulador!$V$30,+IF(B84>0,VLOOKUP(B84,Simulador!$A$32:$W$550,22,0)," "))) ->  | J84: =IF($D$12=0," ",IF(B83=$D$12,Simulador!$W$30,+IF(B84>0,VLOOKUP(B84,Simulador!$A$32:$W$550,23,0)," "))) -> 
C85: =IF($D$12=0," ",IF(B84=$D$12,"TOTALES",+IF(B85>0,VLOOKUP(B85,Simulador!$A$32:$W$550,3,0)," "))) ->  | D85: =IF($D$12=0," ",IF(B84=$D$12,Simulador!$M$30,+IF(B85>0,VLOOKUP(B85,Simulador!$A$32:$W$550,13,0)," "))) ->  | E85: =IF($D$12=0," ",IF(B84=$D$12,Simulador!$N$30,+IF(B85>0,VLOOKUP(B85,Simulador!$A$32:$W$550,14,0)," "))) ->  | F85: =IF($D$12=0," ",IF(B84=$D$12,Simulador!$O$30,+IF(B85>0,VLOOKUP(B85,Simulador!$A$32:$W$550,15,0)," "))) ->  | G85: =IF($D$12=0," ",IF(B84=$D$12,Simulador!$S$30,+IF(B85>0,VLOOKUP(B85,Simulador!$A$32:$W$550,19,0)," "))) ->  | H85: =IF($D$12=0," ",IF(B84=$D$12,Simulador!$T$30,+IF(B85>0,VLOOKUP(B85,Simulador!$A$32:$W$550,20,0)," "))) ->  | I85: =IF($D$12=0," ",IF(B84=$D$12,Simulador!$V$30,+IF(B85>0,VLOOKUP(B85,Simulador!$A$32:$W$550,22,0)," "))) ->  | J85: =IF($D$12=0," ",IF(B84=$D$12,Simulador!$W$30,+IF(B85>0,VLOOKUP(B85,Simulador!$A$32:$W$550,23,0)," "))) -> 
C86: =IF($D$12=0," ",IF(B85=$D$12,"TOTALES",+IF(B86>0,VLOOKUP(B86,Simulador!$A$32:$W$550,3,0)," "))) ->  | D86: =IF($D$12=0," ",IF(B85=$D$12,Simulador!$M$30,+IF(B86>0,VLOOKUP(B86,Simulador!$A$32:$W$550,13,0)," "))) ->  | E86: =IF($D$12=0," ",IF(B85=$D$12,Simulador!$N$30,+IF(B86>0,VLOOKUP(B86,Simulador!$A$32:$W$550,14,0)," "))) ->  | F86: =IF($D$12=0," ",IF(B85=$D$12,Simulador!$O$30,+IF(B86>0,VLOOKUP(B86,Simulador!$A$32:$W$550,15,0)," "))) ->  | G86: =IF($D$12=0," ",IF(B85=$D$12,Simulador!$S$30,+IF(B86>0,VLOOKUP(B86,Simulador!$A$32:$W$550,19,0)," "))) ->  | H86: =IF($D$12=0," ",IF(B85=$D$12,Simulador!$T$30,+IF(B86>0,VLOOKUP(B86,Simulador!$A$32:$W$550,20,0)," "))) ->  | I86: =IF($D$12=0," ",IF(B85=$D$12,Simulador!$V$30,+IF(B86>0,VLOOKUP(B86,Simulador!$A$32:$W$550,22,0)," "))) ->  | J86: =IF($D$12=0," ",IF(B85=$D$12,Simulador!$W$30,+IF(B86>0,VLOOKUP(B86,Simulador!$A$32:$W$550,23,0)," "))) -> 
C87: =IF($D$12=0," ",IF(B86=$D$12,"TOTALES",+IF(B87>0,VLOOKUP(B87,Simulador!$A$32:$W$550,3,0)," "))) ->  | D87: =IF($D$12=0," ",IF(B86=$D$12,Simulador!$M$30,+IF(B87>0,VLOOKUP(B87,Simulador!$A$32:$W$550,13,0)," "))) ->  | E87: =IF($D$12=0," ",IF(B86=$D$12,Simulador!$N$30,+IF(B87>0,VLOOKUP(B87,Simulador!$A$32:$W$550,14,0)," "))) ->  | F87: =IF($D$12=0," ",IF(B86=$D$12,Simulador!$O$30,+IF(B87>0,VLOOKUP(B87,Simulador!$A$32:$W$550,15,0)," "))) ->  | G87: =IF($D$12=0," ",IF(B86=$D$12,Simulador!$S$30,+IF(B87>0,VLOOKUP(B87,Simulador!$A$32:$W$550,19,0)," "))) ->  | H87: =IF($D$12=0," ",IF(B86=$D$12,Simulador!$T$30,+IF(B87>0,VLOOKUP(B87,Simulador!$A$32:$W$550,20,0)," "))) ->  | I87: =IF($D$12=0," ",IF(B86=$D$12,Simulador!$V$30,+IF(B87>0,VLOOKUP(B87,Simulador!$A$32:$W$550,22,0)," "))) ->  | J87: =IF($D$12=0," ",IF(B86=$D$12,Simulador!$W$30,+IF(B87>0,VLOOKUP(B87,Simulador!$A$32:$W$550,23,0)," "))) -> 
C88: =IF($D$12=0," ",IF(B87=$D$12,"TOTALES",+IF(B88>0,VLOOKUP(B88,Simulador!$A$32:$W$550,3,0)," "))) ->  | D88: =IF($D$12=0," ",IF(B87=$D$12,Simulador!$M$30,+IF(B88>0,VLOOKUP(B88,Simulador!$A$32:$W$550,13,0)," "))) ->  | E88: =IF($D$12=0," ",IF(B87=$D$12,Simulador!$N$30,+IF(B88>0,VLOOKUP(B88,Simulador!$A$32:$W$550,14,0)," "))) ->  | F88: =IF($D$12=0," ",IF(B87=$D$12,Simulador!$O$30,+IF(B88>0,VLOOKUP(B88,Simulador!$A$32:$W$550,15,0)," "))) ->  | G88: =IF($D$12=0," ",IF(B87=$D$12,Simulador!$S$30,+IF(B88>0,VLOOKUP(B88,Simulador!$A$32:$W$550,19,0)," "))) ->  | H88: =IF($D$12=0," ",IF(B87=$D$12,Simulador!$T$30,+IF(B88>0,VLOOKUP(B88,Simulador!$A$32:$W$550,20,0)," "))) ->  | I88: =IF($D$12=0," ",IF(B87=$D$12,Simulador!$V$30,+IF(B88>0,VLOOKUP(B88,Simulador!$A$32:$W$550,22,0)," "))) ->  | J88: =IF($D$12=0," ",IF(B87=$D$12,Simulador!$W$30,+IF(B88>0,VLOOKUP(B88,Simulador!$A$32:$W$550,23,0)," "))) -> 
C89: =IF($D$12=0," ",IF(B88=$D$12,"TOTALES",+IF(B89>0,VLOOKUP(B89,Simulador!$A$32:$W$550,3,0)," "))) ->  | D89: =IF($D$12=0," ",IF(B88=$D$12,Simulador!$M$30,+IF(B89>0,VLOOKUP(B89,Simulador!$A$32:$W$550,13,0)," "))) ->  | E89: =IF($D$12=0," ",IF(B88=$D$12,Simulador!$N$30,+IF(B89>0,VLOOKUP(B89,Simulador!$A$32:$W$550,14,0)," "))) ->  | F89: =IF($D$12=0," ",IF(B88=$D$12,Simulador!$O$30,+IF(B89>0,VLOOKUP(B89,Simulador!$A$32:$W$550,15,0)," "))) ->  | G89: =IF($D$12=0," ",IF(B88=$D$12,Simulador!$S$30,+IF(B89>0,VLOOKUP(B89,Simulador!$A$32:$W$550,19,0)," "))) ->  | H89: =IF($D$12=0," ",IF(B88=$D$12,Simulador!$T$30,+IF(B89>0,VLOOKUP(B89,Simulador!$A$32:$W$550,20,0)," "))) ->  | I89: =IF($D$12=0," ",IF(B88=$D$12,Simulador!$V$30,+IF(B89>0,VLOOKUP(B89,Simulador!$A$32:$W$550,22,0)," "))) ->  | J89: =IF($D$12=0," ",IF(B88=$D$12,Simulador!$W$30,+IF(B89>0,VLOOKUP(B89,Simulador!$A$32:$W$550,23,0)," "))) -> 
C90: =IF($D$12=0," ",IF(B89=$D$12,"TOTALES",+IF(B90>0,VLOOKUP(B90,Simulador!$A$32:$W$550,3,0)," "))) ->  | D90: =IF($D$12=0," ",IF(B89=$D$12,Simulador!$M$30,+IF(B90>0,VLOOKUP(B90,Simulador!$A$32:$W$550,13,0)," "))) ->  | E90: =IF($D$12=0," ",IF(B89=$D$12,Simulador!$N$30,+IF(B90>0,VLOOKUP(B90,Simulador!$A$32:$W$550,14,0)," "))) ->  | F90: =IF($D$12=0," ",IF(B89=$D$12,Simulador!$O$30,+IF(B90>0,VLOOKUP(B90,Simulador!$A$32:$W$550,15,0)," "))) ->  | G90: =IF($D$12=0," ",IF(B89=$D$12,Simulador!$S$30,+IF(B90>0,VLOOKUP(B90,Simulador!$A$32:$W$550,19,0)," "))) ->  | H90: =IF($D$12=0," ",IF(B89=$D$12,Simulador!$T$30,+IF(B90>0,VLOOKUP(B90,Simulador!$A$32:$W$550,20,0)," "))) ->  | I90: =IF($D$12=0," ",IF(B89=$D$12,Simulador!$V$30,+IF(B90>0,VLOOKUP(B90,Simulador!$A$32:$W$550,22,0)," "))) ->  | J90: =IF($D$12=0," ",IF(B89=$D$12,Simulador!$W$30,+IF(B90>0,VLOOKUP(B90,Simulador!$A$32:$W$550,23,0)," "))) -> 
C91: =IF($D$12=0," ",IF(B90=$D$12,"TOTALES",+IF(B91>0,VLOOKUP(B91,Simulador!$A$32:$W$550,3,0)," "))) ->  | D91: =IF($D$12=0," ",IF(B90=$D$12,Simulador!$M$30,+IF(B91>0,VLOOKUP(B91,Simulador!$A$32:$W$550,13,0)," "))) ->  | E91: =IF($D$12=0," ",IF(B90=$D$12,Simulador!$N$30,+IF(B91>0,VLOOKUP(B91,Simulador!$A$32:$W$550,14,0)," "))) ->  | F91: =IF($D$12=0," ",IF(B90=$D$12,Simulador!$O$30,+IF(B91>0,VLOOKUP(B91,Simulador!$A$32:$W$550,15,0)," "))) ->  | G91: =IF($D$12=0," ",IF(B90=$D$12,Simulador!$S$30,+IF(B91>0,VLOOKUP(B91,Simulador!$A$32:$W$550,19,0)," "))) ->  | H91: =IF($D$12=0," ",IF(B90=$D$12,Simulador!$T$30,+IF(B91>0,VLOOKUP(B91,Simulador!$A$32:$W$550,20,0)," "))) ->  | I91: =IF($D$12=0," ",IF(B90=$D$12,Simulador!$V$30,+IF(B91>0,VLOOKUP(B91,Simulador!$A$32:$W$550,22,0)," "))) ->  | J91: =IF($D$12=0," ",IF(B90=$D$12,Simulador!$W$30,+IF(B91>0,VLOOKUP(B91,Simulador!$A$32:$W$550,23,0)," "))) -> 
C92: =IF($D$12=0," ",IF(B91=$D$12,"TOTALES",+IF(B92>0,VLOOKUP(B92,Simulador!$A$32:$W$550,3,0)," "))) ->  | D92: =IF($D$12=0," ",IF(B91=$D$12,Simulador!$M$30,+IF(B92>0,VLOOKUP(B92,Simulador!$A$32:$W$550,13,0)," "))) ->  | E92: =IF($D$12=0," ",IF(B91=$D$12,Simulador!$N$30,+IF(B92>0,VLOOKUP(B92,Simulador!$A$32:$W$550,14,0)," "))) ->  | F92: =IF($D$12=0," ",IF(B91=$D$12,Simulador!$O$30,+IF(B92>0,VLOOKUP(B92,Simulador!$A$32:$W$550,15,0)," "))) ->  | G92: =IF($D$12=0," ",IF(B91=$D$12,Simulador!$S$30,+IF(B92>0,VLOOKUP(B92,Simulador!$A$32:$W$550,19,0)," "))) ->  | H92: =IF($D$12=0," ",IF(B91=$D$12,Simulador!$T$30,+IF(B92>0,VLOOKUP(B92,Simulador!$A$32:$W$550,20,0)," "))) ->  | I92: =IF($D$12=0," ",IF(B91=$D$12,Simulador!$V$30,+IF(B92>0,VLOOKUP(B92,Simulador!$A$32:$W$550,22,0)," "))) ->  | J92: =IF($D$12=0," ",IF(B91=$D$12,Simulador!$W$30,+IF(B92>0,VLOOKUP(B92,Simulador!$A$32:$W$550,23,0)," "))) -> 
C93: =IF($D$12=0," ",IF(B92=$D$12,"TOTALES",+IF(B93>0,VLOOKUP(B93,Simulador!$A$32:$W$550,3,0)," "))) ->  | D93: =IF($D$12=0," ",IF(B92=$D$12,Simulador!$M$30,+IF(B93>0,VLOOKUP(B93,Simulador!$A$32:$W$550,13,0)," "))) ->  | E93: =IF($D$12=0," ",IF(B92=$D$12,Simulador!$N$30,+IF(B93>0,VLOOKUP(B93,Simulador!$A$32:$W$550,14,0)," "))) ->  | F93: =IF($D$12=0," ",IF(B92=$D$12,Simulador!$O$30,+IF(B93>0,VLOOKUP(B93,Simulador!$A$32:$W$550,15,0)," "))) ->  | G93: =IF($D$12=0," ",IF(B92=$D$12,Simulador!$S$30,+IF(B93>0,VLOOKUP(B93,Simulador!$A$32:$W$550,19,0)," "))) ->  | H93: =IF($D$12=0," ",IF(B92=$D$12,Simulador!$T$30,+IF(B93>0,VLOOKUP(B93,Simulador!$A$32:$W$550,20,0)," "))) ->  | I93: =IF($D$12=0," ",IF(B92=$D$12,Simulador!$V$30,+IF(B93>0,VLOOKUP(B93,Simulador!$A$32:$W$550,22,0)," "))) ->  | J93: =IF($D$12=0," ",IF(B92=$D$12,Simulador!$W$30,+IF(B93>0,VLOOKUP(B93,Simulador!$A$32:$W$550,23,0)," "))) -> 
